Workbook

Sheet Datos (hidden)
B2: Meses | D2: Años | G2: FON
A3: 1 | B3: Enero | D3: 2013 | G3: FONP
A4: 2 | B4: Febrero | D4: 2016 | G4: FONB
A5: 3 | B5: Marzo | D5: 2018 | G5: FONE
A6: 4 | B6: Abril | D6: 2024 | G6: FONI
A7: 5 | B7: Mayo
A8: 6 | B8: Junio
A9: 7 | B9: Julio
A10: 8 | B10: Agosto
A11: 9 | B11: Setiembre
A12: 10 | B12: Octubre
A13: 11 | B13: Noviembre
A14: 12 | B14: Diciembre
M15: MICROREDES | P15: CODDISA | Q15: CODRED | R15: MICRORED | T15: ESTABLECIMIENTOS
B16: DISAS | F16: COD_DISA | G16: COD_RED | H16: DESC_RED | I16: CODDISA | J16: CODRED | K16: RED | M16: COD_MIC | N16: COD_DISA | O16: COD_RED | P16: DESC_MICRO | Q16: cod_micro | R16: Columna1 | T16: COD_ESTAB | U16: DESC_ESTAB | V16: COD_2000 | W16: TIPOESTAB | X16: COD_DPTO | Y16: COD_PROV | Z16: COD_DIST | AA16: COD_DISA | AB16: COD_RED | AC16: COD_MIC | AD16: FED | AE16: cod_micro | AF16: DIST | AG16: DISARED | AL16: cod_dpto | AM16: cod_prov | AN16: desc_prov | AO16: cod_provi | AP16: PROVINCIA | AS16: COD_DPTO | AT16: COD_PROV | AU16: COD_DIST | AV16: CODIGO | AW16: DESC_DIST | AX16: LONG_POBLA | AY16: cod_provi | AZ16: cod_distri | BA16: distrito
A17: 11 | B17: CUSCO | C17: 11-CUSCO | F17: 11 | G17: 11 | H17: (ALL) | I17: 11 | J17: 06 | K17: 11-(ALL) | M17: 13 | N17: 11 | O17: 01 | P17: ACOMAYO | Q17: =CONCATENATE(O17,M17) -> 0113 | R17: 13-ACOMAYO | T17: 000026386 | U17: MENTAL QUILLABAMBA | V17: 000026386 | X17: 08 | Y17: 09 | Z17: 01 | AA17: 11 | AB17: 03 | AC17: 01 | AD17: I-2 | AE17: =CONCATENATE(AB17,AC17) -> 0301 | AF17: 1 | AG17: 108 | AH17: =CONCATENATE(AB17,AC17,"-",U17) -> 0301-MENTAL QUILLABAMBA | AL17: 00 | AM17: 00 | AN17: (ALL) | AO17: 0000 | AP17: 00-(ALL) | AS17: 08 | AT17: 01 | AU17: 01 | AV17: =CONCATENATE(AT17,AU17) -> 0101 | AW17: CUSCO | AX17: 0 | AY17: =CONCATENATE(AS17,AT17) -> 0801 | AZ17: =CONCATENATE(AS17,AT17,AU17) -> 080101 | BA17: =CONCATENATE(AT17,AU17,"-",AW17) -> 0101-CUSCO
F18: 11 | G18: 00 | H18: HOSPITAL DE APOYO DEPARTAMENTAL CUSCO | I18: 11 | J18: 00 | K18: 00-HOSPITAL DE APOYO DEPARTAMENTAL CUSCO | M18: 03 | N18: 11 | O18: 02 | P18: ANTA | Q18: =CONCATENATE(O18,M18) -> 0203 | R18: 03-ANTA | T18: 000027948 | U18: ESSALUD PICHARI | V18: 000027948 | X18: 08 | Y18: 09 | Z18: 10 | AA18: 11 | AB18: 05 | AC18: 02 | AD18: I-2 | AE18: =CONCATENATE(AB18,AC18) -> 0502 | AF18: 6 | AG18: 308 | AH18: =CONCATENATE(AB18,AC18,"-",U18) -> 0502-ESSALUD PICHARI | AL18: 08 | AM18: 01 | AN18: CUSCO | AO18: 0801 | AP18: 01-CUSCO | AS18: 08 | AT18: 01 | AU18: 02 | AV18: 0102 | AW18: CCORCA | AX18: 0 | AY18: =CONCATENATE(AS18,AT18) -> 0801 | AZ18: =CONCATENATE(AS18,AT18,AU18) -> 080102 | BA18: =CONCATENATE(AT18,AU18,"-",AW18) -> 0102-CCORCA
F19: 11 | G19: 01 | H19: CUSCO SUR | I19: 11 | J19: 01 | K19: 01-CUSCO SUR | M19: 01 | N19: 11 | O19: 02 | P19: BELEMPAMPA | Q19: 0201 | R19: 01-BELEMPAMPA | T19: 000002289 | U19: HOSPITAL DE APOYO DEPARTAMENTAL CUSCO | V19: 000002289 | W19: 1 | X19: 08 | Y19: 01 | Z19: 01 | AA19: 11 | AB19: 00 | AC19: 00 | AD19: III-1 | AE19: 0000 | AF19: 5 | AG19: 208 | AH19: =CONCATENATE(AB19,AC19,"-",U19) -> 0000-HOSPITAL DE APOYO DEPARTAMENTAL CUSCO | AL19: 08 | AM19: 02 | AN19: ACOMAYO | AO19: 0802 | AP19: 02-ACOMAYO | AS19: 08 | AT19: 01 | AU19: 03 | AV19: 0103 | AW19: POROY | AX19: 0 | AY19: 0801 | AZ19: 080103 | BA19: 0103-POROY
F20: 11 | G20: 02 | H20: CUSCO NORTE | I20: 11 | J20: 02 | K20: 02-CUSCO NORTE | M20: 06 | N20: 11 | O20: 02 | P20: CALCA | Q20: 0206 | R20: 06-CALCA | T20: 000010041 | U20: ADOLFO GUEVARA VELASCO | V20: 000010041 | W20: 1 | X20: 08 | Y20: 01 | Z20: 08 | AA20: 11 | AB20: 02 | AC20: 02 | AD20: III-1 | AE20: 0202 | AF20: 2 | AG20: 208 | AH20: =CONCATENATE(AB20,AC20,"-",U20) -> 0202-ADOLFO GUEVARA VELASCO | AL20: 08 | AM20: 03 | AN20: ANTA | AO20: 0803 | AP20: 03-ANTA | AS20: 08 | AT20: 01 | AU20: 04 | AV20: 0104 | AW20: SAN JERONIMO | AX20: 0 | AY20: 0801 | AZ20: 080104 | BA20: 0104-SAN JERONIMO
B21: Meses | F21: 11 | G21: 03 | H21: LA CONVENCION | I21: 11 | J21: 03 | K21: 03-LA CONVENCION | M21: 03 | N21: 11 | O21: 04 | P21: COMBAPATA | Q21: 0403 | R21: 03-COMBAPATA | T21: 000002420 | U21: ACCOCUNCA | V21: 000002420 | W21: 3 | X21: 08 | Y21: 08 | Z21: 08 | AA21: 11 | AB21: 04 | AC21: 06 | AD21: I-2 | AE21: 0406 | AF21: 5 | AG21: 308 | AH21: =CONCATENATE(AB21,AC21,"-",U21) -> 0406-ACCOCUNCA | AL21: 08 | AM21: 04 | AN21: CALCA | AO21: 0804 | AP21: 04-CALCA | AS21: 08 | AT21: 01 | AU21: 05 | AV21: 0105 | AW21: SAN SEBASTIAN | AX21: 0 | AY21: 0801 | AZ21: 080105 | BA21: 0105-SAN SEBASTIAN
A22: 1 | B22: Enero | F22: 11 | G22: 04 | H22: CANAS-CANCHIS-ESPINAR | I22: 11 | J22: 04 | K22: 04-CANAS-CANCHIS-ESPINAR | M22: 16 | N22: 11 | O22: 01 | P22: CUSCO | Q22: 0116 | R22: 16-CUSCO | T22: 000002423 | U22: IDMA | V22: 000002423 | W22: 3 | X22: 08 | Y22: 09 | Z22: 01 | AA22: 11 | AB22: 03 | AC22: 01 | AD22: I-1 | AE22: 0301 | AF22: 2 | AG22: 208 | AH22: =CONCATENATE(AB22,AC22,"-",U22) -> 0301-IDMA | AL22: 08 | AM22: 05 | AN22: CANAS | AO22: 0805 | AP22: 05-CANAS | AS22: 08 | AT22: 01 | AU22: 06 | AV22: 0106 | AW22: SANTIAGO | AX22: 0 | AY22: 0801 | AZ22: 080106 | BA22: 0106-SANTIAGO
A23: 2 | B23: Febrero | F23: 11 | G23: 05 | H23: KIMBIRI PICHARI | I23: 11 | J23: 05 | K23: 05-KIMBIRI PICHARI | M23: 02 | N23: 11 | O23: 04 | P23: EL DESCANSO | Q23: 0402 | R23: 02-EL DESCANSO | T23: 000002424 | U23: POTRERO | V23: 000002424 | W23: 3 | X23: 08 | Y23: 09 | Z23: 01 | AA23: 11 | AB23: 03 | AC23: 01 | AD23: I-1 | AE23: 0301 | AF23: 5 | AG23: 208 | AH23: 0301-POTRERO | AL23: 08 | AM23: 06 | AN23: CANCHIS | AO23: 0806 | AP23: 06-CANCHIS | AS23: 08 | AT23: 01 | AU23: 07 | AV23: 0107 | AW23: SAYLLA | AX23: 0 | AY23: 0801 | AZ23: 080107 | BA23: 0107-SAYLLA
A24: 3 | B24: Marzo | F24: 11 | G24: 06 | H24: ANTONIO LORENA DEL CUSCO | I24: 11 | J24: 06 | K24: 06-ANTONIO LORENA DEL CUSCO | M24: 00 | N24: 11 | O24: 00 | P24: NO PERTENECE A NINGUNA MICRORED | Q24: 0000 | R24: 00-HOSPITAL REGIONAL | T24: 000002427 | U24: KITENI | V24: 000002427 | W24: 2 | X24: 08 | Y24: 09 | Z24: 02 | AA24: 11 | AB24: 03 | AC24: 04 | AD24: I-4 | AE24: 0304 | AG24: 308 | AH24: 0304-KITENI | AL24: 08 | AM24: 07 | AN24: CHUMBIVILCAS | AO24: 0807 | AP24: 07-CHUMBIVILCAS | AS24: 08 | AT24: 01 | AU24: 08 | AV24: 0108 | AW24: WANCHAQ | AX24: 0 | AY24: 0801 | AZ24: 080108 | BA24: 0108-WANCHAQ
A25: 4 | B25: Abril | F25: 11 | G25: 07 | H25: SICUANI | I25: 11 | J25: 07 | K25: 07-SICUANI | M25: 00 | N25: 11 | O25: 06 | P25: NO PERTENECE A NINGUNA MICRORED | Q25: 0600 | R25: 00-HOSPITAL LORENA | T25: 000002429 | U25: CIRIALO | V25: 000002429 | W25: 3 | X25: 08 | Y25: 09 | Z25: 02 | AA25: 11 | AB25: 03 | AC25: 01 | AD25: I-2 | AE25: 0301 | AF25: 5 | AG25: 308 | AH25: 0301-CIRIALO | AL25: 08 | AM25: 08 | AN25: ESPINAR | AO25: 0808 | AP25: 08-ESPINAR | AS25: 08 | AT25: 02 | AU25: 01 | AV25: 0201 | AW25: ACOMAYO | AX25: 0 | AY25: 0802 | AZ25: 080201 | BA25: 0201-ACOMAYO
A26: 5 | B26: Mayo | F26: 11 | G26: 08 | H26: CHUMBIVILCAS | I26: 11 | J26: 08 | K26: 08-CHUMBIVILCAS | M26: 01 | N26: 11 | O26: 07 | P26: NO PERTENECE A NINGUNA MICRORED | Q26: 0701 | R26: 01-HOSPITAL ESPINAR | T26: 000002430 | U26: PAMPA CONCEPCION | V26: 000002430 | W26: 3 | X26: 08 | Y26: 09 | Z26: 02 | AA26: 11 | AB26: 03 | AC26: 01 | AD26: I-2 | AE26: 0301 | AF26: 6 | AG26: 308 | AH26: 0301-PAMPA CONCEPCION | AL26: 08 | AM26: 09 | AN26: LA CONVENCION | AO26: 0809 | AP26: 09-LA CONVENCION | AS26: 08 | AT26: 02 | AU26: 02 | AV26: 0202 | AW26: ACOPIA | AX26: 0 | AY26: 0802 | AZ26: 080202 | BA26: 0202-ACOPIA
A27: 6 | B27: Junio | F27: 11 | G27: 09 | H27: QUILLABAMBA | I27: 11 | J27: 09 | K27: 09-QUILLABAMBA | M27: 01 | N27: 11 | O27: 09 | P27: NO PERTENECE A NINGUNA MICRORED | Q27: 0901 | R27: 01-HOSPITAL QUILLABAMBA | T27: 000002431 | U27: IVOCHOTE | V27: 000002431 | W27: 3 | X27: 08 | Y27: 09 | Z27: 02 | AA27: 11 | AB27: 03 | AC27: 04 | AD27: I-2 | AE27: 0304 | AF27: 6 | AG27: 308 | AH27: 0304-IVOCHOTE | AL27: 08 | AM27: 10 | AN27: PARURO | AO27: 0810 | AP27: 10-PARURO | AS27: 08 | AT27: 02 | AU27: 03 | AV27: 0203 | AW27: ACOS | AX27: 0 | AY27: 0802 | AZ27: 080203 | BA27: 0203-ACOS
A28: 7 | B28: Julio | F28: 11 | G28: 10 | H28: ESPINAR | I28: 11 | J28: 10 | K28: 10-ESPINAR | M28: 01 | N28: 11 | O28: 10 | P28: NO PERTENECE A NINGUNA MICRORED | Q28: 1001 | R28: 01-HOSPITAL SICUANI | T28: 000002432 | U28: KEPASHIATO | V28: 000002432 | W28: 2 | X28: 08 | Y28: 09 | Z28: 02 | AA28: 11 | AB28: 03 | AC28: 04 | AD28: I-3 | AE28: 0304 | AF28: 1 | AG28: 208 | AH28: 0304-KEPASHIATO | AL28: 08 | AM28: 11 | AN28: PAUCARTAMBO | AO28: 0811 | AP28: 11-PAUCARTAMBO | AS28: 08 | AT28: 02 | AU28: 04 | AV28: 0204 | AW28: MOSOC LLACTA | AX28: 0 | AY28: 0802 | AZ28: 080204 | BA28: 0204-MOSOC LLACTA
A29: 8 | B29: Agosto | C29: 1 | D29: 2 | M29: 05 | N29: 11 | O29: 03 | P29: KAMISEA | Q29: 0305 | R29: 05-KAMISEA | T29: 000002419 | U29: SUYKUTAMBO | V29: 000002419 | W29: 3 | X29: 08 | Y29: 08 | Z29: 07 | AA29: 11 | AB29: 04 | AC29: 06 | AD29: I-2 | AE29: 0406 | AF29: 7 | AG29: 208 | AH29: 0406-SUYKUTAMBO | AL29: 08 | AM29: 12 | AN29: QUISPICANCHI | AO29: 0812 | AP29: 12-QUISPICANCHI | AS29: 08 | AT29: 02 | AU29: 05 | AV29: 0205 | AW29: POMACANCHI | AX29: 0 | AY29: 0802 | AZ29: 080205 | BA29: 0205-POMACANCHI
A30: 9 | B30: Setiembre | M30: 01 | N30: 11 | O30: 05 | P30: KIMBIRI | Q30: 0501 | R30: 01-KIMBIRI | T30: 000002434 | U30: MATERIATO | V30: 000002434 | W30: 3 | X30: 08 | Y30: 09 | Z30: 02 | AA30: 11 | AB30: 03 | AC30: 04 | AD30: I-2 | AE30: 0304 | AF30: 1 | AG30: 308 | AH30: 0304-MATERIATO | AL30: 08 | AM30: 13 | AN30: URUBAMBA | AO30: 0813 | AP30: 13-URUBAMBA | AS30: 08 | AT30: 02 | AU30: 06 | AV30: 0206 | AW30: RONDOCAN | AX30: 0 | AY30: 0802 | AZ30: 080206 | BA30: 0206-RONDOCAN
A31: 10 | B31: Octubre | C31: 01-CUSCO SUR | M31: 04 | N31: 11 | O31: 03 | P31: KITENI | Q31: 0304 | R31: 04-KITENI | T31: 000002436 | U31: NUEVA LUZ | V31: 000002436 | W31: 3 | X31: 08 | Y31: 09 | Z31: 14 | AA31: 11 | AB31: 03 | AC31: 05 | AD31: I-1 | AE31: 0305 | AG31: 208 | AH31: 0305-NUEVA LUZ | AS31: 08 | AT31: 02 | AU31: 07 | AV31: 0207 | AW31: SANGARARA | AX31: 0 | AY31: 0802 | AZ31: 080207 | BA31: 0207-SANGARARA
A32: 11 | B32: Noviembre | C32: 06-(ALL) | M32: 04 | N32: 11 | O32: 02 | P32: LIMATAMBO | Q32: 0204 | R32: 04-LIMATAMBO | T32: 000002439 | U32: PALMA REAL | V32: 000002439 | W32: 2 | X32: 08 | Y32: 09 | Z32: 02 | AA32: 11 | AB32: 03 | AC32: 01 | AD32: I-4 | AE32: 0301 | AF32: 8 | AG32: 208 | AH32: 0301-PALMA REAL | AS32: 08 | AT32: 03 | AU32: 01 | AV32: 0301 | AW32: ANTA | AX32: 0 | AY32: 0803 | AZ32: 080301 | BA32: 0301-ANTA
A33: 12 | B33: Diciembre | M33: 01 | N33: 11 | O33: 08 | P33: LIVITACA | Q33: 0801 | R33: 01-LIVITACA | T33: 000002440 | U33: PANGOA | V33: 000002440 | W33: 3 | X33: 08 | Y33: 09 | Z33: 02 | AA33: 11 | AB33: 03 | AC33: 04 | AD33: I-2 | AE33: 0304 | AF33: 2 | AG33: 108 | AH33: 0304-PANGOA | AS33: 08 | AT33: 03 | AU33: 02 | AV33: 0302 | AW33: ANCAHUASI | AX33: 0 | AY33: 0803 | AZ33: 080302 | BA33: 0302-ANCAHUASI
A34: 13 | B34: 1er. Trimestre | M34: 02 | N34: 11 | O34: 03 | P34: MARANURA | Q34: 0302 | R34: 02-MARANURA | T34: 000002441 | U34: PUERTO HUALLANA | V34: 000002441 | W34: 3 | X34: 08 | Y34: 09 | Z34: 14 | AA34: 11 | AB34: 03 | AC34: 05 | AD34: I-1 | AE34: 0305 | AF34: 3 | AG34: 208 | AH34: 0305-PUERTO HUALLANA | AS34: 08 | AT34: 03 | AU34: 03 | AV34: 0303 | AW34: CACHIMAYO | AX34: 0 | AY34: 0803 | AZ34: 080303 | BA34: 0303-CACHIMAYO
A35: 14 | B35: 2do. Trimestre | M35: 15 | N35: 11 | O35: 01 | P35: OCONGATE | Q35: 0115 | R35: 15-OCONGATE | T35: 000002442 | U35: PUERTO RICO | V35: 000002442 | W35: 3 | X35: 08 | Y35: 09 | Z35: 14 | AA35: 11 | AB35: 03 | AC35: 05 | AD35: I-1 | AE35: 0305 | AG35: 208 | AH35: 0305-PUERTO RICO | AS35: 08 | AT35: 03 | AU35: 04 | AV35: 0304 | AW35: CHINCHAYPUJIO | AX35: 0 | AY35: 0803 | AZ35: 080304 | BA35: 0304-CHINCHAYPUJIO
A36: 15 | B36: 3er. Trimestre | M36: 05 | N36: 11 | O36: 04 | P36: PAMPAPHALLA | Q36: 0405 | R36: 05-PAMPAPHALLA | T36: 000002443 | U36: SANIRIATO | V36: 000002443 | W36: 3 | X36: 08 | Y36: 09 | Z36: 02 | AA36: 11 | AB36: 03 | AC36: 04 | AD36: I-1 | AE36: 0304 | AF36: 9 | AG36: 208 | AH36: 0304-SANIRIATO | AS36: 08 | AT36: 03 | AU36: 05 | AV36: 0305 | AW36: HUAROCONDO | AX36: 0 | AY36: 0803 | AZ36: 080305 | BA36: 0305-HUAROCONDO
A37: 16 | B37: 4to. Trimestre | M37: 03 | N37: 11 | O37: 01 | P37: PARURO | Q37: 0103 | R37: 03-PARURO | T37: 000002433 | U37: KORIBENI | V37: 000002433 | W37: 3 | X37: 08 | Y37: 09 | Z37: 02 | AA37: 11 | AB37: 03 | AC37: 01 | AD37: I-2 | AE37: 0301 | AF37: 1 | AG37: 208 | AH37: 0301-KORIBENI | AS37: 08 | AT37: 03 | AU37: 06 | AV37: 0306 | AW37: LIMATAMBO | AX37: 0 | AY37: 0803 | AZ37: 080306 | BA37: 0306-LIMATAMBO
A38: 17 | B38: 1er. Semestre | M38: 06 | N38: 11 | O38: 01 | P38: PAUCARTAMBO | Q38: 0106 | R38: 06-PAUCARTAMBO | T38: 000002410 | U38: YAURI | V38: 000002410 | W38: 2 | X38: 08 | Y38: 08 | Z38: 01 | AA38: 11 | AB38: 04 | AC38: 06 | AD38: I-4 | AE38: 0406 | AF38: 2 | AG38: 208 | AH38: 0406-YAURI | AS38: 08 | AT38: 03 | AU38: 07 | AV38: 0307 | AW38: MOLLEPATA | AX38: 0 | AY38: 0803 | AZ38: 080307 | BA38: 0307-MOLLEPATA
A39: 18 | B39: 2do. Semestre | M39: 02 | N39: 11 | O39: 05 | P39: PICHARI | Q39: 0502 | R39: 02-PICHARI | T39: 000002397 | U39: TINTA | V39: 000002397 | W39: 2 | X39: 08 | Y39: 06 | Z39: 08 | AA39: 11 | AB39: 04 | AC39: 03 | AD39: I-3 | AE39: 0403 | AF39: 3 | AG39: 308 | AH39: 0403-TINTA | AS39: 08 | AT39: 03 | AU39: 08 | AV39: 0308 | AW39: PUCYURA | AX39: 0 | AY39: 0803 | AZ39: 080308 | BA39: 0308-PUCYURA
A40: 19 | B40: Anual | M40: 05 | N40: 11 | O40: 02 | P40: PISAC | Q40: 0205 | R40: 05-PISAC | T40: 000002398 | U40: SANTO TOMAS | V40: 000002398 | W40: 1 | X40: 08 | Y40: 07 | Z40: 01 | AA40: 11 | AB40: 08 | AC40: 09 | AD40: II-1 | AE40: 0809 | AF40: 4 | AG40: 308 | AH40: 0809-SANTO TOMAS | AS40: 08 | AT40: 03 | AU40: 09 | AV40: 0309 | AW40: ZURITE | AX40: 0 | AY40: 0803 | AZ40: 080309 | BA40: 0309-ZURITE
M41: 06 | N41: 11 | O41: 03 | P41: PUCYURA | Q41: 0306 | R41: 06-PUCYURA | T41: 000002400 | U41: ALHUACCHULLO | V41: 000002400 | W41: 3 | X41: 08 | Y41: 07 | Z41: 01 | AA41: 11 | AB41: 08 | AC41: 09 | AD41: I-2 | AE41: 0809 | AF41: 4 | AG41: 308 | AH41: 0809-ALHUACCHULLO | AS41: 08 | AT41: 04 | AU41: 01 | AV41: 0401 | AW41: CALCA | AX41: 0 | AY41: 0804 | AZ41: 080401 | BA41: 0401-CALCA
M42: 03 | N42: 11 | O42: 03 | P42: QUELLOUNO | Q42: 0303 | R42: 03-QUELLOUNO | T42: 000002401 | U42: CCAPACMARCA | V42: 000002401 | W42: 2 | X42: 08 | Y42: 07 | Z42: 02 | AA42: 11 | AB42: 08 | AC42: 09 | AD42: I-3 | AE42: 0809 | AF42: 4 | AG42: 308 | AH42: 0809-CCAPACMARCA | AS42: 08 | AT42: 04 | AU42: 02 | AV42: 0402 | AW42: COYA | AX42: 0 | AY42: 0804 | AZ42: 080402 | BA42: 0402-COYA
M43: 01 | N43: 11 | O43: 03 | P43: SANTA ANA | Q43: 0301 | R43: 01-SANTA ANA | T43: 000002402 | U43: CHAMACA | V43: 000002402 | W43: 3 | X43: 08 | Y43: 07 | Z43: 03 | AA43: 11 | AB43: 08 | AC43: 01 | AD43: I-2 | AE43: 0801 | AF43: 6 | AG43: 208 | AH43: 0801-CHAMACA | AS43: 08 | AT43: 04 | AU43: 03 | AV43: 0403 | AW43: LAMAY | AX43: 0 | AY43: 0804 | AZ43: 080403 | BA43: 0403-LAMAY
M44: 09 | N44: 11 | O44: 08 | P44: SANTO TOMAS | Q44: 0809 | R44: 09-SANTO TOMAS | T44: 000002407 | U44: LLUSCO | V44: 000002407 | W44: 3 | X44: 08 | Y44: 07 | Z44: 06 | AA44: 11 | AB44: 08 | AC44: 09 | AD44: I-2 | AE44: 0809 | AF44: 2 | AG44: 208 | AH44: 0809-LLUSCO | AS44: 08 | AT44: 04 | AU44: 04 | AV44: 0404 | AW44: LARES | AX44: 0 | AY44: 0804 | AZ44: 080404 | BA44: 0404-LARES
M45: 09 | N45: 11 | O45: 02 | P45: SIETE CUARTONES | Q45: 0209 | R45: 09-SIETE CUARTONES | T45: 000002417 | U45: PICHIGUA ESPINAR | V45: 000002417 | W45: 3 | X45: 08 | Y45: 08 | Z45: 06 | AA45: 11 | AB45: 04 | AC45: 06 | AD45: I-2 | AE45: 0406 | AF45: 4 | AG45: 208 | AH45: 0406-PICHIGUA ESPINAR | AS45: 08 | AT45: 04 | AU45: 05 | AV45: 0405 | AW45: PISAC | AX45: 0 | AY45: 0804 | AZ45: 080405 | BA45: 0405-PISAC
M46: 04 | N46: 11 | O46: 04 | P46: TECHO OBRERO | Q46: 0404 | R46: 04-TECHO OBRERO | T46: 000002409 | U46: VELILLE | V46: 000002409 | W46: 2 | X46: 08 | Y46: 07 | Z46: 08 | AA46: 11 | AB46: 08 | AC46: 09 | AD46: I-3 | AE46: 0809 | AF46: 5 | AG46: 308 | AH46: 0809-VELILLE | AS46: 08 | AT46: 04 | AU46: 06 | AV46: 0406 | AW46: SAN SALVADOR | AX46: 0 | AY46: 0804 | AZ46: 080406 | BA46: 0406-SAN SALVADOR
M47: 12 | N47: 11 | O47: 01 | P47: URCOS | Q47: 0112 | R47: 12-URCOS | T47: 000002418 | U47: SAN MIGUEL | V47: 000002418 | W47: 3 | X47: 08 | Y47: 08 | Z47: 06 | AA47: 11 | AB47: 04 | AC47: 06 | AD47: I-1 | AE47: 0406 | AF47: 6 | AG47: 308 | AH47: 0406-SAN MIGUEL | AS47: 08 | AT47: 04 | AU47: 07 | AV47: 0407 | AW47: TARAY | AX47: 0 | AY47: 0804 | AZ47: 080407 | BA47: 0407-TARAY
M48: 07 | N48: 11 | O48: 02 | P48: URUBAMBA | Q48: 0207 | R48: 07-URUBAMBA | T48: 000002411 | U48: CONDOROMA | V48: 000002411 | W48: 3 | X48: 08 | Y48: 08 | Z48: 02 | AA48: 11 | AB48: 04 | AC48: 06 | AD48: I-1 | AE48: 0406 | AF48: 6 | AG48: 308 | AH48: 0406-CONDOROMA | AS48: 08 | AT48: 04 | AU48: 08 | AV48: 0408 | AW48: YANATILE | AX48: 0 | AY48: 0804 | AZ48: 080408 | BA48: 0408-YANATILE
M49: 02 | N49: 11 | O49: 02 | P49: WANCHAQ | Q49: 0202 | R49: 02-WANCHAQ | T49: 000002413 | U49: URINSAYA | V49: 000002413 | W49: 3 | X49: 08 | Y49: 08 | Z49: 03 | AA49: 11 | AB49: 04 | AC49: 06 | AD49: I-2 | AE49: 0406 | AF49: 1 | AG49: 208 | AH49: 0406-URINSAYA | AS49: 08 | AT49: 05 | AU49: 01 | AV49: 0501 | AW49: YANAOCA | AX49: 0 | AY49: 0805 | AZ49: 080501 | BA49: 0501-YANAOCA
M50: 01 | N50: 11 | O50: 04 | P50: YANAOCA | Q50: 0401 | R50: 01-YANAOCA | T50: 000002414 | U50: HUAYHUAHUASI | V50: 000002414 | W50: 3 | X50: 08 | Y50: 08 | Z50: 03 | AA50: 11 | AB50: 04 | AC50: 06 | AD50: I-2 | AE50: 0406 | AF50: 3 | AG50: 308 | AH50: 0406-HUAYHUAHUASI | AS50: 08 | AT50: 05 | AU50: 02 | AV50: 0502 | AW50: CHECCA | AX50: 0 | AY50: 0805 | AZ50: 080502 | BA50: 0502-CHECCA
M51: 08 | N51: 11 | O51: 02 | P51: YANATILE | Q51: 0208 | R51: 08-YANATILE | T51: 000002415 | U51: OCCORURO | V51: 000002415 | W51: 3 | X51: 08 | Y51: 08 | Z51: 04 | AA51: 11 | AB51: 04 | AC51: 06 | AD51: I-2 | AE51: 0406 | AF51: 5 | AG51: 208 | AH51: 0406-OCCORURO | AS51: 08 | AT51: 05 | AU51: 03 | AV51: 0503 | AW51: KUNTURKANKI | AX51: 0 | AY51: 0805 | AZ51: 080503 | BA51: 0503-KUNTURKANKI
M52: 06 | N52: 11 | O52: 04 | P52: YAURI | Q52: 0406 | R52: 06-YAURI | T52: 000002455 | U52: HUAYOPATA | V52: 000002455 | W52: 3 | X52: 08 | Y52: 09 | Z52: 03 | AA52: 11 | AB52: 03 | AC52: 02 | AD52: I-1 | AE52: 0302 | AG52: 308 | AH52: 0302-HUAYOPATA | AS52: 08 | AT52: 05 | AU52: 04 | AV52: 0504 | AW52: LANGUI | AX52: 0 | AY52: 0805 | AZ52: 080504 | BA52: 0504-LANGUI
M53: 01 | N53: 11 | O53: 01 | P53: (ALL) | Q53: 0101 | R53: 01-(ALL) | T53: 000002416 | U53: PALLPATA | V53: 000002416 | W53: 3 | X53: 08 | Y53: 08 | Z53: 05 | AA53: 11 | AB53: 04 | AC53: 06 | AD53: I-2 | AE53: 0406 | AF53: 4 | AG53: 308 | AH53: 0406-PALLPATA | AS53: 08 | AT53: 05 | AU53: 05 | AV53: 0505 | AW53: LAYO | AX53: 0 | AY53: 0805 | AZ53: 080505 | BA53: 0505-LAYO
M54: 02 | N54: 11 | O54: 02 | P54: (ALL) | Q54: 0202 | R54: 02-(ALL) | T54: 000002446 | U54: CHACCO | V54: 000002446 | W54: 3 | X54: 08 | Y54: 09 | Z54: 02 | AA54: 11 | AB54: 03 | AC54: 01 | AD54: I-1 | AE54: 0301 | AF54: 5 | AG54: 208 | AH54: 0301-CHACCO | AS54: 08 | AT54: 05 | AU54: 06 | AV54: 0506 | AW54: PAMPAMARCA | AX54: 0 | AY54: 0805 | AZ54: 080506 | BA54: 0506-PAMPAMARCA
M55: 03 | N55: 11 | O55: 03 | P55: (ALL) | Q55: 0303 | R55: 03-(ALL) | T55: 000002408 | U55: QUIÑOTA | V55: 000002408 | W55: 3 | X55: 08 | Y55: 07 | Z55: 07 | AA55: 11 | AB55: 08 | AC55: 09 | AD55: I-2 | AE55: 0809 | AF55: 3 | AG55: 308 | AH55: 0809-QUIÑOTA | AS55: 08 | AT55: 05 | AU55: 07 | AV55: 0507 | AW55: QUEHUE | AX55: 0 | AY55: 0805 | AZ55: 080507 | BA55: 0507-QUEHUE
M56: 04 | N56: 11 | O56: 04 | P56: (ALL) | Q56: 0404 | R56: 04-(ALL) | T56: 000002502 | U56: CCOYABAMBA | V56: 000002502 | W56: 3 | X56: 08 | Y56: 10 | Z56: 03 | AA56: 11 | AB56: 01 | AC56: 03 | AD56: I-2 | AE56: 0103 | AF56: 3 | AG56: 308 | AH56: 0103-CCOYABAMBA | AS56: 08 | AT56: 05 | AU56: 08 | AV56: 0508 | AW56: TUPAC AMARU | AX56: 0 | AY56: 0805 | AZ56: 080508 | BA56: 0508-TUPAC AMARU
M57: 05 | N57: 11 | O57: 05 | P57: (ALL) | Q57: 0505 | R57: 05-(ALL) | T57: 000002482 | U57: INCAHUASI | V57: 000002482 | W57: 2 | X57: 08 | Y57: 09 | Z57: 11 | AA57: 11 | AB57: 03 | AC57: 06 | AD57: I-3 | AE57: 0306 | AG57: 308 | AH57: 0306-INCAHUASI | AS57: 08 | AT57: 06 | AU57: 01 | AV57: 0601 | AW57: SICUANI | AX57: 0 | AY57: 0806 | AZ57: 080601 | BA57: 0601-SICUANI
M58: 06 | N58: 11 | O58: 06 | P58: (ALL) | Q58: 0606 | R58: 06-(ALL) | T58: 000002484 | U58: OYARA | V58: 000002484 | W58: 3 | X58: 08 | Y58: 09 | Z58: 09 | AA58: 11 | AB58: 03 | AC58: 06 | AD58: I-1 | AE58: 0306 | AG58: 208 | AH58: 0306-OYARA | AS58: 08 | AT58: 06 | AU58: 02 | AV58: 0602 | AW58: CHECACUPE | AX58: 0 | AY58: 0806 | AZ58: 080602 | BA58: 0602-CHECACUPE
M59: 07 | N59: 11 | O59: 07 | P59: (ALL) | Q59: 0707 | R59: 07-(ALL) | T59: 000002490 | U59: ARMA | V59: 000002490 | W59: 3 | X59: 08 | Y59: 09 | Z59: 09 | AA59: 11 | AB59: 03 | AC59: 06 | AD59: I-1 | AE59: 0306 | AG59: 308 | AH59: 0306-ARMA | AS59: 08 | AT59: 06 | AU59: 03 | AV59: 0603 | AW59: COMBAPATA | AX59: 0 | AY59: 0806 | AZ59: 080603 | BA59: 0603-COMBAPATA
M60: 08 | N60: 11 | O60: 08 | P60: (ALL) | Q60: 0808 | R60: 08-(ALL) | T60: 000002492 | U60: PALTAYBAMBA | V60: 000002492 | W60: 3 | X60: 08 | Y60: 09 | Z60: 09 | AA60: 11 | AB60: 03 | AC60: 06 | AD60: I-1 | AE60: 0306 | AG60: 208 | AH60: 0306-PALTAYBAMBA | AS60: 08 | AT60: 06 | AU60: 04 | AV60: 0604 | AW60: MARANGANI | AX60: 0 | AY60: 0806 | AZ60: 080604 | BA60: 0604-MARANGANI
M61: 09 | N61: 11 | O61: 09 | P61: (ALL) | Q61: 0909 | R61: 09-(ALL) | T61: 000002496 | U61: OMAYA | V61: 000002496 | W61: 3 | X61: 08 | Y61: 09 | Z61: 10 | AA61: 11 | AB61: 05 | AC61: 02 | AD61: I-2 | AE61: 0502 | AG61: 308 | AH61: 0502-OMAYA | AS61: 08 | AT61: 06 | AU61: 05 | AV61: 0605 | AW61: PITUMARCA | AX61: 0 | AY61: 0806 | AZ61: 080605 | BA61: 0605-PITUMARCA
M62: 10 | N62: 11 | O62: 10 | P62: (ALL) | Q62: 1010 | R62: 10-(ALL) | T62: 000002498 | U62: PUERTO MAYO | V62: 000002498 | W62: 3 | X62: 08 | Y62: 09 | Z62: 10 | AA62: 11 | AB62: 05 | AC62: 02 | AD62: I-2 | AE62: 0502 | AG62: 308 | AH62: 0502-PUERTO MAYO | AS62: 08 | AT62: 06 | AU62: 06 | AV62: 0606 | AW62: SAN PABLO | AX62: 0 | AY62: 0806 | AZ62: 080606 | BA62: 0606-SAN PABLO
T63: 000002453 | U63: HUYRO | V63: 000002453 | W63: 2 | X63: 08 | Y63: 09 | Z63: 03 | AA63: 11 | AB63: 03 | AC63: 02 | AD63: I-3 | AE63: 0302 | AG63: 308 | AH63: 0302-HUYRO | AS63: 08 | AT63: 06 | AU63: 07 | AV63: 0607 | AW63: SAN PEDRO | AX63: 0 | AY63: 0806 | AZ63: 080607 | BA63: 0607-SAN PEDRO
T64: 000002501 | U64: CCAPI | V64: 000002501 | W64: 3 | X64: 08 | Y64: 10 | Z64: 03 | AA64: 11 | AB64: 01 | AC64: 03 | AD64: I-2 | AE64: 0103 | AG64: 208 | AH64: 0103-CCAPI | AS64: 08 | AT64: 06 | AU64: 08 | AV64: 0608 | AW64: TINTA | AX64: 0 | AY64: 0806 | AZ64: 080608 | BA64: 0608-TINTA
T65: 000002478 | U65: TOTORA | V65: 000002478 | W65: 3 | X65: 08 | Y65: 09 | Z65: 08 | AA65: 11 | AB65: 03 | AC65: 02 | AD65: I-1 | AE65: 0302 | AG65: 308 | AH65: 0302-TOTORA | AS65: 08 | AT65: 07 | AU65: 01 | AV65: 0701 | AW65: SANTO TOMAS | AX65: 0 | AY65: 0807 | AZ65: 080701 | BA65: 0701-SANTO TOMAS
T66: 000002503 | U66: COLCHA | V66: 000002503 | W66: 3 | X66: 08 | Y66: 10 | Z66: 04 | AA66: 11 | AB66: 01 | AC66: 03 | AD66: I-1 | AE66: 0103 | AG66: 208 | AH66: 0103-COLCHA | AS66: 08 | AT66: 07 | AU66: 02 | AV66: 0702 | AW66: CAPACMARCA | AX66: 0 | AY66: 0807 | AZ66: 080702 | BA66: 0702-CAPACMARCA
T67: 000002504 | U67: HUANOQUITE | V67: 000002504 | W67: 3 | X67: 08 | Y67: 10 | Z67: 05 | AA67: 11 | AB67: 01 | AC67: 03 | AD67: I-2 | AE67: 0103 | AG67: 208 | AH67: 0103-HUANOQUITE | AS67: 08 | AT67: 07 | AU67: 03 | AV67: 0703 | AW67: CHAMACA | AX67: 0 | AY67: 0807 | AZ67: 080703 | BA67: 0703-CHAMACA
T68: 000002505 | U68: OMACHA | V68: 000002505 | W68: 3 | X68: 08 | Y68: 10 | Z68: 06 | AA68: 11 | AB68: 01 | AC68: 03 | AD68: I-2 | AE68: 0103 | AG68: 308 | AH68: 0103-OMACHA | AS68: 08 | AT68: 07 | AU68: 04 | AV68: 0704 | AW68: COLQUEMARCA | AX68: 0 | AY68: 0807 | AZ68: 080704 | BA68: 0704-COLQUEMARCA
T69: 000002506 | U69: ANTAPALLPA | V69: 000002506 | W69: 3 | X69: 08 | Y69: 10 | Z69: 06 | AA69: 11 | AB69: 01 | AC69: 03 | AD69: I-2 | AE69: 0103 | AF69: 4 | AG69: 208 | AH69: 0103-ANTAPALLPA | AS69: 08 | AT69: 07 | AU69: 05 | AV69: 0705 | AW69: LIVITACA | AX69: 0 | AY69: 0807 | AZ69: 080705 | BA69: 0705-LIVITACA
T70: 000002507 | U70: PACCARECTAMBO | V70: 000002507 | W70: 3 | X70: 08 | Y70: 10 | Z70: 07 | AA70: 11 | AB70: 01 | AC70: 03 | AD70: I-2 | AE70: 0103 | AF70: 4 | AG70: 308 | AH70: 0103-PACCARECTAMBO | AS70: 08 | AT70: 07 | AU70: 06 | AV70: 0706 | AW70: LLUSCO | AX70: 0 | AY70: 0807 | AZ70: 080706 | BA70: 0706-LLUSCO
T71: 000002508 | U71: PILLPINTO | V71: 000002508 | W71: 3 | X71: 08 | Y71: 10 | Z71: 08 | AA71: 11 | AB71: 01 | AC71: 13 | AD71: I-1 | AE71: 0113 | AG71: 308 | AH71: 0113-PILLPINTO | AS71: 08 | AT71: 07 | AU71: 07 | AV71: 0707 | AW71: QUIÑOTA | AX71: 0 | AY71: 0807 | AZ71: 080707 | BA71: 0707-QUIÑOTA
T72: 000002509 | U72: YAURISQUE | V72: 000002509 | W72: 2 | X72: 08 | Y72: 10 | Z72: 09 | AA72: 11 | AB72: 01 | AC72: 03 | AD72: I-3 | AE72: 0103 | AF72: 6 | AG72: 208 | AH72: 0103-YAURISQUE | AS72: 08 | AT72: 07 | AU72: 08 | AV72: 0708 | AW72: VELILLE | AX72: 0 | AY72: 0807 | AZ72: 080708 | BA72: 0708-VELILLE
T73: 000002500 | U73: ACCHA | V73: 000002500 | W73: 2 | X73: 08 | Y73: 10 | Z73: 02 | AA73: 11 | AB73: 01 | AC73: 03 | AD73: I-3 | AE73: 0103 | AF73: 1 | AG73: 308 | AH73: 0103-ACCHA | AS73: 08 | AT73: 08 | AU73: 01 | AV73: 0801 | AW73: ESPINAR | AX73: 0 | AY73: 0808 | AZ73: 080801 | BA73: 0801-ESPINAR
T74: 000002465 | U74: QUELLOUNO | V74: 000002465 | W74: 2 | X74: 08 | Y74: 09 | Z74: 06 | AA74: 11 | AB74: 03 | AC74: 03 | AD74: I-4 | AE74: 0303 | AF74: 2 | AG74: 308 | AH74: 0303-QUELLOUNO | AS74: 08 | AT74: 08 | AU74: 02 | AV74: 0802 | AW74: CONDOROMA | AX74: 0 | AY74: 0808 | AZ74: 080802 | BA74: 0802-CONDOROMA
T75: 000002452 | U75: SHIVANKORENI | V75: 000002452 | W75: 3 | X75: 08 | Y75: 09 | Z75: 14 | AA75: 11 | AB75: 03 | AC75: 05 | AD75: I-2 | AE75: 0305 | AG75: 208 | AH75: 0305-SHIVANKORENI | AS75: 08 | AT75: 08 | AU75: 03 | AV75: 0803 | AW75: COPORAQUE | AX75: 0 | AY75: 0808 | AZ75: 080803 | BA75: 0803-COPORAQUE
T76: 000002396 | U76: SAN PEDRO CANCHIS | V76: 000002396 | W76: 3 | X76: 08 | Y76: 06 | Z76: 07 | AA76: 11 | AB76: 04 | AC76: 05 | AD76: I-2 | AE76: 0405 | AF76: 7 | AG76: 208 | AH76: 0405-SAN PEDRO CANCHIS | AS76: 08 | AT76: 08 | AU76: 04 | AV76: 0804 | AW76: OCORURO | AX76: 0 | AY76: 0808 | AZ76: 080804 | BA76: 0804-OCORURO
T77: 000002454 | U77: ALFAMAYO | V77: 000002454 | W77: 3 | X77: 08 | Y77: 09 | Z77: 03 | AA77: 11 | AB77: 03 | AC77: 02 | AD77: I-1 | AE77: 0302 | AF77: 7 | AG77: 308 | AH77: 0302-ALFAMAYO | AS77: 08 | AT77: 08 | AU77: 05 | AV77: 0805 | AW77: PALLPATA | AX77: 0 | AY77: 0808 | AZ77: 080805 | BA77: 0805-PALLPATA
T78: 000002391 | U78: OCCOBAMBA MARANGANI | V78: 000002391 | W78: 3 | X78: 08 | Y78: 06 | Z78: 04 | AA78: 11 | AB78: 04 | AC78: 04 | AD78: I-2 | AE78: 0404 | AF78: 8 | AG78: 308 | AH78: 0404-OCCOBAMBA MARANGANI | AS78: 08 | AT78: 08 | AU78: 06 | AV78: 0806 | AW78: PICHIGUA | AX78: 0 | AY78: 0808 | AZ78: 080806 | BA78: 0806-PICHIGUA
T79: 000002456 | U79: AMAYBAMBA | V79: 000002456 | W79: 3 | X79: 08 | Y79: 09 | Z79: 03 | AA79: 11 | AB79: 03 | AC79: 02 | AD79: I-2 | AE79: 0302 | AF79: 11 | AG79: 308 | AH79: 0302-AMAYBAMBA | AS79: 08 | AT79: 08 | AU79: 07 | AV79: 0807 | AW79: SUYCKUTAMBO | AX79: 0 | AY79: 0808 | AZ79: 080807 | BA79: 0807-SUYCKUTAMBO
T80: 000002458 | U80: MARANURA | V80: 000002458 | W80: 2 | X80: 08 | Y80: 09 | Z80: 04 | AA80: 11 | AB80: 03 | AC80: 02 | AD80: I-4 | AE80: 0302 | AF80: 12 | AG80: 208 | AH80: 0302-MARANURA | AS80: 08 | AT80: 08 | AU80: 08 | AV80: 0808 | AW80: ALTO PICHIGUA | AX80: 0 | AY80: 0808 | AZ80: 080808 | BA80: 0808-ALTO PICHIGUA
T81: 000002460 | U81: SANTA MARIA | V81: 000002460 | W81: 3 | X81: 08 | Y81: 09 | Z81: 04 | AA81: 11 | AB81: 03 | AC81: 02 | AD81: I-2 | AE81: 0302 | AF81: 12 | AG81: 308 | AH81: 0302-SANTA MARIA | AS81: 08 | AT81: 09 | AU81: 01 | AV81: =CONCATENATE(AT81,AU81) -> 0901 | AW81: SANTA ANA | AX81: 0 | AY81: 0809 | AZ81: 080901 | BA81: 0901-SANTA ANA
T82: 000002480 | U82: PUCYURA | V82: 000002480 | W82: 2 | X82: 08 | Y82: 09 | Z82: 09 | AA82: 11 | AB82: 03 | AC82: 06 | AD82: I-4 | AE82: =CONCATENATE(AB82,AC82) -> 0306 | AF82: 1 | AG82: 308 | AH82: 0306-PUCYURA | AS82: 08 | AT82: 09 | AU82: 02 | AV82: 0902 | AW82: ECHARATE | AX82: 0 | AY82: =CONCATENATE(AS82,AT82) -> 0809 | AZ82: =CONCATENATE(AS82,AT82,AU82) -> 080902 | BA82: =CONCATENATE(AT82,AU82,"-",AW82) -> 0902-ECHARATE
T83: 000002463 | U83: CHINGANILLA | V83: 000002463 | W83: 3 | X83: 08 | Y83: 09 | Z83: 05 | AA83: 11 | AB83: 03 | AC83: 03 | AD83: I-1 | AE83: 0303 | AF83: 2 | AG83: 208 | AH83: 0303-CHINGANILLA | AS83: 08 | AT83: 09 | AU83: 03 | AV83: 0903 | AW83: HUAYOPATA | AX83: 0 | AY83: 0809 | AZ83: 080903 | BA83: 0903-HUAYOPATA
T84: 000002303 | U84: SANTA ROSA | V84: 000002303 | W84: 2 | X84: 08 | Y84: 01 | Z84: 05 | AA84: 11 | AB84: 01 | AC84: 16 | AD84: I-3 | AE84: 0116 | AF84: 6 | AG84: 308 | AH84: 0116-SANTA ROSA | AS84: 08 | AT84: 09 | AU84: 04 | AV84: 0904 | AW84: MARANURA | AX84: 0 | AY84: 0809 | AZ84: 080904 | BA84: 0904-MARANURA
T85: 000002467 | U85: PUENTE SANTIAGO | V85: 000002467 | W85: 3 | X85: 08 | Y85: 09 | Z85: 06 | AA85: 11 | AB85: 02 | AC85: 08 | AD85: I-2 | AE85: 0208 | AF85: 6 | AG85: 308 | AH85: 0208-PUENTE SANTIAGO | AS85: 08 | AT85: 09 | AU85: 05 | AV85: 0905 | AW85: OCOBAMBA | AX85: 0 | AY85: 0809 | AZ85: 080905 | BA85: 0905-OCOBAMBA
T86: 000002468 | U86: SAN MARTIN | V86: 000002468 | W86: 3 | X86: 08 | Y86: 09 | Z86: 06 | AA86: 11 | AB86: 03 | AC86: 03 | AD86: I-2 | AE86: 0303 | AG86: 308 | AH86: =CONCATENATE(AB86,AC86,"-",U86) -> 0303-SAN MARTIN | AS86: 08 | AT86: 09 | AU86: 06 | AV86: 0906 | AW86: QUELLOUNO | AX86: 0 | AY86: 0809 | AZ86: 080906 | BA86: 0906-QUELLOUNO
T87: 000002469 | U87: SAN JUAN DE KIMBIRI-VRAEM | V87: 000002469 | W87: 1 | X87: 08 | Y87: 09 | Z87: 07 | AA87: 11 | AB87: 05 | AC87: 01 | AD87: II-E | AE87: 0501 | AG87: 208 | AH87: 0501-SAN JUAN DE KIMBIRI-VRAEM | AS87: 08 | AT87: 09 | AU87: 07 | AV87: 0907 | AW87: KIMBIRI | AX87: 0 | AY87: 0809 | AZ87: 080907 | BA87: 0907-KIMBIRI
T88: 000002470 | U88: CHIRUMPIARI | V88: 000002470 | W88: 3 | X88: 08 | Y88: 09 | Z88: 07 | AA88: 11 | AB88: 05 | AC88: 01 | AD88: I-2 | AE88: 0501 | AF88: 5 | AG88: 308 | AH88: 0501-CHIRUMPIARI | AS88: 08 | AT88: 09 | AU88: 08 | AV88: 0908 | AW88: SANTA TERESA | AX88: 0 | AY88: 0809 | AZ88: 080908 | BA88: 0908-SANTA TERESA
T89: 000002471 | U89: LOBO TAHUANTINSUYO | V89: 000002471 | W89: 2 | X89: 08 | Y89: 09 | Z89: 07 | AA89: 11 | AB89: 05 | AC89: 01 | AD89: I-3 | AE89: 0501 | AF89: 6 | AG89: 308 | AH89: 0501-LOBO TAHUANTINSUYO | AS89: 08 | AT89: 09 | AU89: 09 | AV89: 0909 | AW89: VILCABAMBA | AX89: 0 | AY89: 0809 | AZ89: 080909 | BA89: 0909-VILCABAMBA
T90: 000002472 | U90: MAPITUNARI | V90: 000002472 | W90: 3 | X90: 08 | Y90: 09 | Z90: 07 | AA90: 11 | AB90: 05 | AC90: 01 | AD90: I-2 | AE90: 0501 | AF90: 4 | AG90: 308 | AH90: 0501-MAPITUNARI | AS90: 08 | AT90: 09 | AU90: 10 | AV90: 0910 | AW90: PICHARI | AX90: 0 | AY90: 0809 | AZ90: 080910 | BA90: 0910-PICHARI
T91: 000002451 | U91: CHAHUARES | V91: 000002451 | W91: 3 | X91: 08 | Y91: 09 | Z91: 02 | AA91: 11 | AB91: 03 | AC91: 01 | AD91: I-1 | AE91: 0301 | AF91: 5 | AG91: 308 | AH91: 0301-CHAHUARES | AS91: 08 | AT91: 09 | AU91: 11 | AV91: 0911 | AW91: INKAWASI | AX91: 0 | AY91: 0809 | AZ91: 080911 | BA91: 0911-INKAWASI
T92: 000002462 | U92: OCCOBAMBA LACONVENCION | V92: 000002462 | W92: 2 | X92: 08 | Y92: 09 | Z92: 05 | AA92: 11 | AB92: 03 | AC92: 03 | AD92: I-3 | AE92: 0303 | AF92: 7 | AG92: 208 | AH92: 0303-OCCOBAMBA LACONVENCION | AS92: 08 | AT92: 09 | AU92: 12 | AV92: 0912 | AW92: VILLA VIRGEN | AX92: 0 | AY92: 0809 | AZ92: 080912 | BA92: 0912-VILLA VIRGEN
T93: 000002337 | U93: PAMPACONGA | V93: 000002337 | W93: 3 | X93: 08 | Y93: 03 | Z93: 06 | AA93: 11 | AB93: 02 | AC93: 04 | AD93: I-2 | AE93: 0204 | AF93: 1 | AG93: 308 | AH93: 0204-PAMPACONGA | AS93: 08 | AT93: 09 | AU93: 13 | AV93: 0913 | AW93: VILLA KINTIARINA | AX93: 0 | AY93: 0809 | AZ93: 080913 | BA93: 0913-VILLA KINTIARINA
T94: 000002327 | U94: CHACAN | V94: 000002327 | W94: 3 | X94: 08 | Y94: 03 | Z94: 01 | AA94: 11 | AB94: 02 | AC94: 03 | AD94: I-1 | AE94: 0203 | AF94: 1 | AG94: 308 | AH94: 0203-CHACAN | AS94: 08 | AT94: 09 | AU94: 14 | AV94: 0914 | AW94: MEGANTONI | AX94: 0 | AY94: 0809 | AZ94: 080914 | BA94: 0914-MEGANTONI
T95: 000002329 | U95: CONCHACALLA | V95: 000002329 | W95: 3 | X95: 08 | Y95: 03 | Z95: 01 | AA95: 11 | AB95: 02 | AC95: 03 | AD95: I-1 | AE95: 0203 | AF95: 1 | AG95: 308 | AH95: 0203-CONCHACALLA | AS95: 08 | AT95: 10 | AU95: 01 | AV95: 1001 | AW95: PARURO | AX95: 0 | AY95: 0810 | AZ95: 081001 | BA95: 1001-PARURO
T96: 000002330 | U96: ANCAHUASI | V96: 000002330 | W96: 2 | X96: 08 | Y96: 03 | Z96: 02 | AA96: 11 | AB96: 02 | AC96: 03 | AD96: I-3 | AE96: 0203 | AF96: 9 | AG96: 308 | AH96: 0203-ANCAHUASI | AS96: 08 | AT96: 10 | AU96: 02 | AV96: 1002 | AW96: ACCHA | AX96: 0 | AY96: 0810 | AZ96: 081002 | BA96: 1002-ACCHA
T97: 000002331 | U97: CACHIMAYO | V97: 000002331 | W97: 3 | X97: 08 | Y97: 03 | Z97: 03 | AA97: 11 | AB97: 02 | AC97: 03 | AD97: I-2 | AE97: 0203 | AF97: 10 | AG97: 308 | AH97: 0203-CACHIMAYO | AS97: 08 | AT97: 10 | AU97: 03 | AV97: 1003 | AW97: CCAPI | AX97: 0 | AY97: 0810 | AZ97: 081003 | BA97: 1003-CCAPI
T98: 000002332 | U98: CHINCHAYPUJIO | V98: 000002332 | W98: 2 | X98: 08 | Y98: 03 | Z98: 04 | AA98: 11 | AB98: 02 | AC98: 03 | AD98: I-3 | AE98: 0203 | AF98: 3 | AG98: 308 | AH98: 0203-CHINCHAYPUJIO | AS98: 08 | AT98: 10 | AU98: 04 | AV98: 1004 | AW98: COLCHA | AX98: 0 | AY98: 0810 | AZ98: 081004 | BA98: 1004-COLCHA
T99: 000002333 | U99: HUAROCONDO | V99: 000002333 | W99: 3 | X99: 08 | Y99: 03 | Z99: 05 | AA99: 11 | AB99: 02 | AC99: 03 | AD99: I-2 | AE99: 0203 | AF99: 4 | AG99: 208 | AH99: 0203-HUAROCONDO | AS99: 08 | AT99: 10 | AU99: 05 | AV99: 1005 | AW99: HUANOQUITE | AX99: 0 | AY99: 0810 | AZ99: 081005 | BA99: 1005-HUANOQUITE
T100: 000002349 | U100: CUYO CHICO | V100: 000002349 | W100: 3 | X100: 08 | Y100: 04 | Z100: 05 | AA100: 11 | AB100: 02 | AC100: 05 | AD100: I-1 | AE100: 0205 | AG100: 308 | AH100: 0205-CUYO CHICO | AS100: 08 | AT100: 10 | AU100: 06 | AV100: 1006 | AW100: OMACHA | AX100: 0 | AY100: 0810 | AZ100: 081006 | BA100: 1006-OMACHA
T101: 000002336 | U101: LIMATAMBO | V101: 000002336 | W101: 2 | X101: 08 | Y101: 03 | Z101: 06 | AA101: 11 | AB101: 02 | AC101: 04 | AD101: I-4 | AE101: 0204 | AG101: 308 | AH101: 0204-LIMATAMBO | AS101: 08 | AT101: 10 | AU101: 07 | AV101: 1007 | AW101: PACCARITAMBO | AX101: 0 | AY101: 0810 | AZ101: 081007 | BA101: 1007-PACCARITAMBO
T102: 000002324 | U102: PUESTO DE SALUD SANGARARA | V102: 000002324 | W102: 3 | X102: 08 | Y102: 02 | Z102: 07 | AA102: 11 | AB102: 01 | AC102: 13 | AD102: I-1 | AE102: 0113 | AF102: 1 | AG102: 308 | AH102: 0113-PUESTO DE SALUD SANGARARA | AS102: 08 | AT102: 10 | AU102: 08 | AV102: 1008 | AW102: PILLPINTO | AX102: 0 | AY102: 0810 | AZ102: 081008 | BA102: 1008-PILLPINTO
T103: 000002338 | U103: MOLLEPATA | V103: 000002338 | W103: 2 | X103: 08 | Y103: 03 | Z103: 07 | AA103: 11 | AB103: 02 | AC103: 04 | AD103: I-3 | AE103: 0204 | AF103: 3 | AG103: 308 | AH103: 0204-MOLLEPATA | AS103: 08 | AT103: 10 | AU103: 09 | AV103: 1009 | AW103: YAURISQUE | AX103: 0 | AY103: 0810 | AZ103: 081009 | BA103: 1009-YAURISQUE
T104: 000002339 | U104: PUCYURA ANTA | V104: 000002339 | W104: 2 | X104: 08 | Y104: 03 | Z104: 08 | AA104: 11 | AB104: 02 | AC104: 03 | AD104: I-3 | AE104: 0203 | AF104: 6 | AG104: 308 | AH104: 0203-PUCYURA ANTA | AS104: 08 | AT104: 11 | AU104: 01 | AV104: 1101 | AW104: PAUCARTAMBO | AX104: 0 | AY104: 0811 | AZ104: 081101 | BA104: 1101-PAUCARTAMBO
T105: 000002340 | U105: ZURITE | V105: 000002340 | W105: 3 | X105: 08 | Y105: 03 | Z105: 09 | AA105: 11 | AB105: 02 | AC105: 03 | AD105: I-2 | AE105: 0203 | AF105: 6 | AG105: 308 | AH105: 0203-ZURITE | AS105: 08 | AT105: 11 | AU105: 02 | AV105: 1102 | AW105: CAICAY | AX105: 0 | AY105: 0811 | AZ105: 081102 | BA105: 1102-CAICAY
T106: 000002341 | U106: CALCA | V106: 000002341 | W106: 2 | X106: 08 | Y106: 04 | Z106: 01 | AA106: 11 | AB106: 02 | AC106: 06 | AD106: I-4 | AE106: 0206 | AF106: 6 | AG106: 108 | AH106: 0206-CALCA | AS106: 08 | AT106: 11 | AU106: 03 | AV106: 1103 | AW106: CHALLABAMBA | AX106: 0 | AY106: 0811 | AZ106: 081103 | BA106: 1103-CHALLABAMBA
T107: 000002342 | U107: AMPARAES | V107: 000002342 | W107: 3 | X107: 08 | Y107: 04 | Z107: 04 | AA107: 11 | AB107: 02 | AC107: 06 | AD107: I-2 | AE107: 0206 | AF107: 1 | AG107: 308 | AH107: 0206-AMPARAES | AS107: 08 | AT107: 11 | AU107: 04 | AV107: 1104 | AW107: COLQUEPATA | AX107: 0 | AY107: 0811 | AZ107: 081104 | BA107: 1104-COLQUEPATA
T108: 000002344 | U108: LAMAY | V108: 000002344 | W108: 2 | X108: 08 | Y108: 04 | Z108: 03 | AA108: 11 | AB108: 02 | AC108: 05 | AD108: I-3 | AE108: 0205 | AF108: 5 | AG108: 208 | AH108: 0205-LAMAY | AS108: 08 | AT108: 11 | AU108: 05 | AV108: 1105 | AW108: HUANCARANI | AX108: 0 | AY108: 0811 | AZ108: 081105 | BA108: 1105-HUANCARANI
T109: 000002393 | U109: PHINAYA | V109: 000002393 | W109: 3 | X109: 08 | Y109: 06 | Z109: 05 | AA109: 11 | AB109: 04 | AC109: 05 | AD109: I-1 | AE109: 0405 | AF109: 6 | AG109: 308 | AH109: 0405-PHINAYA | AS109: 08 | AT109: 11 | AU109: 06 | AV109: 1106 | AW109: KOSÑIPATA | AX109: 0 | AY109: 0811 | AZ109: 081106 | BA109: 1106-KOSÑIPATA
T110: 000002334 | U110: HUAYLLACOCHA | V110: 000002334 | W110: 3 | X110: 08 | Y110: 03 | Z110: 05 | AA110: 11 | AB110: 02 | AC110: 03 | AD110: I-2 | AE110: 0203 | AF110: 7 | AG110: 308 | AH110: 0203-HUAYLLACOCHA | AS110: 08 | AT110: 12 | AU110: 01 | AV110: 1201 | AW110: URCOS | AX110: 0 | AY110: 0812 | AZ110: 081201 | BA110: 1201-URCOS
T111: 000002317 | U111: ACOMAYO | V111: 000002317 | W111: 2 | X111: 08 | Y111: 02 | Z111: 01 | AA111: 11 | AB111: 01 | AC111: 13 | AD111: I-4 | AE111: 0113 | AF111: 3 | AG111: 308 | AH111: 0113-ACOMAYO | AS111: 08 | AT111: 12 | AU111: 02 | AV111: 1202 | AW111: ANDAHUAYLILLAS | AX111: 0 | AY111: 0812 | AZ111: 081202 | BA111: 1202-ANDAHUAYLILLAS
T112: 000002305 | U112: ANTONIO LORENA DEL CUSCO | V112: 000002305 | W112: 1 | X112: 08 | Y112: 01 | Z112: 06 | AA112: 11 | AB112: 06 | AC112: 00 | AD112: III-1 | AE112: 0600 | AF112: 4 | AG112: 208 | AH112: 0600-ANTONIO LORENA DEL CUSCO | AS112: 08 | AT112: 12 | AU112: 03 | AV112: 1203 | AW112: CAMANTI | AX112: 0 | AY112: 0812 | AZ112: 081203 | BA112: 1203-CAMANTI
T113: 000002306 | U113: BELEMPAMPA | V113: 000002306 | W113: 2 | X113: 08 | Y113: 01 | Z113: 06 | AA113: 11 | AB113: 02 | AC113: 01 | AD113: I-4 | AE113: 0201 | AF113: 2 | AG113: 308 | AH113: 0201-BELEMPAMPA | AS113: 08 | AT113: 12 | AU113: 04 | AV113: 1204 | AW113: CCARHUAYO | AX113: 0 | AY113: 0812 | AZ113: 081204 | BA113: 1204-CCARHUAYO
T114: 000002307 | U114: MANCO CAPAC | V114: 000002307 | W114: 2 | X114: 08 | Y114: 01 | Z114: 06 | AA114: 11 | AB114: 02 | AC114: 02 | AD114: I-3 | AE114: 0202 | AF114: 3 | AG114: 208 | AH114: 0202-MANCO CAPAC | AS114: 08 | AT114: 12 | AU114: 05 | AV114: 1205 | AW114: CCATCA | AX114: 0 | AY114: 0812 | AZ114: 081205 | BA114: 1205-CCATCA
T115: 000002308 | U115: ZARZUELA ALTA | V115: 000002308 | W115: 2 | X115: 08 | Y115: 01 | Z115: 06 | AA115: 11 | AB115: 02 | AC115: 01 | AD115: I-3 | AE115: 0201 | AF115: 4 | AG115: 308 | AH115: 0201-ZARZUELA ALTA | AS115: 08 | AT115: 12 | AU115: 06 | AV115: 1206 | AW115: CUSIPATA | AX115: 0 | AY115: 0812 | AZ115: 081206 | BA115: 1206-CUSIPATA
T116: 000002309 | U116: DIGNIDAD NACIONAL | V116: 000002309 | W116: 2 | X116: 08 | Y116: 01 | Z116: 06 | AA116: 11 | AB116: 02 | AC116: 01 | AD116: I-3 | AE116: 0201 | AF116: 5 | AG116: 208 | AH116: 0201-DIGNIDAD NACIONAL | AS116: 08 | AT116: 12 | AU116: 07 | AV116: 1207 | AW116: HUARO | AX116: 0 | AY116: 0812 | AZ116: 081207 | BA116: 1207-HUARO
T117: 000002297 | U117: CCORCCA | V117: 000002297 | W117: 3 | X117: 08 | Y117: 01 | Z117: 02 | AA117: 11 | AB117: 02 | AC117: 01 | AD117: I-2 | AE117: 0201 | AF117: 5 | AG117: 308 | AH117: 0201-CCORCCA | AS117: 08 | AT117: 12 | AU117: 08 | AV117: 1208 | AW117: LUCRE | AX117: 0 | AY117: 0812 | AZ117: 081208 | BA117: 1208-LUCRE
T118: 000002299 | U118: POROY | V118: 000002299 | W118: 3 | X118: 08 | Y118: 01 | Z118: 03 | AA118: 11 | AB118: 02 | AC118: 09 | AD118: I-2 | AE118: 0209 | AF118: 6 | AG118: 308 | AH118: 0209-POROY | AS118: 08 | AT118: 12 | AU118: 09 | AV118: 1209 | AW118: MARCAPATA | AX118: 0 | AY118: 0812 | AZ118: 081209 | BA118: 1209-MARCAPATA
T119: 000002326 | U119: ANTA | V119: 000002326 | W119: 2 | X119: 08 | Y119: 03 | Z119: 01 | AA119: 11 | AB119: 02 | AC119: 03 | AD119: I-4 | AE119: 0203 | AF119: 6 | AG119: 308 | AH119: 0203-ANTA | AS119: 08 | AT119: 12 | AU119: 10 | AV119: 1210 | AW119: OCONGATE | AX119: 0 | AY119: 0812 | AZ119: 081210 | BA119: 1210-OCONGATE
T120: 000002314 | U120: SAYLLA | V120: 000002314 | W120: 3 | X120: 08 | Y120: 01 | Z120: 07 | AA120: 11 | AB120: 01 | AC120: 16 | AD120: I-2 | AE120: 0116 | AF120: 7 | AG120: 208 | AH120: 0116-SAYLLA | AS120: 08 | AT120: 12 | AU120: 11 | AV120: 1211 | AW120: OROPESA | AX120: 0 | AY120: 0812 | AZ120: 081211 | BA120: 1211-OROPESA
T121: 000002325 | U121: PUESTO DE SALUD MARCACONGA | V121: 000002325 | W121: 3 | X121: 08 | Y121: 02 | Z121: 07 | AA121: 11 | AB121: 01 | AC121: 13 | AD121: I-2 | AE121: 0113 | AF121: 8 | AG121: 308 | AH121: 0113-PUESTO DE SALUD MARCACONGA | AS121: 08 | AT121: 12 | AU121: 12 | AV121: 1212 | AW121: QUIQUIJANA | AX121: 0 | AY121: 0812 | AZ121: 081212 | BA121: 1212-QUIQUIJANA
T122: 000002318 | U122: ACOPIA | V122: 000002318 | W122: 3 | X122: 08 | Y122: 02 | Z122: 02 | AA122: 11 | AB122: 01 | AC122: 13 | AD122: I-1 | AE122: 0113 | AF122: 3 | AG122: 308 | AH122: 0113-ACOPIA | AS122: 08 | AT122: 13 | AU122: 01 | AV122: 1301 | AW122: URUBAMBA | AX122: 0 | AY122: 0813 | AZ122: 081301 | BA122: 1301-URUBAMBA
T123: 000002319 | U123: ACOS | V123: 000002319 | W123: 3 | X123: 08 | Y123: 02 | Z123: 03 | AA123: 11 | AB123: 01 | AC123: 13 | AD123: I-1 | AE123: 0113 | AF123: 4 | AG123: 308 | AH123: 0113-ACOS | AS123: 08 | AT123: 13 | AU123: 02 | AV123: 1302 | AW123: CHINCHERO | AX123: 0 | AY123: 0813 | AZ123: 081302 | BA123: 1302-CHINCHERO
T124: 000002320 | U124: MOSOCLLACTA | V124: 000002320 | W124: 3 | X124: 08 | Y124: 02 | Z124: 04 | AA124: 11 | AB124: 04 | AC124: 03 | AD124: I-1 | AE124: 0403 | AG124: 308 | AH124: 0403-MOSOCLLACTA | AS124: 08 | AT124: 13 | AU124: 03 | AV124: 1303 | AW124: HUAYLLABAMBA | AX124: 0 | AY124: 0813 | AZ124: 081303 | BA124: 1303-HUAYLLABAMBA
T125: 000002321 | U125: POMACANCHI | V125: 000002321 | W125: 2 | X125: 08 | Y125: 02 | Z125: 05 | AA125: 11 | AB125: 01 | AC125: 13 | AD125: I-4 | AE125: 0113 | AF125: 1 | AG125: 208 | AH125: 0113-POMACANCHI | AS125: 08 | AT125: 13 | AU125: 04 | AV125: 1304 | AW125: MACHUPICCHU | AX125: 0 | AY125: 0813 | AZ125: 081304 | BA125: 1304-MACHUPICCHU
T126: 000002322 | U126: SAN JUAN DE POMACANCHI | V126: 000002322 | W126: 3 | X126: 08 | Y126: 02 | Z126: 05 | AA126: 11 | AB126: 01 | AC126: 13 | AD126: I-1 | AE126: 0113 | AF126: 1 | AG126: 108 | AH126: 0113-SAN JUAN DE POMACANCHI | AS126: 08 | AT126: 13 | AU126: 05 | AV126: 1305 | AW126: MARAS | AX126: 0 | AY126: 0813 | AZ126: 081305 | BA126: 1305-MARAS
T127: 000002323 | U127: RONDOCAN | V127: 000002323 | W127: 2 | X127: 08 | Y127: 02 | Z127: 06 | AA127: 11 | AB127: 01 | AC127: 16 | AD127: I-3 | AE127: 0116 | AF127: 2 | AG127: 308 | AH127: 0116-RONDOCAN | AS127: 08 | AT127: 13 | AU127: 06 | AV127: 1306 | AW127: OLLANTAYTAMBO | AX127: 0 | AY127: 0813 | AZ127: 081306 | BA127: 1306-OLLANTAYTAMBO
T128: 000002350 | U128: CUYO GRANDE | V128: 000002350 | W128: 3 | X128: 08 | Y128: 04 | Z128: 05 | AA128: 11 | AB128: 02 | AC128: 05 | AD128: I-1 | AE128: 0205 | AF128: 5 | AG128: 308 | AH128: 0205-CUYO GRANDE | AS128: 08 | AT128: 13 | AU128: 07 | AV128: 1307 | AW128: YUCAY | AX128: 0 | AY128: 0813 | AZ128: 081307 | BA128: 1307-YUCAY
T129: 000002310 | U129: CHOCCO | V129: 000002310 | W129: 2 | X129: 08 | Y129: 01 | Z129: 06 | AA129: 11 | AB129: 02 | AC129: 02 | AD129: I-3 | AE129: 0202 | AF129: 5 | AG129: 208 | AH129: 0202-CHOCCO | AT129: 00 | AV129: 0000 | AW129: (ALL) | BA129: 0000-(ALL)
T130: 000002387 | U130: CHIARA | V130: 000002387 | W130: 3 | X130: 08 | Y130: 06 | Z130: 03 | AA130: 11 | AB130: 04 | AC130: 03 | AD130: I-2 | AE130: 0403 | AF130: 7 | AG130: 308 | AH130: 0403-CHIARA | AT130: '01 | AV130: 0000 | AW130: (ALL) | BA130: 0000-(ALL)
T131: 000002379 | U131: HERCCA | V131: 000002379 | W131: 3 | X131: 08 | Y131: 06 | Z131: 01 | AA131: 11 | AB131: 04 | AC131: 04 | AD131: I-1 | AE131: 0404 | AF131: 7 | AG131: 308 | AH131: 0404-HERCCA | AT131: '02 | AV131: 0000 | AW131: (ALL) | BA131: 0000-(ALL)
T132: 000002380 | U132: TECHO OBRERO | V132: 000002380 | W132: 2 | X132: 08 | Y132: 06 | Z132: 01 | AA132: 11 | AB132: 04 | AC132: 04 | AD132: I-4 | AE132: 0404 | AF132: 8 | AG132: 208 | AH132: 0404-TECHO OBRERO | AT132: '03 | AV132: 0000 | AW132: (ALL) | BA132: 0000-(ALL)
T133: 000002381 | U133: QUEHUAR | V133: 000002381 | W133: 3 | X133: 08 | Y133: 06 | Z133: 01 | AA133: 11 | AB133: 04 | AC133: 05 | AD133: I-2 | AE133: 0405 | AF133: 8 | AG133: 308 | AH133: 0405-QUEHUAR | AT133: '04 | AV133: 0000 | AW133: (ALL) | BA133: 0000-(ALL)
T134: 000002382 | U134: UZCUPATA | V134: 000002382 | W134: 3 | X134: 08 | Y134: 06 | Z134: 01 | AA134: 11 | AB134: 04 | AC134: 05 | AD134: I-1 | AE134: 0405 | AF134: 8 | AG134: 208 | AH134: 0405-UZCUPATA | AT134: '05 | AV134: 0000 | AW134: (ALL) | BA134: 0000-(ALL)
T135: 000002383 | U135: LA FLORIDA | V135: 000002383 | W135: 3 | X135: 08 | Y135: 06 | Z135: 01 | AA135: 11 | AB135: 04 | AC135: 05 | AD135: I-2 | AE135: 0405 | AF135: 8 | AG135: 308 | AH135: 0405-LA FLORIDA | AT135: '06 | AV135: 0000 | AW135: (ALL) | BA135: 0000-(ALL)
T136: 000002384 | U136: PAMPAPHALLA | V136: 000002384 | W136: 2 | X136: 08 | Y136: 06 | Z136: 01 | AA136: 11 | AB136: 04 | AC136: 05 | AD136: I-3 | AE136: 0405 | AF136: 8 | AG136: 308 | AH136: 0405-PAMPAPHALLA | AT136: '07 | AV136: 0000 | AW136: (ALL) | BA136: 0000-(ALL)
T137: 000002345 | U137: CCACHIN | V137: 000002345 | W137: 3 | X137: 08 | Y137: 04 | Z137: 04 | AA137: 11 | AB137: 02 | AC137: 06 | AD137: I-1 | AE137: 0206 | AG137: 208 | AH137: 0206-CCACHIN | AT137: '08 | AV137: 0000 | AW137: (ALL) | BA137: 0000-(ALL)
T138: 000002386 | U138: COMBAPATA CANCHIS | V138: 000002386 | W138: 2 | X138: 08 | Y138: 06 | Z138: 03 | AA138: 11 | AB138: 04 | AC138: 03 | AD138: I-4 | AE138: 0403 | AG138: 208 | AH138: 0403-COMBAPATA CANCHIS | AT138: 09 | AV138: 0000 | AW138: (ALL) | BA138: 0000-(ALL)
T139: 000002376 | U139: TUNGASUCA | V139: 000002376 | W139: 3 | X139: 08 | Y139: 05 | Z139: 08 | AA139: 11 | AB139: 04 | AC139: 01 | AD139: I-2 | AE139: 0401 | AG139: 308 | AH139: 0401-TUNGASUCA | AT139: '10 | AV139: 0000 | AW139: (ALL) | BA139: 0000-(ALL)
T140: 000002388 | U140: MARANGANI | V140: 000002388 | W140: 2 | X140: 08 | Y140: 06 | Z140: 04 | AA140: 11 | AB140: 04 | AC140: 04 | AD140: I-3 | AE140: 0404 | AG140: 308 | AH140: 0404-MARANGANI | AT140: '11 | AV140: 0000 | AW140: (ALL) | BA140: 0000-(ALL)
T141: 000002389 | U141: CHECTUYOC | V141: 000002389 | W141: 3 | X141: 08 | Y141: 06 | Z141: 04 | AA141: 11 | AB141: 04 | AC141: 04 | AD141: I-1 | AE141: 0404 | AF141: 4 | AG141: 308 | AH141: 0404-CHECTUYOC | AT141: '12 | AV141: 0000 | AW141: (ALL) | BA141: 0000-(ALL)
T142: 000002390 | U142: CCUYO | V142: 000002390 | W142: 3 | X142: 08 | Y142: 06 | Z142: 04 | AA142: 11 | AB142: 04 | AC142: 04 | AD142: I-1 | AE142: 0404 | AF142: 4 | AG142: 308 | AH142: 0404-CCUYO | AT142: '13 | AV142: 0000 | AW142: (ALL) | BA142: 0000-(ALL)
T143: 000002481 | U143: CCARCCO | V143: 000002481 | W143: 3 | X143: 08 | Y143: 09 | Z143: 11 | AA143: 11 | AB143: 03 | AC143: 06 | AD143: I-1 | AE143: 0306 | AF143: 5 | AG143: 308 | AH143: 0306-CCARCCO
T144: 000002392 | U144: PITUMARCA | V144: 000002392 | W144: 2 | X144: 08 | Y144: 06 | Z144: 05 | AA144: 11 | AB144: 04 | AC144: 03 | AD144: I-3 | AE144: 0403 | AF144: 5 | AG144: 308 | AH144: 0403-PITUMARCA
T145: 000002510 | U145: PAUCARTAMBO | V145: 000002510 | W145: 2 | X145: 08 | Y145: 11 | Z145: 01 | AA145: 11 | AB145: 01 | AC145: 06 | AD145: I-4 | AE145: 0106 | AF145: 6 | AG145: 308 | AH145: 0106-PAUCARTAMBO
T146: 000002394 | U146: SAN PABLO CANCHIS | V146: 000002394 | W146: 3 | X146: 08 | Y146: 06 | Z146: 06 | AA146: 11 | AB146: 04 | AC146: 05 | AD146: I-2 | AE146: =CONCATENATE(AB146,AC146) -> 0405 | AF146: 2 | AG146: 308 | AH146: 0405-SAN PABLO CANCHIS
T147: 000002385 | U147: CHECACUPE | V147: 000002385 | W147: 3 | X147: 08 | Y147: 06 | Z147: 02 | AA147: 11 | AB147: 04 | AC147: 03 | AD147: I-2 | AE147: 0403 | AF147: 1 | AG147: 308 | AH147: 0403-CHECACUPE
T148: 000002367 | U148: CHITIBAMBA | V148: 000002367 | W148: 3 | X148: 08 | Y148: 05 | Z148: 02 | AA148: 11 | AB148: 04 | AC148: 01 | AD148: I-1 | AE148: 0401 | AG148: 308 | AH148: 0401-CHITIBAMBA
T149: 000002351 | U149: QUELLO QUELLO | V149: 000002351 | W149: 3 | X149: 08 | Y149: 04 | Z149: 05 | AA149: 11 | AB149: 02 | AC149: 05 | AD149: I-1 | AE149: 0205 | AG149: 108 | AH149: 0205-QUELLO QUELLO
T150: 000002353 | U150: TARAY | V150: 000002353 | W150: 3 | X150: 08 | Y150: 04 | Z150: 07 | AA150: 11 | AB150: 02 | AC150: 05 | AD150: I-1 | AE150: 0205 | AF150: 7 | AG150: 308 | AH150: =CONCATENATE(AB150,AC150,"-",U150) -> 0205-TARAY
T151: 000002357 | U151: COLCCA YANATILE | V151: 000002357 | W151: 3 | X151: 08 | Y151: 04 | Z151: 08 | AA151: 11 | AB151: 02 | AC151: 08 | AD151: I-2 | AE151: 0208 | AG151: 308 | AH151: 0208-COLCCA YANATILE
T152: 000002358 | U152: MUYUPAY | V152: 000002358 | W152: 3 | X152: 08 | Y152: 04 | Z152: 08 | AA152: 11 | AB152: 02 | AC152: 08 | AD152: I-1 | AE152: 0208 | AG152: 308 | AH152: 0208-MUYUPAY
T153: 000002360 | U153: QUESQUENTO | V153: 000002360 | W153: 3 | X153: 08 | Y153: 04 | Z153: 08 | AA153: 11 | AB153: 02 | AC153: 08 | AD153: I-1 | AE153: 0208 | AG153: 308 | AH153: 0208-QUESQUENTO
T154: 000002361 | U154: SUYO | V154: 000002361 | W154: 3 | X154: 08 | Y154: 04 | Z154: 04 | AA154: 11 | AB154: 02 | AC154: 06 | AD154: I-2 | AE154: 0206 | AG154: 208 | AH154: 0206-SUYO
T155: 000002364 | U155: YANAOCA | V155: 000002364 | W155: 2 | X155: 08 | Y155: 05 | Z155: 01 | AA155: 11 | AB155: 04 | AC155: 01 | AD155: I-4 | AE155: 0401 | AG155: 208 | AH155: 0401-YANAOCA
T156: 000002378 | U156: SICUANI | V156: 000002378 | W156: 1 | X156: 08 | Y156: 06 | Z156: 01 | AA156: 11 | AB156: 07 | AC156: 01 | AD156: II-1 | AE156: 0701 | AG156: 308 | AH156: 0701-SICUANI
T157: 000002366 | U157: CHECCA | V157: 000002366 | W157: 3 | X157: 08 | Y157: 05 | Z157: 02 | AA157: 11 | AB157: 04 | AC157: 02 | AD157: I-2 | AE157: 0402 | AG157: 308 | AH157: 0402-CHECCA
T158: 000002377 | U158: TOCCOCCORI | V158: 000002377 | W158: 3 | X158: 08 | Y158: 05 | Z158: 08 | AA158: 11 | AB158: 04 | AC158: 01 | AD158: I-2 | AE158: 0401 | AG158: 308 | AH158: 0401-TOCCOCCORI
T159: 000002369 | U159: LANGUI | V159: 000002369 | W159: 3 | X159: 08 | Y159: 05 | Z159: 04 | AA159: 11 | AB159: 04 | AC159: 02 | AD159: I-2 | AE159: 0402 | AG159: 308 | AH159: 0402-LANGUI
T160: 000002370 | U160: CONDEVILUYO | V160: 000002370 | W160: 3 | X160: 08 | Y160: 05 | Z160: 04 | AA160: 11 | AB160: 04 | AC160: 02 | AD160: I-1 | AE160: 0402 | AG160: 208 | AH160: 0402-CONDEVILUYO
T161: 000002371 | U161: LAYO | V161: 000002371 | W161: 2 | X161: 08 | Y161: 05 | Z161: 05 | AA161: 11 | AB161: 04 | AC161: 02 | AD161: I-3 | AE161: 0402 | AF161: 8 | AG161: 308 | AH161: 0402-LAYO
T162: 000002372 | U162: PAMPAMARCA | V162: 000002372 | W162: 3 | X162: 08 | Y162: 05 | Z162: 06 | AA162: 11 | AB162: 04 | AC162: 01 | AD162: I-2 | AE162: 0401 | AF162: 4 | AG162: 308 | AH162: 0401-PAMPAMARCA
T163: 000002373 | U163: QUEHUE | V163: 000002373 | W163: 3 | X163: 08 | Y163: 05 | Z163: 07 | AA163: 11 | AB163: 04 | AC163: 01 | AD163: I-2 | AE163: 0401 | AF163: 8 | AG163: 308 | AH163: 0401-QUEHUE
T164: 000002374 | U164: HUINCHIRI | V164: 000002374 | W164: 3 | X164: 08 | Y164: 05 | Z164: 07 | AA164: 11 | AB164: 04 | AC164: 01 | AD164: I-2 | AE164: 0401 | AF164: 8 | AG164: 308 | AH164: 0401-HUINCHIRI
T165: 000002395 | U165: SANTA BARBARA | V165: 000002395 | W165: 3 | X165: 08 | Y165: 06 | Z165: 06 | AA165: 11 | AB165: 04 | AC165: 05 | AD165: I-2 | AE165: 0405 | AF165: 1 | AG165: 308 | AH165: 0405-SANTA BARBARA
T166: 000002365 | U166: PONGOÑA | V166: 000002365 | W166: 3 | X166: 08 | Y166: 05 | Z166: 01 | AA166: 11 | AB166: 04 | AC166: 01 | AD166: I-2 | AE166: 0401 | AF166: 1 | AG166: 308 | AH166: 0401-PONGOÑA
T167: 000008912 | U167: ALCCA VICTORIA | V167: 000008912 | W167: 3 | X167: 08 | Y167: 07 | Z167: 08 | AA167: 11 | AB167: 08 | AC167: 09 | AD167: I-1 | AE167: 0809 | AF167: 2 | AG167: 208 | AH167: 0809-ALCCA VICTORIA
T168: 000025739 | U168: PISQUICOCHA | V168: 000025739 | W168: 3 | X168: 08 | Y168: 07 | Z168: 05 | AA168: 11 | AB168: 08 | AC168: 01 | AD168: I-1 | AE168: 0801 | AF168: 7 | AG168: 308 | AH168: 0801-PISQUICOCHA
T169: 000002479 | U169: VILLA VIRGEN | V169: 000002479 | W169: 3 | X169: 08 | Y169: 09 | Z169: 12 | AA169: 11 | AB169: 05 | AC169: 01 | AD169: I-2 | AE169: 0501 | AF169: 7 | AG169: 308 | AH169: 0501-VILLA VIRGEN
T170: 000008285 | U170: ANGELES | V170: 000008285 | W170: 3 | X170: 08 | Y170: 09 | Z170: 07 | AA170: 11 | AB170: 05 | AC170: 01 | AD170: I-1 | AE170: 0501 | AG170: 308 | AH170: 0501-ANGELES
T171: 000008906 | U171: ESTRELLA | V171: 000008906 | W171: 3 | X171: 08 | Y171: 09 | Z171: 06 | AA171: 11 | AB171: 03 | AC171: 03 | AD171: I-1 | AE171: 0303 | AG171: 308 | AH171: 0303-ESTRELLA
T172: 000008907 | U172: MATORIATO | V172: 000008907 | W172: 3 | X172: 08 | Y172: 09 | Z172: 06 | AA172: 11 | AB172: 03 | AC172: 03 | AD172: I-1 | AE172: 0303 | AG172: 308 | AH172: 0303-MATORIATO
T173: 000008908 | U173: CHIRUMBIA | V173: 000008908 | W173: 3 | X173: 08 | Y173: 09 | Z173: 06 | AA173: 11 | AB173: 03 | AC173: 03 | AD173: I-1 | AE173: 0303 | AF173: 1 | AG173: 308 | AH173: 0303-CHIRUMBIA
T174: 000010062 | U174: QUILLABAMBA - ESSALUD | V174: 000010062 | W174: 2 | X174: 08 | Y174: 09 | Z174: 01 | AA174: 11 | AB174: 03 | AC174: 01 | AD174: I-4 | AE174: 0301 | AF174: 1 | AG174: 308 | AH174: 0301-QUILLABAMBA - ESSALUD
T175: 000008911 | U175: HUARA HUARA | V175: 000008911 | W175: 3 | X175: 08 | Y175: 12 | Z175: 05 | AA175: 11 | AB175: 01 | AC175: 12 | AD175: I-1 | AE175: 0112 | AF175: 1 | AG175: 308 | AH175: 0112-HUARA HUARA
T176: 000007143 | U176: OTOCANI | V176: 000007143 | W176: 3 | X176: 08 | Y176: 11 | Z176: 03 | AA176: 11 | AB176: 02 | AC176: 06 | AD176: I-1 | AE176: 0206 | AF176: 1 | AG176: 208 | AH176: 0206-OTOCANI
T177: 000008913 | U177: HUARACO | V177: 000008913 | W177: 3 | X177: 08 | Y177: 07 | Z177: 04 | AA177: 11 | AB177: 08 | AC177: 09 | AD177: I-1 | AE177: 0809 | AF177: 1 | AG177: 308 | AH177: 0809-HUARACO
T178: 000008914 | U178: HUAYLLANI | V178: 000008914 | W178: 3 | X178: 08 | Y178: 07 | Z178: 04 | AA178: 11 | AB178: 08 | AC178: 09 | AD178: I-1 | AE178: 0809 | AF178: 5 | AG178: 308 | AH178: 0809-HUAYLLANI
T179: 000008915 | U179: PFULLPURI CONDEPAMPA | V179: 000008915 | W179: 3 | X179: 08 | Y179: 07 | Z179: 01 | AA179: 11 | AB179: 08 | AC179: 09 | AD179: I-2 | AE179: 0809 | AF179: 2 | AG179: 308 | AH179: 0809-PFULLPURI CONDEPAMPA
T180: 000009963 | U180: CANCAHUANI | V180: 000009963 | W180: 3 | X180: 08 | Y180: 07 | Z180: 02 | AA180: 11 | AB180: 08 | AC180: 09 | AD180: I-1 | AE180: 0809 | AF180: 2 | AG180: 308 | AH180: 0809-CANCAHUANI
T181: 000010060 | U181: CAS URUBAMBA -ESSALUD | V181: 000010060 | X181: 08 | Y181: 13 | Z181: 01 | AA181: 11 | AB181: 02 | AC181: 07 | AD181: I-4 | AE181: 0207 | AF181: 2 | AG181: 208 | AH181: 0207-CAS URUBAMBA -ESSALUD
T182: 000006971 | U182: COMBAPATA YANATILE | V182: 000006971 | W182: 3 | X182: 08 | Y182: 04 | Z182: 08 | AA182: 11 | AB182: 02 | AC182: 08 | AD182: I-1 | AE182: 0208 | AF182: 2 | AG182: 308 | AH182: 0208-COMBAPATA YANATILE
T183: 000008909 | U183: CHAPO BOYERO | V183: 000008909 | W183: 3 | X183: 08 | Y183: 09 | Z183: 06 | AA183: 11 | AB183: 03 | AC183: 03 | AD183: I-2 | AE183: 0303 | AF183: 2 | AG183: 308 | AH183: 0303-CHAPO BOYERO
T184: 000016335 | U184: CCAPANA | V184: 000016335 | W184: 3 | X184: 08 | Y184: 12 | Z184: 05 | AA184: 11 | AB184: 01 | AC184: 15 | AD184: I-1 | AE184: 0115 | AF184: 2 | AG184: 308 | AH184: 0115-CCAPANA
T185: 000006972 | U185: PANTIPATA | V185: 000006972 | W185: 3 | X185: 08 | Y185: 03 | Z185: 04 | AA185: 11 | AB185: 02 | AC185: 03 | AD185: I-2 | AE185: 0203 | AF185: 2 | AG185: 308 | AH185: 0203-PANTIPATA
T186: 000006973 | U186: BELLAVISTA | V186: 000006973 | W186: 3 | X186: 08 | Y186: 04 | Z186: 08 | AA186: 11 | AB186: 02 | AC186: 08 | AD186: I-1 | AE186: 0208 | AF186: 2 | AG186: 208 | AH186: 0208-BELLAVISTA
T187: 000006975 | U187: SAYLLAFAYA | V187: 000006975 | W187: 3 | X187: 08 | Y187: 04 | Z187: 03 | AA187: 11 | AB187: 02 | AC187: 05 | AD187: I-2 | AE187: 0205 | AF187: 2 | AG187: 308 | AH187: 0205-SAYLLAFAYA
T188: 000006976 | U188: CHONTABAMBA | V188: 000006976 | W188: 3 | X188: 08 | Y188: 09 | Z188: 09 | AA188: 11 | AB188: 03 | AC188: 04 | AD188: I-1 | AE188: 0304 | AF188: 2 | AG188: 308 | AH188: 0304-CHONTABAMBA
T189: 000006977 | U189: TINKI | V189: 000006977 | W189: 3 | X189: 08 | Y189: 12 | Z189: 10 | AA189: 11 | AB189: 01 | AC189: 15 | AD189: I-2 | AE189: 0115 | AF189: 3 | AG189: 308 | AH189: 0115-TINKI
T190: 000006978 | U190: CCOCHIRIHUAY | V190: 000006978 | W190: 3 | X190: 08 | Y190: 10 | Z190: 04 | AA190: 11 | AB190: 01 | AC190: 03 | AD190: I-1 | AE190: 0103 | AF190: 3 | AG190: 208 | AH190: 0103-CCOCHIRIHUAY
T191: 000025740 | U191: TOTORA - REYNA DE LOS ANGELES | V191: 000025740 | W191: 3 | X191: 08 | Y191: 07 | Z191: 05 | AA191: 11 | AB191: 08 | AC191: 01 | AD191: I-1 | AE191: 0801 | AF191: 3 | AG191: 308 | AH191: 0801-TOTORA - REYNA DE LOS ANGELES
T192: 000006984 | U192: CCOLLANA | V192: 000006984 | W192: 3 | X192: 08 | Y192: 07 | Z192: 07 | AA192: 11 | AB192: 08 | AC192: 09 | AD192: I-1 | AE192: 0809 | AF192: 4 | AG192: 308 | AH192: 0809-CCOLLANA
T193: 000007145 | U193: HUAMA | V193: 000007145 | W193: 3 | X193: 08 | Y193: 04 | Z193: 03 | AA193: 11 | AB193: 02 | AC193: 05 | AD193: I-1 | AE193: 0205 | AF193: 4 | AG193: 208 | AH193: 0205-HUAMA
T194: 000007111 | U194: YAVINA | V194: 000007111 | W194: 3 | X194: 08 | Y194: 07 | Z194: 01 | AA194: 11 | AB194: 08 | AC194: 09 | AD194: I-1 | AE194: 0809 | AF194: 5 | AG194: 308 | AH194: 0809-YAVINA
T195: 000007112 | U195: YORENCCA | V195: 000007112 | W195: 3 | X195: 08 | Y195: 07 | Z195: 07 | AA195: 11 | AB195: 08 | AC195: 09 | AD195: I-1 | AE195: 0809 | AF195: 5 | AG195: 308 | AH195: 0809-YORENCCA
T196: 000007113 | U196: NATIVIDAD | V196: 000007113 | W196: 3 | X196: 08 | Y196: 09 | Z196: 10 | AA196: 11 | AB196: 05 | AC196: 02 | AD196: I-2 | AE196: 0502 | AF196: 5 | AG196: 308 | AH196: 0502-NATIVIDAD
T197: 000007114 | U197: QUISTO CENTRAL | V197: 000007114 | W197: 3 | X197: 08 | Y197: 09 | Z197: 10 | AA197: 11 | AB197: 05 | AC197: 02 | AD197: I-2 | AE197: 0502 | AF197: 6 | AG197: 108 | AH197: 0502-QUISTO CENTRAL
T198: 000007135 | U198: ESPINAR | V198: 000007135 | W198: 1 | X198: 08 | Y198: 08 | Z198: 01 | AA198: 11 | AB198: 10 | AC198: 01 | AD198: II-1 | AE198: 1001 | AF198: 6 | AG198: 308 | AH198: 1001-ESPINAR
T199: 000007142 | U199: CHANCAMAYO | V199: 000007142 | W199: 3 | X199: 08 | Y199: 04 | Z199: 08 | AA199: 11 | AB199: 02 | AC199: 08 | AD199: I-1 | AE199: 0208 | AF199: 6 | AG199: 208 | AH199: 0208-CHANCAMAYO
T200: 000010063 | U200: ESSALUD SICUANI | V200: 000010063 | X200: 08 | Y200: 06 | Z200: 01 | AA200: 11 | AB200: 04 | AC200: 04 | AD200: II-1 | AE200: 0404 | AF200: 9 | AG200: 308 | AH200: 0404-ESSALUD SICUANI
T201: 000006982 | U201: MELLOTOTORA | V201: 000006982 | W201: 3 | X201: 08 | Y201: 07 | Z201: 01 | AA201: 11 | AB201: 08 | AC201: 09 | AD201: I-1 | AE201: 0809 | AF201: 9 | AG201: 308 | AH201: 0809-MELLOTOTORA
... 217 more rows

Sheet INICIO
C13: 1 | E13: 3
B28: año | C28: 2024
B29: meses | C29: 1 | D29: 2 | E29: 3 | F29: 4 | G29: 5 | H29: 6 | I29: 7 | J29: 8 | K29: 9 | L29: 10 | M29: 11 | N29: 0
C30: =IF(C29>=1,C29," ") -> 1 | D30: =IF(D29>=1,D29," ") -> 2 | E30: =IF(E29>=1,E29," ") -> 3 | F30: =IF(F29>=1,F29," ") -> 4 | G30: =IF(G29>=1,G29," ") -> 5 | H30: =IF(H29>=1,H29," ") -> 6 | I30: 7 | J30: 8 | K30: 9 | L30: 10 | M30: 11
B31: redes | C31: 03-LA CONVENCION | E31: =TRIM(MID(C31,4,50)) -> LA CONVENCION
B32: micro red | C32: 06-(ALL) | E32: =TRIM(MID(C32,4,50)) -> (ALL)
B33: establecimiento | C33: 0000-(ALL) | E33: =TRIM(MID(C33,6,50)) -> (ALL)
B34: provincia | C34: 00-(ALL) | E34: =TRIM(MID(C34,4,25)) -> (ALL)
B35: distrito | C35: 0000-(ALL) | E35: =TRIM(MID(C35,6,25)) -> (ALL)
A41: ANO | B41: 2024
A42: DESC_RED | B42: LA CONVENCION
A43: DESC_MICRO | B43: (Todas)
A44: DESC_ESTAB | B44: (Todas)
A45: DESC_PROV | B45: (Todas)
A46: DESC_DIST | B46: (Todas)
B48: Valores
A49: Etiquetas de fila | B49: 1° CRED <1a | C49: 2° CRED <1a | D49: 3° CRED <1a | E49: 4° CRED <1a | F49: 5° CRED <1a | G49: 6° CRED <1a | H49: 7° CRED <1a | I49: 8° CRED <1a | J49: 9° CRED <1a | K49: 10° CRED <1a | L49: 11° CRED <1a | M49: 1° CRED 1a | N49: 2° CRED 1a | O49: 3° CRED 1a | P49: 4° CRED 1a | Q49: 5° CRED 1a | R49: 6° CRED 1a | S49: 1° CRED 2a | T49: 2° CRED 2a | U49: 3° CRED 2a | V49: 4° CRED 2a | W49: 1° CRED 3a | X49: 2° CRED 3a | Y49: 3° CRED 3a | Z49: 4° CRED 3a | AA49: 1° CRED 4a | AB49: 2° CRED 4a | AC49: 3° CRED 4a | AD49: 4° CRED 4a | AE49: 1° CRED 5a | AF49: 1° CRED 6a | AG49: 1° CRED 7a | AH49: 1° CRED 8a | AI49: 1° CRED 9a | AJ49: 1° CRED 10-11a | AK49: T_GRAHAM1a | AL49: T_GRAHAM2a | AM49: T_GRAHAM3a | AN49: T_GRAHAM4a | AO49: T_GRAHAM 5-11a | AP49: EX SERIADO HECES 1a | AQ49: EX SERIADO HECES 2a | AR49: EX SERIADO HECES 3a | AS49: EX SERIADO HECES 4a | AT49: EX SERIADO HECES 5-11a | AU49: ANTIPARASITARIO PREV 1a | AV49: ANTIPARASITARIO PREV 2a | AW49: ANTIPARASITARIO PREV 3a | AX49: ANTIPARASITARIO PREV 4a | AY49: ANTIPARASITARIO PREV 5-11a | AZ49: ANTIPARASITARIO PREV 1RA 2a | BA49: ANTIPARASITARIO PREV 1RA 3a | BB49: ANTIPARASITARIO PREV 1RA 4a | BC49: ANTIPARASITARIO PREV 1RA 5-11a | BD49: ANTIPARASITARIO PREV 2DA 2a | BE49: ANTIPARASITARIO PREV 2DA 3a | BF49: ANTIPARASITARIO PREV 2DA 4a | BG49: ANTIPARASITARIO PREV 2DA 5-11a | BH49: PLAN AIS ELAB<1a | BI49: PLAN AIS ELAB 1a | BJ49: PLAN AIS ELAB 2a | BK49: PLAN AIS ELAB 3a | BL49: PLAN AIS ELAB 4a | BM49: PLAN AIS ELAB 5_9a | BN49: PLAN AIS ELAB 10_11a | BO49: PLAN TA <1a | BP49: PLAN AIS TERM 1a | BQ49: PLAN AIS TERM 2a | BR49: PLAN AIS TERM 3a | BS49: PLAN TA 4a | BT49: PLAN AIS TERM 5-9a | BU49: PLAN AIS TERM 10-11a | BV49: 1° EST_TEMP RN | BW49: 1° EST_TEMP<1a | BX49: 2° EST_TEMP<1a | BY49: 3° EST_TEMP<1a | BZ49: 4° EST_TEMP<1a | CA49: 5° EST_TEMP<1a | CB49: 6° EST_TEMP<1a | CC49: 1° EST_TEMP1a | CD49: 2° EST_TEMP1a | CE49: 3° EST_TEMP1a | CF49: 4° EST_TEMP1a | CG49: 1° EST_TEMP2a | CH49: 2° EST_TEMP2a | CI49: 3° EST_TEMP2a | CJ49: 1° EST_TEMP3a | CK49: 2° EST_TEMP3a
A50: 1 | B50: 117 | C50: 129 | D50: 140 | E50: 145 | F50: 126 | G50: 149 | H50: 142 | I50: 127 | J50: 116 | K50: 117 | L50: 91 | M50: 151 | N50: 113 | O50: 105 | P50: 103 | Q50: 99 | R50: 105 | S50: 133 | T50: 121 | U50: 87 | V50: 93 | W50: 130 | X50: 100 | Y50: 84 | Z50: 76 | AA50: 128 | AB50: 97 | AC50: 51 | AD50: 67 | AE50: 52 | AF50: 19 | AG50: 11 | AH50: 9 | AI50: 4 | AJ50: 9 | AK50: 72 | AL50: 63 | AM50: 68 | AN50: 48 | AO50: 12 | AP50: 73 | AQ50: 68 | AR50: 67 | AS50: 49 | AT50: 13 | AU50: 5 | AV50: 220 | AW50: 208 | AX50: 187 | AY50: 188 | AZ50: 135 | BA50: 127 | BB50: 132 | BC50: 172 | BD50: 83 | BE50: 75 | BF50: 50 | BG50: 12 | BH50: 125 | BI50: 148 | BJ50: 135 | BK50: 123 | BL50: 129 | BM50: 101 | BN50: 7 | BO50: 90 | BP50: 103 | BQ50: 92 | BR50: 73 | BS50: 68 | BT50: 7 | BU50: 1 | BV50: 64 | BW50: 116 | BX50: 110 | BY50: 141 | BZ50: 134 | CA50: 136 | CB50: 103 | CC50: 103 | CD50: 71 | CE50: 73 | CF50: 38 | CG50: 80 | CH50: 45 | CI50: 0 | CJ50: 21 | CK50: 21
A51: 2 | B51: 114 | C51: 121 | D51: 124 | E51: 135 | F51: 142 | G51: 130 | H51: 136 | I51: 140 | J51: 125 | K51: 102 | L51: 107 | M51: 114 | N51: 121 | O51: 103 | P51: 106 | Q51: 91 | R51: 102 | S51: 107 | T51: 107 | U51: 99 | V51: 83 | W51: 126 | X51: 85 | Y51: 81 | Z51: 71 | AA51: 107 | AB51: 90 | AC51: 58 | AD51: 59 | AE51: 50 | AF51: 36 | AG51: 21 | AH51: 18 | AI51: 13 | AJ51: 41 | AK51: 45 | AL51: 51 | AM51: 52 | AN51: 37 | AO51: 67 | AP51: 46 | AQ51: 51 | AR51: 56 | AS51: 39 | AT51: 66 | AU51: 2 | AV51: 202 | AW51: 205 | AX51: 163 | AY51: 172 | AZ51: 107 | BA51: 120 | BB51: 104 | BC51: 161 | BD51: 91 | BE51: 74 | BF51: 51 | BG51: 6 | BH51: 115 | BI51: 112 | BJ51: 106 | BK51: 126 | BL51: 109 | BM51: 87 | BN51: 17 | BO51: 106 | BP51: 101 | BQ51: 80 | BR51: 67 | BS51: 62 | BT51: 9 | BU51: 7 | BV51: 48 | BW51: 106 | BX51: 107 | BY51: 128 | BZ51: 123 | CA51: 125 | CB51: 108 | CC51: 78 | CD51: 68 | CE51: 70 | CF51: 32 | CG51: 68 | CH51: 52 | CI51: 0 | CJ51: 24 | CK51: 24
A52: 3 | B52: 121 | C52: 122 | D52: 134 | E52: 137 | F52: 141 | G52: 141 | H52: 135 | I52: 151 | J52: 137 | K52: 119 | L52: 103 | M52: 129 | N52: 148 | O52: 114 | P52: 109 | Q52: 100 | R52: 84 | S52: 157 | T52: 106 | U52: 86 | V52: 75 | W52: 124 | X52: 97 | Y52: 87 | Z52: 76 | AA52: 106 | AB52: 83 | AC52: 70 | AD52: 66 | AE52: 51 | AF52: 14 | AG52: 12 | AH52: 17 | AI52: 12 | AJ52: 13 | AK52: 52 | AL52: 60 | AM52: 52 | AN52: 44 | AO52: 55 | AP52: 54 | AQ52: 61 | AR52: 54 | AS52: 46 | AT52: 55 | AU52: 2 | AV52: 230 | AW52: 204 | AX52: 172 | AY52: 98 | AZ52: 147 | BA52: 110 | BB52: 101 | BC52: 91 | BD52: 78 | BE52: 87 | BF52: 63 | BG52: 3 | BH52: 114 | BI52: 126 | BJ52: 147 | BK52: 118 | BL52: 107 | BM52: 67 | BN52: 7 | BO52: 100 | BP52: 85 | BQ52: 79 | BR52: 72 | BS52: 65 | BT52: 4 | BU52: 0 | BV52: 52 | BW52: 103 | BX52: 115 | BY52: 129 | BZ52: 134 | CA52: 133 | CB52: 130 | CC52: 83 | CD52: 62 | CE52: 77 | CF52: 46 | CG52: 87 | CH52: 52 | CI52: 0 | CJ52: 18 | CK52: 18
A53: 4 | B53: 132 | C53: 106 | D53: 114 | E53: 131 | F53: 131 | G53: 141 | H53: 142 | I53: 129 | J53: 141 | K53: 127 | L53: 114 | M53: 130 | N53: 133 | O53: 114 | P53: 118 | Q53: 100 | R53: 93 | S53: 146 | T53: 128 | U53: 104 | V53: 86 | W53: 132 | X53: 110 | Y53: 91 | Z53: 75 | AA53: 135 | AB53: 98 | AC53: 79 | AD53: 33 | AE53: 50 | AF53: 64 | AG53: 80 | AH53: 90 | AI53: 88 | AJ53: 228 | AK53: 79 | AL53: 69 | AM53: 51 | AN53: 64 | AO53: 25 | AP53: 75 | AQ53: 69 | AR53: 50 | AS53: 64 | AT53: 25 | AU53: 4 | AV53: 254 | AW53: 291 | AX53: 292 | AY53: 2241 | AZ53: 145 | BA53: 186 | BB53: 212 | BC53: 2173 | BD53: 102 | BE53: 97 | BF53: 72 | BG53: 6 | BH53: 123 | BI53: 130 | BJ53: 147 | BK53: 133 | BL53: 139 | BM53: 338 | BN53: 209 | BO53: 115 | BP53: 91 | BQ53: 84 | BR53: 73 | BS53: 34 | BT53: 8 | BU53: 0 | BV53: 58 | BW53: 121 | BX53: 101 | BY53: 125 | BZ53: 126 | CA53: 126 | CB53: 127 | CC53: 102 | CD53: 75 | CE53: 87 | CF53: 39 | CG53: 82 | CH53: 63 | CI53: 0 | CJ53: 16 | CK53: 15
A54: 5 | B54: 135 | C54: 124 | D54: 101 | E54: 116 | F54: 123 | G54: 141 | H54: 143 | I54: 140 | J54: 130 | K54: 137 | L54: 117 | M54: 145 | N54: 123 | O54: 126 | P54: 106 | Q54: 97 | R54: 81 | S54: 120 | T54: 125 | U54: 91 | V54: 90 | W54: 133 | X54: 112 | Y54: 77 | Z54: 67 | AA54: 116 | AB54: 83 | AC54: 85 | AD54: 53 | AE54: 55 | AF54: 33 | AG54: 17 | AH54: 17 | AI54: 16 | AJ54: 24 | AK54: 60 | AL54: 58 | AM54: 64 | AN54: 53 | AO54: 21 | AP54: 58 | AQ54: 56 | AR54: 61 | AS54: 54 | AT54: 22 | AU54: 3 | AV54: 209 | AW54: 273 | AX54: 355 | AY54: 3602 | AZ54: 123 | BA54: 198 | BB54: 262 | BC54: 3539 | BD54: 82 | BE54: 70 | BF54: 80 | BG54: 15 | BH54: 127 | BI54: 146 | BJ54: 116 | BK54: 131 | BL54: 111 | BM54: 119 | BN54: 14 | BO54: 123 | BP54: 85 | BQ54: 87 | BR54: 63 | BS54: 54 | BT54: 9 | BU54: 0 | BV54: 66 | BW54: 123 | BX54: 115 | BY54: 112 | BZ54: 136 | CA54: 136 | CB54: 117 | CC54: 99 | CD54: 56 | CE54: 82 | CF54: 36 | CG54: 71 | CH54: 52 | CI54: 2 | CJ54: 26 | CK54: 26
A55: 6 | B55: 117 | C55: 128 | D55: 132 | E55: 116 | F55: 118 | G55: 118 | H55: 132 | I55: 146 | J55: 133 | K55: 122 | L55: 123 | M55: 139 | N55: 122 | O55: 101 | P55: 110 | Q55: 102 | R55: 87 | S55: 118 | T55: 124 | U55: 100 | V55: 73 | W55: 101 | X55: 85 | Y55: 85 | Z55: 80 | AA55: 101 | AB55: 89 | AC55: 71 | AD55: 68 | AE55: 52 | AF55: 43 | AG55: 29 | AH55: 17 | AI55: 11 | AJ55: 47 | AK55: 73 | AL55: 57 | AM55: 54 | AN55: 35 | AO55: 21 | AP55: 78 | AQ55: 63 | AR55: 54 | AS55: 36 | AT55: 22 | AU55: 3 | AV55: 216 | AW55: 201 | AX55: 229 | AY55: 1972 | AZ55: 121 | BA55: 121 | BB55: 153 | BC55: 1945 | BD55: 93 | BE55: 74 | BF55: 72 | BG55: 9 | BH55: 119 | BI55: 140 | BJ55: 119 | BK55: 100 | BL55: 107 | BM55: 132 | BN55: 35 | BO55: 121 | BP55: 88 | BQ55: 72 | BR55: 74 | BS55: 69 | BT55: 8 | BU55: 1 | BV55: 71 | BW55: 106 | BX55: 124 | BY55: 107 | BZ55: 117 | CA55: 130 | CB55: 119 | CC55: 92 | CD55: 74 | CE55: 84 | CF55: 36 | CG55: 72 | CH55: 58 | CI55: 1 | CJ55: 16 | CK55: 16
A56: 7 | B56: 120 | C56: 138 | D56: 129 | E56: 127 | F56: 107 | G56: 120 | H56: 108 | I56: 129 | J56: 142 | K56: 139 | L56: 117 | M56: 145 | N56: 118 | O56: 118 | P56: 120 | Q56: 85 | R56: 94 | S56: 109 | T56: 115 | U56: 103 | V56: 104 | W56: 116 | X56: 100 | Y56: 94 | Z56: 57 | AA56: 130 | AB56: 113 | AC56: 80 | AD56: 61 | AE56: 32 | AF56: 20 | AG56: 18 | AH56: 14 | AI56: 11 | AJ56: 17 | AK56: 82 | AL56: 51 | AM56: 58 | AN56: 57 | AO56: 21 | AP56: 81 | AQ56: 55 | AR56: 60 | AS56: 61 | AT56: 21 | AU56: 3 | AV56: 214 | AW56: 209 | AX56: 209 | AY56: 164 | AZ56: 108 | BA56: 112 | BB56: 130 | BC56: 117 | BD56: 101 | BE56: 94 | BF56: 76 | BG56: 13 | BH56: 122 | BI56: 147 | BJ56: 115 | BK56: 111 | BL56: 128 | BM56: 92 | BN56: 29 | BO56: 122 | BP56: 95 | BQ56: 105 | BR56: 57 | BS56: 59 | BT56: 8 | BU56: 0 | BV56: 58 | BW56: 113 | BX56: 125 | BY56: 123 | BZ56: 119 | CA56: 109 | CB56: 140 | CC56: 96 | CD56: 84 | CE56: 94 | CF56: 26 | CG56: 86 | CH56: 69 | CI56: 0 | CJ56: 12 | CK56: 12
A57: 8 | B57: 101 | C57: 114 | D57: 125 | E57: 129 | F57: 123 | G57: 117 | H57: 113 | I57: 106 | J57: 132 | K57: 128 | L57: 123 | M57: 135 | N57: 146 | O57: 103 | P57: 119 | Q57: 120 | R57: 76 | S57: 117 | T57: 112 | U57: 113 | V57: 72 | W57: 106 | X57: 109 | Y57: 93 | Z57: 65 | AA57: 106 | AB57: 93 | AC57: 68 | AD57: 66 | AE57: 33 | AF57: 9 | AG57: 5 | AH57: 2 | AI57: 1 | AJ57: 5 | AK57: 67 | AL57: 65 | AM57: 51 | AN57: 52 | AO57: 7 | AP57: 74 | AQ57: 65 | AR57: 53 | AS57: 52 | AT57: 11 | AU57: 4 | AV57: 230 | AW57: 198 | AX57: 169 | AY57: 100 | AZ57: 113 | BA57: 105 | BB57: 103 | BC57: 83 | BD57: 112 | BE57: 87 | BF57: 63 | BG57: 12 | BH57: 108 | BI57: 133 | BJ57: 112 | BK57: 108 | BL57: 111 | BM57: 58 | BN57: 7 | BO57: 124 | BP57: 77 | BQ57: 72 | BR57: 64 | BS57: 63 | BT57: 4 | BU57: 1 | BV57: 63 | BW57: 99 | BX57: 111 | BY57: 128 | BZ57: 103 | CA57: 109 | CB57: 120 | CC57: 102 | CD57: 78 | CE57: 82 | CF57: 47 | CG57: 57 | CH57: 55 | CI57: 1 | CJ57: 20 | CK57: 20
A58: 9 | B58: 104 | C58: 103 | D58: 117 | E58: 125 | F58: 124 | G58: 129 | H58: 112 | I58: 119 | J58: 108 | K58: 125 | L58: 116 | M58: 134 | N58: 120 | O58: 108 | P58: 116 | Q58: 117 | R58: 78 | S58: 125 | T58: 120 | U58: 104 | V58: 96 | W58: 117 | X58: 127 | Y58: 94 | Z58: 79 | AA58: 143 | AB58: 94 | AC58: 60 | AD58: 71 | AE58: 51 | AF58: 10 | AG58: 4 | AH58: 2 | AI58: 3 | AJ58: 3 | AK58: 68 | AL58: 61 | AM58: 45 | AN58: 54 | AO58: 11 | AP58: 75 | AQ58: 63 | AR58: 47 | AS58: 56 | AT58: 18 | AU58: 2 | AV58: 229 | AW58: 197 | AX58: 204 | AY58: 108 | AZ58: 118 | BA58: 107 | BB58: 139 | BC58: 93 | BD58: 100 | BE58: 81 | BF58: 60 | BG58: 10 | BH58: 100 | BI58: 139 | BJ58: 124 | BK58: 118 | BL58: 146 | BM58: 70 | BN58: 5 | BO58: 119 | BP58: 82 | BQ58: 97 | BR58: 75 | BS58: 74 | BT58: 4 | BU58: 0 | BV58: 60 | BW58: 93 | BX58: 91 | BY58: 109 | BZ58: 119 | CA58: 101 | CB58: 102 | CC58: 113 | CD58: 75 | CE58: 84 | CF58: 48 | CG58: 65 | CH58: 57 | CI58: 1 | CJ58: 14 | CK58: 13
A59: 10 | B59: 125 | C59: 107 | D59: 106 | E59: 122 | F59: 129 | G59: 130 | H59: 129 | I59: 114 | J59: 112 | K59: 114 | L59: 118 | M59: 142 | N59: 144 | O59: 126 | P59: 105 | Q59: 100 | R59: 104 | S59: 119 | T59: 111 | U59: 130 | V59: 104 | W59: 136 | X59: 101 | Y59: 85 | Z59: 84 | AA59: 114 | AB59: 108 | AC59: 93 | AD59: 65 | AE59: 47 | AF59: 12 | AG59: 4 | AH59: 3 | AI59: 6 | AJ59: 8 | AK59: 57 | AL59: 63 | AM59: 54 | AN59: 48 | AO59: 25 | AP59: 60 | AQ59: 69 | AR59: 58 | AS59: 52 | AT59: 31 | AU59: 2 | AV59: 245 | AW59: 223 | AX59: 210 | AY59: 568 | AZ59: 120 | BA59: 132 | BB59: 110 | BC59: 84 | BD59: 122 | BE59: 83 | BF59: 93 | BG59: 480 | BH59: 128 | BI59: 141 | BJ59: 120 | BK59: 134 | BL59: 117 | BM59: 92 | BN59: 11 | BO59: 122 | BP59: 106 | BQ59: 99 | BR59: 83 | BS59: 66 | BT59: 9 | BU59: 0 | BV59: 58 | BW59: 113 | BX59: 91 | BY59: 114 | BZ59: 129 | CA59: 121 | CB59: 109 | CC59: 98 | CD59: 72 | CE59: 83 | CF59: 37 | CG59: 70 | CH59: 62 | CI59: 1 | CJ59: 18 | CK59: 18
A60: 11 | B60: 125 | C60: 118 | D60: 106 | E60: 99 | F60: 120 | G60: 128 | H60: 122 | I60: 115 | J60: 114 | K60: 113 | L60: 100 | M60: 142 | N60: 135 | O60: 117 | P60: 114 | Q60: 104 | R60: 91 | S60: 129 | T60: 106 | U60: 89 | V60: 88 | W60: 107 | X60: 104 | Y60: 89 | Z60: 71 | AA60: 134 | AB60: 91 | AC60: 79 | AD60: 65 | AE60: 58 | AF60: 15 | AG60: 6 | AH60: 5 | AI60: 3 | AJ60: 12 | AK60: 78 | AL60: 54 | AM60: 45 | AN60: 55 | AO60: 23 | AP60: 87 | AQ60: 65 | AR60: 46 | AS60: 55 | AT60: 32 | AU60: 3 | AV60: 205 | AW60: 216 | AX60: 300 | AY60: 2681 | AZ60: 117 | BA60: 100 | BB60: 128 | BC60: 150 | BD60: 84 | BE60: 108 | BF60: 164 | BG60: 2455 | BH60: 119 | BI60: 137 | BJ60: 122 | BK60: 104 | BL60: 125 | BM60: 68 | BN60: 6 | BO60: 107 | BP60: 91 | BQ60: 83 | BR60: 70 | BS60: 61 | BT60: 13 | BU60: 0 | BV60: 55 | BW60: 125 | BX60: 118 | BY60: 83 | BZ60: 121 | CA60: 119 | CB60: 96 | CC60: 94 | CD60: 68 | CE60: 83 | CF60: 36 | CG60: 73 | CH60: 52 | CI60: 1 | CJ60: 11 | CK60: 11
A61: Total general | B61: 1311 | C61: 1310 | D61: 1328 | E61: 1382 | F61: 1384 | G61: 1444 | H61: 1414 | I61: 1416 | J61: 1390 | K61: 1343 | L61: 1229 | M61: 1506 | N61: 1423 | O61: 1235 | P61: 1226 | Q61: 1115 | R61: 995 | S61: 1380 | T61: 1275 | U61: 1106 | V61: 964 | W61: 1328 | X61: 1130 | Y61: 960 | Z61: 801 | AA61: 1320 | AB61: 1039 | AC61: 794 | AD61: 674 | AE61: 531 | AF61: 275 | AG61: 207 | AH61: 194 | AI61: 168 | AJ61: 407 | AK61: 733 | AL61: 652 | AM61: 594 | AN61: 547 | AO61: 288 | AP61: 761 | AQ61: 685 | AR61: 606 | AS61: 564 | AT61: 316 | AU61: 33 | AV61: 2454 | AW61: 2425 | AX61: 2490 | AY61: 11894 | AZ61: 1354 | BA61: 1418 | BB61: 1574 | BC61: 8608 | BD61: 1048 | BE61: 930 | BF61: 844 | BG61: 3021 | BH61: 1300 | BI61: 1499 | BJ61: 1363 | BK61: 1306 | BL61: 1329 | BM61: 1224 | BN61: 347 | BO61: 1249 | BP61: 1004 | BQ61: 950 | BR61: 771 | BS61: 675 | BT61: 83 | BU61: 10 | BV61: 653 | BW61: 1218 | BX61: 1208 | BY61: 1299 | BZ61: 1361 | CA61: 1345 | CB61: 1271 | CC61: 1060 | CD61: 783 | CE61: 899 | CF61: 421 | CG61: 811 | CH61: 617 | CI61: 7 | CJ61: 196 | CK61: 194
A67: ANO | B67: 2024
A68: DESC_RED | B68: LA CONVENCION
A69: DESC_MICRO | B69: (Todas)
A70: DESC_ESTAB | B70: (Todas)
A71: DESC_PROV | B71: (Todas)
A72: DESC_DIST | B72: (Todas)
B74: Valores
A75: Etiquetas de fila | B75: LME | C75: LME_PROL | D75: ALI_COMP_ADE 7-11m | E75: ALI_COMP_ADE 1a | F75: ALI_COMP_ADE 2a | G75: atc inm rn normal | H75: EVAL NUTRICIONAL RN | I75: EVAL NUTRIC NORMAL <1a | J75: EVAL NUTRIC NORMAL 1a | K75: EVAL NUTRIC NORMAL 2a | L75: EVAL NUTRIC NORMAL 3a | M75: EVAL NUTRIC NORMAL 4a | N75: EVAL NUTRIC NORMAL 5-9a | O75: EVAL NUTRIC NORMAL 10-11a | P75: CONSEJERIA NUTRICIONAL <1a | Q75: CONSEJERIA NUTRICIONAL 1a | R75: CONSEJERIA NUTRICIONAL 2a | S75: CONSEJERIA NUTRICIONAL 3a | T75: CONSEJERIA NUTRICIONAL 4a
A76: 1 | B76: 46 | C76: 1 | D76: 1 | E76: 0 | F76: 0 | H76: 5 | I76: 33 | J76: 14 | K76: 15 | L76: 38 | M76: 12 | N76: 6 | O76: 0 | P76: 1036 | Q76: 689 | R76: 575 | S76: 368 | T76: 269
A77: 2 | B77: 35 | C77: 5 | D77: 3 | E77: 0 | F77: 0 | H77: 2 | I77: 13 | J77: 10 | K77: 13 | L77: 37 | M77: 3 | N77: 6 | O77: 3 | P77: 956 | Q77: 637 | R77: 509 | S77: 332 | T77: 257
A78: 3 | B78: 39 | C78: 1 | D78: 0 | E78: 0 | F78: 0 | H78: 0 | I78: 14 | J78: 10 | K78: 11 | L78: 32 | M78: 3 | N78: 6 | O78: 1 | P78: 1022 | Q78: 662 | R78: 576 | S78: 346 | T78: 262
A79: 4 | B79: 48 | C79: 0 | D79: 1 | E79: 0 | F79: 0 | H79: 0 | I79: 11 | J79: 5 | K79: 10 | L79: 36 | M79: 4 | N79: 10 | O79: 2 | P79: 1008 | Q79: 683 | R79: 613 | S79: 394 | T79: 294
A80: 5 | B80: 48 | C80: 4 | D80: 0 | E80: 0 | F80: 0 | H80: 2 | I80: 9 | J80: 7 | K80: 6 | L80: 31 | M80: 3 | N80: 29 | O80: 6 | P80: 1044 | Q80: 674 | R80: 563 | S80: 383 | T80: 267
A81: 6 | B81: 43 | C81: 3 | D81: 1 | E81: 0 | F81: 0 | H81: 0 | I81: 12 | J81: 3 | K81: 4 | L81: 16 | M81: 4 | N81: 14 | O81: 7 | P81: 1001 | Q81: 621 | R81: 544 | S81: 342 | T81: 240
A82: 7 | B82: 40 | C82: 0 | D82: 1 | E82: 0 | F82: 0 | H82: 3 | I82: 6 | J82: 4 | K82: 4 | L82: 20 | M82: 3 | N82: 11 | O82: 2 | P82: 992 | Q82: 633 | R82: 557 | S82: 384 | T82: 292
A83: 8 | B83: 33 | C83: 3 | D83: 1 | E83: 0 | F83: 0 | H83: 3 | I83: 15 | J83: 4 | K83: 9 | L83: 24 | M83: 3 | N83: 10 | O83: 5 | P83: 993 | Q83: 653 | R83: 572 | S83: 377 | T83: 252
A84: 9 | B84: 51 | C84: 1 | D84: 0 | E84: 0 | F84: 0 | H84: 2 | I84: 13 | J84: 7 | K84: 16 | L84: 23 | M84: 5 | N84: 10 | O84: 1 | P84: 924 | Q84: 672 | R84: 618 | S84: 384 | T84: 300
A85: 10 | B85: 40 | C85: 0 | D85: 0 | E85: 0 | F85: 0 | H85: 1 | I85: 16 | J85: 6 | K85: 18 | L85: 29 | M85: 5 | N85: 9 | O85: 0 | P85: 986 | Q85: 695 | R85: 608 | S85: 408 | T85: 314
A86: 11 | B86: 55 | C86: 0 | D86: 1 | E86: 0 | F86: 0 | H86: 1 | I86: 9 | J86: 3 | K86: 7 | L86: 21 | M86: 3 | N86: 7 | O86: 2 | P86: 875 | Q86: 711 | R86: 527 | S86: 381 | T86: 327
A87: Total general | B87: 478 | C87: 18 | D87: 9 | E87: 0 | F87: 0 | H87: 19 | I87: 151 | J87: 73 | K87: 113 | L87: 307 | M87: 48 | N87: 118 | O87: 29 | P87: 10837 | Q87: 7330 | R87: 6262 | S87: 4099 | T87: 3074
A93: ANO | B93: 2024
A94: DESC_RED | B94: LA CONVENCION
A95: DESC_MICRO | B95: (Todas)
A96: DESC_ESTAB | B96: (Todas)
A97: DESC_PROV | B97: (Todas)
A98: DESC_DIST | B98: (Todas)
B100: Valores
A101: MES | B101: RIESGO AREA COORDINACION <1a | C101: RIESGO AREA COORDINACION 1a | D101: RIESGO AREA COORDINACION 2a | E101: RIESGO AREA COORDINACION 3a | F101: RIESGO AREA COORDINACION 4a | G101: RIESGO AREA DEL LENGUAJE <1a | H101: RIESGO AREA DEL LENGUAJE 1a | I101: RIESGO AREA DEL LENGUAJE 2a | J101: RIESGO AREA DEL LENGUAJE 3a | K101: RIESGO AREA DEL LENGUAJE 4a | L101: RIESGO AREA SOCIAL<1a | M101: RIESGO AREA SOCIAL 1a | N101: RIESGO AREA SOCIAL 2a | O101: RIESGO AREA SOCIAL 3a | P101: RIESGO AREA SOCIAL 4a | Q101: RIESGO AREA COGNITIVA <1a | R101: RIESGO AREA COGNITIVA 1a | S101: RIESGO AREA COGNITIVA 2a | T101: RIESGO AREA COGNITIVA 3a | U101: RIESGO AREA COGNITIVA 4a | V101: RIESGO AREA MOTORA<1a | W101: RIESGO AREA MOTORA 1a | X101: RIESGO AREA MOTORA 2a | Y101: RIESGO AREA MOTORA 3a | Z101: RIESGO AREA MOTORA 4a
A102: 1 | B102: 0 | C102: 0 | D102: 0 | E102: 0 | F102: 0 | G102: 0 | H102: 0 | I102: 0 | J102: 0 | K102: 0 | L102: 0 | M102: 0 | N102: 0 | O102: 0 | P102: 0 | Q102: 0 | R102: 0 | S102: 0 | T102: 0 | U102: 0 | V102: 0 | W102: 0 | X102: 0 | Y102: 0 | Z102: 0
A103: 2 | B103: 0 | C103: 0 | D103: 0 | E103: 0 | F103: 0 | G103: 0 | H103: 0 | I103: 0 | J103: 0 | K103: 0 | L103: 0 | M103: 0 | N103: 0 | O103: 0 | P103: 0 | Q103: 0 | R103: 0 | S103: 0 | T103: 0 | U103: 0 | V103: 0 | W103: 0 | X103: 0 | Y103: 0 | Z103: 0
A104: 3 | B104: 0 | C104: 0 | D104: 0 | E104: 0 | F104: 0 | G104: 0 | H104: 0 | I104: 0 | J104: 0 | K104: 0 | L104: 0 | M104: 0 | N104: 0 | O104: 0 | P104: 0 | Q104: 0 | R104: 0 | S104: 0 | T104: 0 | U104: 0 | V104: 0 | W104: 0 | X104: 0 | Y104: 0 | Z104: 0
A105: 4 | B105: 0 | C105: 0 | D105: 0 | E105: 0 | F105: 0 | G105: 0 | H105: 0 | I105: 0 | J105: 0 | K105: 0 | L105: 0 | M105: 0 | N105: 0 | O105: 0 | P105: 0 | Q105: 0 | R105: 0 | S105: 0 | T105: 0 | U105: 0 | V105: 0 | W105: 0 | X105: 0 | Y105: 0 | Z105: 0
A106: 5 | B106: 0 | C106: 0 | D106: 0 | E106: 0 | F106: 0 | G106: 0 | H106: 0 | I106: 1 | J106: 0 | K106: 0 | L106: 0 | M106: 0 | N106: 0 | O106: 0 | P106: 0 | Q106: 0 | R106: 0 | S106: 0 | T106: 0 | U106: 0 | V106: 0 | W106: 0 | X106: 0 | Y106: 0 | Z106: 0
A107: 6 | B107: 0 | C107: 0 | D107: 0 | E107: 0 | F107: 0 | G107: 0 | H107: 0 | I107: 0 | J107: 0 | K107: 0 | L107: 0 | M107: 0 | N107: 0 | O107: 0 | P107: 0 | Q107: 0 | R107: 0 | S107: 0 | T107: 0 | U107: 0 | V107: 0 | W107: 0 | X107: 0 | Y107: 0 | Z107: 0
A108: 7 | B108: 0 | C108: 0 | D108: 0 | E108: 0 | F108: 0 | G108: 0 | H108: 0 | I108: 0 | J108: 0 | K108: 0 | L108: 0 | M108: 0 | N108: 0 | O108: 0 | P108: 0 | Q108: 0 | R108: 0 | S108: 0 | T108: 0 | U108: 0 | V108: 0 | W108: 0 | X108: 0 | Y108: 0 | Z108: 0
A109: 8 | B109: 0 | C109: 0 | D109: 0 | E109: 0 | F109: 0 | G109: 0 | H109: 0 | I109: 0 | J109: 1 | K109: 1 | L109: 0 | M109: 0 | N109: 0 | O109: 0 | P109: 0 | Q109: 0 | R109: 0 | S109: 0 | T109: 0 | U109: 0 | V109: 1 | W109: 1 | X109: 0 | Y109: 0 | Z109: 0
A110: 9 | B110: 0 | C110: 0 | D110: 0 | E110: 0 | F110: 0 | G110: 0 | H110: 0 | I110: 1 | J110: 0 | K110: 0 | L110: 0 | M110: 0 | N110: 0 | O110: 0 | P110: 0 | Q110: 0 | R110: 0 | S110: 0 | T110: 0 | U110: 0 | V110: 0 | W110: 0 | X110: 0 | Y110: 0 | Z110: 0
A111: 10 | B111: 0 | C111: 0 | D111: 0 | E111: 0 | F111: 0 | G111: 0 | H111: 0 | I111: 0 | J111: 0 | K111: 0 | L111: 0 | M111: 0 | N111: 0 | O111: 0 | P111: 0 | Q111: 0 | R111: 0 | S111: 0 | T111: 0 | U111: 0 | V111: 0 | W111: 0 | X111: 0 | Y111: 0 | Z111: 0
A112: 11 | B112: 0 | C112: 0 | D112: 0 | E112: 0 | F112: 0 | G112: 0 | H112: 0 | I112: 0 | J112: 0 | K112: 0 | L112: 0 | M112: 0 | N112: 0 | O112: 0 | P112: 0 | Q112: 0 | R112: 0 | S112: 0 | T112: 0 | U112: 0 | V112: 0 | W112: 0 | X112: 0 | Y112: 0 | Z112: 0
A113: Total general | B113: 0 | C113: 0 | D113: 0 | E113: 0 | F113: 0 | G113: 0 | H113: 0 | I113: 2 | J113: 1 | K113: 1 | L113: 0 | M113: 0 | N113: 0 | O113: 0 | P113: 0 | Q113: 0 | R113: 0 | S113: 0 | T113: 0 | U113: 0 | V113: 1 | W113: 1 | X113: 0 | Y113: 0 | Z113: 0
A119: ANO | B119: 2024
A120: DESC_RED | B120: LA CONVENCION
A121: DESC_MICRO | B121: (Todas)
A122: DESC_ESTAB | B122: (Todas)
A123: DESC_PROV | B123: (Todas)
A124: DESC_DIST | B124: (Todas)
A126: Etiquetas de fila | B126: RETARDO EN EL DESARROLLO PSICOMOTOR <1a | C126: RETARDO EN EL DESARROLLO PSICOMOTOR 1a | D126: RETARDO EN EL DESARROLLO PSICOMOTOR 2a | E126: RETARDO EN EL DESARROLLO PSICOMOTOR 3a | F126: RETARDO EN EL DESARROLLO PSICOMOTOR 4a | G126: RN NORMAL ED | H126: NORMAL ED <1a | I126: NORMAL ED 1a | J126: NORMAL ED 2a | K126: NORMAL ED 3a | L126: NORMAL ED 4a | M126: NORMAL ED 5_9a | N126: NORMAL ED 10_11a | O126: DESNUTRICION AGUDA <1a | P126: DESNUTRICION AGUDA 1a | Q126: DESNUTRICION AGUDA 2a | R126: DESNUTRICION AGUDA 3a | S126: DESNUTRICION AGUDA 4a | T126: DESNUTRICION AGUDA PE <1a | U126: DESNUTRICION AGUDA PE 1a | V126: DESNUTRICION AGUDA PE 2a | W126: DESNUTRICION AGUDA PE 3a | X126: DESNUTRICION AGUDA PE 4a | Y126: DESNUTRICION CRONICA <1a | Z126: DESNUTRICION CRONICA 1A | AA126: DESNUTRICION CRONIC 2A | AB126: DESNUTRICION CRONIC 3A | AC126: DESNUTRICION CRONICA 4A | AD126: G INADEC/TALLA RN | AE126: G INADEC/TALLA <1 | AF126: G INADEC/TALLA 1a | AG126: G INADEC/TALLA 2a | AH126: G INADEC/TALLA 3a | AI126: G INADEC/TALLA 4a | AJ126: (R) TALLA INADEC RN | AK126: PESO INADEC RN | AL126: G INADEC/PESO <1a | AM126: PESO INADEC 1a | AN126: PESO INADEC 2a | AO126: PESO INADEC 3a | AP126: PESO INADEC 4a | AQ126: SOBRE PESO <1a | AR126: SOBRE PESO 1a | AS126: SOBRE PESO 2a | AT126: SOBRE PESO 3a | AU126: SOBRE PESO 4a | AV126: OBESO <1a | AW126: OBESO 1a | AX126: OBESO 2a | AY126: OBESO 3a | AZ126: OBESO 4a | BA126: DELGADEZ IMC 5-11a | BB126: NORMAL IMC 5-11a | BC126: OBESO IMC 5-11a | BD126: SOBRE PESO IMC 5-11a | BE126: DESNUTRICION SEVERA <1a | BF126: DESNUTRICION SEVERA 1A | BG126: DESNUTRICION SEVERA 2A | BH126: DESNUTRICION SEVERA 3A | BI126: DESNUTRICION SEVERA 4A
A127: 1 | B127: 0 | C127: 0 | D127: 1 | E127: 0 | F127: 0 | G127: 19 | H127: 0 | I127: 0 | J127: 0 | K127: 0 | L127: 0 | M127: 0 | N127: 0 | O127: 0 | P127: 0 | Q127: 0 | R127: 0 | S127: 0 | T127: 5 | U127: 0 | V127: 1 | W127: 0 | X127: 0 | Y127: 3 | Z127: 3 | AA127: 3 | AB127: 1 | AC127: 2 | AD127: 20 | AE127: 20 | AF127: 9 | AG127: 10 | AH127: 8 | AI127: 8 | AJ127: 0 | AK127: 0 | AL127: 20 | AM127: 16 | AN127: 7 | AO127: 6 | AP127: 2 | AQ127: 3 | AR127: 1 | AS127: 0 | AT127: 0 | AU127: 0 | AV127: 2 | AW127: 0 | AX127: 1 | AY127: 0 | AZ127: 0 | BA127: 0 | BB127: 55 | BC127: 3 | BD127: 0 | BE127: 0 | BF127: 0 | BG127: 0 | BH127: 0 | BI127: 0
A128: 2 | B128: 0 | C128: 0 | D128: 0 | E128: 0 | F128: 0 | G128: 22 | H128: 0 | I128: 0 | J128: 0 | K128: 0 | L128: 0 | M128: 0 | N128: 0 | O128: 0 | P128: 0 | Q128: 0 | R128: 0 | S128: 0 | T128: 4 | U128: 2 | V128: 0 | W128: 0 | X128: 0 | Y128: 3 | Z128: 3 | AA128: 3 | AB128: 1 | AC128: 2 | AD128: 6 | AE128: 6 | AF128: 10 | AG128: 4 | AH128: 3 | AI128: 3 | AJ128: 0 | AK128: 0 | AL128: 5 | AM128: 9 | AN128: 2 | AO128: 1 | AP128: 2 | AQ128: 7 | AR128: 2 | AS128: 3 | AT128: 0 | AU128: 0 | AV128: 0 | AW128: 1 | AX128: 0 | AY128: 0 | AZ128: 1 | BA128: 0 | BB128: 89 | BC128: 4 | BD128: 0 | BE128: 0 | BF128: 0 | BG128: 0 | BH128: 0 | BI128: 0
A129: 3 | B129: 0 | C129: 0 | D129: 0 | E129: 0 | F129: 0 | G129: 12 | H129: 0 | I129: 0 | J129: 0 | K129: 0 | L129: 0 | M129: 0 | N129: 0 | O129: 1 | P129: 1 | Q129: 0 | R129: 0 | S129: 0 | T129: 6 | U129: 0 | V129: 1 | W129: 2 | X129: 0 | Y129: 3 | Z129: 3 | AA129: 3 | AB129: 2 | AC129: 1 | AD129: 11 | AE129: 11 | AF129: 14 | AG129: 9 | AH129: 9 | AI129: 4 | AJ129: 0 | AK129: 1 | AL129: 13 | AM129: 11 | AN129: 4 | AO129: 2 | AP129: 1 | AQ129: 6 | AR129: 4 | AS129: 2 | AT129: 0 | AU129: 0 | AV129: 0 | AW129: 0 | AX129: 0 | AY129: 0 | AZ129: 0 | BA129: 1 | BB129: 98 | BC129: 5 | BD129: 1 | BE129: 0 | BF129: 0 | BG129: 0 | BH129: 0 | BI129: 0
A130: 4 | B130: 0 | C130: 0 | D130: 0 | E130: 0 | F130: 0 | G130: 21 | H130: 0 | I130: 0 | J130: 0 | K130: 0 | L130: 0 | M130: 0 | N130: 0 | O130: 0 | P130: 0 | Q130: 0 | R130: 0 | S130: 0 | T130: 6 | U130: 0 | V130: 2 | W130: 0 | X130: 0 | Y130: 10 | Z130: 3 | AA130: 3 | AB130: 3 | AC130: 1 | AD130: 10 | AE130: 10 | AF130: 10 | AG130: 12 | AH130: 6 | AI130: 10 | AJ130: 0 | AK130: 0 | AL130: 17 | AM130: 7 | AN130: 9 | AO130: 2 | AP130: 4 | AQ130: 10 | AR130: 3 | AS130: 2 | AT130: 1 | AU130: 0 | AV130: 0 | AW130: 1 | AX130: 1 | AY130: 0 | AZ130: 1 | BA130: 2 | BB130: 467 | BC130: 40 | BD130: 11 | BE130: 0 | BF130: 0 | BG130: 0 | BH130: 0 | BI130: 0
A131: 5 | B131: 0 | C131: 0 | D131: 2 | E131: 0 | F131: 0 | G131: 17 | H131: 0 | I131: 0 | J131: 0 | K131: 0 | L131: 0 | M131: 0 | N131: 0 | O131: 0 | P131: 0 | Q131: 0 | R131: 0 | S131: 0 | T131: 10 | U131: 5 | V131: 2 | W131: 1 | X131: 0 | Y131: 8 | Z131: 4 | AA131: 5 | AB131: 0 | AC131: 0 | AD131: 4 | AE131: 4 | AF131: 4 | AG131: 2 | AH131: 3 | AI131: 6 | AJ131: 0 | AK131: 3 | AL131: 7 | AM131: 6 | AN131: 5 | AO131: 2 | AP131: 6 | AQ131: 8 | AR131: 1 | AS131: 3 | AT131: 0 | AU131: 1 | AV131: 0 | AW131: 0 | AX131: 1 | AY131: 0 | AZ131: 0 | BA131: 1 | BB131: 80 | BC131: 3 | BD131: 4 | BE131: 0 | BF131: 0 | BG131: 0 | BH131: 0 | BI131: 0
A132: 6 | B132: 1 | C132: 1 | D132: 0 | E132: 0 | F132: 0 | G132: 17 | H132: 0 | I132: 0 | J132: 0 | K132: 0 | L132: 0 | M132: 0 | N132: 0 | O132: 1 | P132: 1 | Q132: 0 | R132: 0 | S132: 0 | T132: 5 | U132: 2 | V132: 2 | W132: 2 | X132: 0 | Y132: 6 | Z132: 8 | AA132: 4 | AB132: 2 | AC132: 4 | AD132: 5 | AE132: 5 | AF132: 5 | AG132: 1 | AH132: 7 | AI132: 6 | AJ132: 0 | AK132: 0 | AL132: 6 | AM132: 5 | AN132: 6 | AO132: 1 | AP132: 5 | AQ132: 5 | AR132: 2 | AS132: 1 | AT132: 0 | AU132: 0 | AV132: 0 | AW132: 0 | AX132: 0 | AY132: 0 | AZ132: 0 | BA132: 2 | BB132: 140 | BC132: 11 | BD132: 1 | BE132: 0 | BF132: 0 | BG132: 0 | BH132: 0 | BI132: 0
A133: 7 | B133: 1 | C133: 0 | D133: 0 | E133: 0 | F133: 0 | G133: 19 | H133: 0 | I133: 0 | J133: 0 | K133: 0 | L133: 0 | M133: 0 | N133: 0 | O133: 0 | P133: 0 | Q133: 0 | R133: 0 | S133: 0 | T133: 7 | U133: 1 | V133: 1 | W133: 0 | X133: 0 | Y133: 9 | Z133: 6 | AA133: 2 | AB133: 0 | AC133: 1 | AD133: 9 | AE133: 9 | AF133: 3 | AG133: 4 | AH133: 1 | AI133: 5 | AJ133: 0 | AK133: 0 | AL133: 11 | AM133: 7 | AN133: 5 | AO133: 3 | AP133: 6 | AQ133: 10 | AR133: 3 | AS133: 0 | AT133: 1 | AU133: 1 | AV133: 0 | AW133: 0 | AX133: 0 | AY133: 0 | AZ133: 0 | BA133: 2 | BB133: 166 | BC133: 27 | BD133: 9 | BE133: 0 | BF133: 0 | BG133: 0 | BH133: 0 | BI133: 0
A134: 8 | B134: 0 | C134: 1 | D134: 0 | E134: 2 | F134: 1 | G134: 14 | H134: 0 | I134: 0 | J134: 0 | K134: 0 | L134: 0 | M134: 0 | N134: 0 | O134: 0 | P134: 0 | Q134: 0 | R134: 0 | S134: 0 | T134: 4 | U134: 3 | V134: 0 | W134: 1 | X134: 0 | Y134: 13 | Z134: 5 | AA134: 1 | AB134: 2 | AC134: 1 | AD134: 5 | AE134: 5 | AF134: 7 | AG134: 3 | AH134: 6 | AI134: 9 | AJ134: 0 | AK134: 0 | AL134: 11 | AM134: 12 | AN134: 4 | AO134: 6 | AP134: 5 | AQ134: 11 | AR134: 3 | AS134: 1 | AT134: 0 | AU134: 1 | AV134: 0 | AW134: 0 | AX134: 0 | AY134: 0 | AZ134: 0 | BA134: 0 | BB134: 21 | BC134: 0 | BD134: 2 | BE134: 0 | BF134: 0 | BG134: 0 | BH134: 0 | BI134: 0
A135: 9 | B135: 0 | C135: 0 | D135: 1 | E135: 0 | F135: 0 | G135: 17 | H135: 0 | I135: 0 | J135: 0 | K135: 0 | L135: 0 | M135: 0 | N135: 0 | O135: 1 | P135: 1 | Q135: 0 | R135: 0 | S135: 0 | T135: 5 | U135: 2 | V135: 0 | W135: 0 | X135: 1 | Y135: 10 | Z135: 1 | AA135: 1 | AB135: 2 | AC135: 5 | AD135: 8 | AE135: 8 | AF135: 13 | AG135: 7 | AH135: 3 | AI135: 10 | AJ135: 0 | AK135: 0 | AL135: 13 | AM135: 7 | AN135: 3 | AO135: 1 | AP135: 5 | AQ135: 8 | AR135: 4 | AS135: 1 | AT135: 3 | AU135: 0 | AV135: 0 | AW135: 1 | AX135: 1 | AY135: 0 | AZ135: 0 | BA135: 0 | BB135: 27 | BC135: 7 | BD135: 3 | BE135: 0 | BF135: 0 | BG135: 0 | BH135: 0 | BI135: 0
A136: 10 | B136: 0 | C136: 0 | D136: 0 | E136: 0 | F136: 0 | G136: 19 | H136: 0 | I136: 0 | J136: 0 | K136: 0 | L136: 0 | M136: 0 | N136: 0 | O136: 0 | P136: 0 | Q136: 0 | R136: 0 | S136: 0 | T136: 9 | U136: 3 | V136: 1 | W136: 2 | X136: 1 | Y136: 19 | Z136: 8 | AA136: 2 | AB136: 3 | AC136: 2 | AD136: 9 | AE136: 9 | AF136: 10 | AG136: 9 | AH136: 9 | AI136: 10 | AJ136: 0 | AK136: 0 | AL136: 9 | AM136: 11 | AN136: 5 | AO136: 7 | AP136: 3 | AQ136: 8 | AR136: 1 | AS136: 0 | AT136: 1 | AU136: 1 | AV136: 0 | AW136: 0 | AX136: 0 | AY136: 0 | AZ136: 1 | BA136: 0 | BB136: 48 | BC136: 5 | BD136: 0 | BE136: 0 | BF136: 0 | BG136: 0 | BH136: 0 | BI136: 0
A137: 11 | B137: 0 | C137: 0 | D137: 0 | E137: 1 | F137: 1 | G137: 6 | H137: 0 | I137: 0 | J137: 0 | K137: 0 | L137: 0 | M137: 0 | N137: 0 | O137: 0 | P137: 0 | Q137: 0 | R137: 0 | S137: 0 | T137: 2 | U137: 0 | V137: 2 | W137: 0 | X137: 1 | Y137: 6 | Z137: 2 | AA137: 2 | AB137: 1 | AC137: 1 | AD137: 1 | AE137: 1 | AF137: 12 | AG137: 9 | AH137: 5 | AI137: 7 | AJ137: 0 | AK137: 0 | AL137: 4 | AM137: 15 | AN137: 5 | AO137: 2 | AP137: 4 | AQ137: 10 | AR137: 1 | AS137: 0 | AT137: 0 | AU137: 0 | AV137: 0 | AW137: 0 | AX137: 0 | AY137: 0 | AZ137: 0 | BA137: 0 | BB137: 45 | BC137: 1 | BD137: 0 | BE137: 0 | BF137: 0 | BG137: 0 | BH137: 0 | BI137: 0
A138: Total general | B138: 2 | C138: 2 | D138: 4 | E138: 3 | F138: 2 | G138: 183 | H138: 0 | I138: 0 | J138: 0 | K138: 0 | L138: 0 | M138: 0 | N138: 0 | O138: 3 | P138: 3 | Q138: 0 | R138: 0 | S138: 0 | T138: 63 | U138: 18 | V138: 12 | W138: 8 | X138: 3 | Y138: 90 | Z138: 46 | AA138: 29 | AB138: 17 | AC138: 20 | AD138: 88 | AE138: 88 | AF138: 97 | AG138: 70 | AH138: 60 | AI138: 78 | AJ138: 0 | AK138: 4 | AL138: 116 | AM138: 106 | AN138: 55 | AO138: 33 | AP138: 43 | AQ138: 86 | AR138: 25 | AS138: 13 | AT138: 6 | AU138: 4 | AV138: 2 | AW138: 3 | AX138: 4 | AY138: 0 | AZ138: 3 | BA138: 8 | BB138: 1236 | BC138: 106 | BD138: 31 | BE138: 0 | BF138: 0 | BG138: 0 | BH138: 0 | BI138: 0
A161: ANO | B161: 2024
A162: DESC_RED | B162: LA CONVENCION
A163: DESC_MICRO | B163: (Todas)
A164: DESC_ESTAB | B164: (Todas)
A165: DESC_PROV | B165: (Todas)
A166: DESC_DIST | B166: (Todas)
B168: Valores
A169: Etiquetas de fila | B169: TTO 1a ESH o T_GRAHAN | C169: TTO 2a ESH o T_GRAHAN | D169: TTO 3a ESH o T_GRAHAN | E169: TTO 4a ESH o T_GRAHAN | F169: TTO 5-11 ESH o T_GRAHAN
A170: 1 | B170: 0 | C170: 0 | D170: 0 | E170: 0 | F170: 0
A171: 2 | B171: 1 | C171: 0 | D171: 1 | E171: 1 | F171: 0
A172: 3 | B172: 1 | C172: 1 | D172: 0 | E172: 0 | F172: 0
A173: 4 | B173: 1 | C173: 0 | D173: 0 | E173: 0 | F173: 0
A174: 5 | B174: 1 | C174: 1 | D174: 1 | E174: 0 | F174: 0
A175: 6 | B175: 0 | C175: 0 | D175: 0 | E175: 0 | F175: 1
A176: 7 | B176: 1 | C176: 1 | D176: 0 | E176: 0 | F176: 1
A177: 8 | B177: 0 | C177: 1 | D177: 0 | E177: 0 | F177: 0
A178: 9 | B178: 0 | C178: 0 | D178: 0 | E178: 0 | F178: 0
A179: 10 | B179: 0 | C179: 0 | D179: 0 | E179: 0 | F179: 1
A180: 11 | B180: 0 | C180: 0 | D180: 0 | E180: 0 | F180: 0
A181: Total general | B181: 5 | C181: 4 | D181: 2 | E181: 1 | F181: 3
A208: ANO | B208: 2024
A209: DESC_RED | B209: LA CONVENCION
A210: DESC_MICRO | B210: (Todas)
A211: DESC_ESTAB | B211: (Todas)
A212: DESC_PROV | B212: (Todas)
A213: DESC_DIST | B213: (Todas)
A215: Etiquetas de fila | B215: totatcinm | C215: tamizaje neonatal | D215: tot tamizaje neonatal entrega resulta | E215: HIIPOTIROIDISMO CONGENITO | F215: Fenilcetonuria | G215: Galactosemia | H215: Hiperplasia Suprarrenal Congénita | I215: Fibrosis Quística | J215: Catarata Congénita | K215: Hipoacusia | L215: Extremadamente bajo | M215: Muy bajo peso al nacer | N215: Bajo peso al nacer | O215: Macrosómico | P215: PREMATURO perif | Q215: atcinm BPN | R215: atcinm prematuro | S215: 1° CRED RN DE BPN | T215: 2° CRED RN DE BPN | U215: 3° CRED RN DE BPN | V215: 4° CRED RN DE BPN | W215: 1° CRED RN DE PREMATURO | X215: 2° CRED RN DE PREMATURO | Y215: 3° CRED RN DE PREMATURO | Z215: 4° CRED RN DE PREMATURO | AA215: Extremadamente bajo2 | AB215: Muy bajo peso al nacer2 | AC215: RN BPN | AD215: TOT RN BPN | AE215: RN PREMATURO | AF215: macrosomico | AG215: CONTACTO PIEL A PIEL | AH215: ALOJAMIENTO CONJUNTO | AI215: LME 1RA HORA | AJ215: tamizaje visual auditivoL | AK215: Eval Nutricional | AL215: Eval de Desarrollo | AM215: Consejeria Nutric por Suplementación RN | AN215: Consejeria Nutric RN | AO215: visit domic verificacion consumo Suplementación RN | AP215: VISITA DOMIC SEGUIMIENTO PROBLEM NUTRIC RN | AQ215: Seguimiento a Problemas del Desarrollo RN | AR215: visit domic Entrega de Suplementación RN | AS215: VISITA DOMIC SEGUIMIENTO RN | AT215: 1° CRED RN | AU215: 2° CRED RN | AV215: 3° CRED RN | AW215: 4° CRED RN | AX215: EVAL NUTRICIONAL RN BPN
A216: 1 | B216: 32 | C216: 38 | D216: 16 | E216: 0 | F216: 0 | G216: 0 | H216: 0 | I216: 1 | J216: 0 | K216: 0 | L216: 0 | M216: 0 | N216: 3 | O216: 0 | P216: 3 | Q216: 1 | R216: 1 | S216: 1 | T216: 1 | U216: 0 | V216: 0 | W216: 1 | X216: 1 | Y216: 0 | Z216: 0 | AA216: 0 | AB216: 0 | AC216: 0 | AD216: 0 | AE216: 0 | AF216: 0 | AG216: 31 | AH216: 19 | AI216: 34 | AJ216: 0 | AK216: 0 | AL216: 0 | AM216: 0 | AN216: 15 | AO216: 0 | AP216: 0 | AQ216: 0 | AR216: 0 | AS216: 0 | AT216: 101 | AU216: 118 | AV216: 114 | AW216: 116 | AX216: 0
A217: 2 | B217: 32 | C217: 37 | D217: 8 | E217: 0 | F217: 0 | G217: 0 | H217: 0 | I217: 0 | J217: 0 | K217: 0 | L217: 0 | M217: 0 | N217: 5 | O217: 1 | P217: 5 | Q217: 2 | R217: 1 | S217: 3 | T217: 2 | U217: 1 | V217: 2 | W217: 3 | X217: 2 | Y217: 1 | Z217: 1 | AA217: 0 | AB217: 0 | AC217: 0 | AD217: 0 | AE217: 0 | AF217: 0 | AG217: 32 | AH217: 16 | AI217: 27 | AJ217: 0 | AK217: 0 | AL217: 0 | AM217: 0 | AN217: 10 | AO217: 0 | AP217: 0 | AQ217: 0 | AR217: 0 | AS217: 0 | AT217: 91 | AU217: 91 | AV217: 80 | AW217: 80 | AX217: 0
A218: 3 | B218: 25 | C218: 37 | D218: 14 | E218: 0 | F218: 0 | G218: 0 | H218: 0 | I218: 0 | J218: 0 | K218: 0 | L218: 0 | M218: 0 | N218: 5 | O218: 0 | P218: 5 | Q218: 1 | R218: 0 | S218: 2 | T218: 2 | U218: 2 | V218: 1 | W218: 2 | X218: 1 | Y218: 1 | Z218: 2 | AA218: 0 | AB218: 0 | AC218: 0 | AD218: 0 | AE218: 0 | AF218: 0 | AG218: 26 | AH218: 16 | AI218: 24 | AJ218: 0 | AK218: 0 | AL218: 0 | AM218: 0 | AN218: 14 | AO218: 0 | AP218: 0 | AQ218: 0 | AR218: 0 | AS218: 0 | AT218: 106 | AU218: 97 | AV218: 94 | AW218: 94 | AX218: 0
A219: 4 | B219: 41 | C219: 65 | D219: 21 | E219: 0 | F219: 0 | G219: 0 | H219: 0 | I219: 0 | J219: 0 | K219: 0 | L219: 0 | M219: 0 | N219: 12 | O219: 0 | P219: 5 | Q219: 4 | R219: 3 | S219: 3 | T219: 4 | U219: 3 | V219: 0 | W219: 2 | X219: 4 | Y219: 3 | Z219: 1 | AA219: 0 | AB219: 0 | AC219: 0 | AD219: 0 | AE219: 0 | AF219: 0 | AG219: 40 | AH219: 14 | AI219: 26 | AJ219: 0 | AK219: 0 | AL219: 0 | AM219: 0 | AN219: 15 | AO219: 0 | AP219: 0 | AQ219: 0 | AR219: 0 | AS219: 0 | AT219: 114 | AU219: 111 | AV219: 108 | AW219: 96 | AX219: 0
A220: 5 | B220: 28 | C220: 41 | D220: 14 | E220: 0 | F220: 0 | G220: 0 | H220: 0 | I220: 0 | J220: 0 | K220: 0 | L220: 0 | M220: 0 | N220: 4 | O220: 0 | P220: 2 | Q220: 1 | R220: 0 | S220: 4 | T220: 1 | U220: 3 | V220: 2 | W220: 3 | X220: 2 | Y220: 1 | Z220: 2 | AA220: 0 | AB220: 0 | AC220: 0 | AD220: 0 | AE220: 0 | AF220: 0 | AG220: 27 | AH220: 8 | AI220: 19 | AJ220: 0 | AK220: 0 | AL220: 0 | AM220: 0 | AN220: 19 | AO220: 0 | AP220: 0 | AQ220: 0 | AR220: 0 | AS220: 0 | AT220: 109 | AU220: 118 | AV220: 115 | AW220: 112 | AX220: 0
A221: 6 | B221: 34 | C221: 33 | D221: 6 | E221: 0 | F221: 0 | G221: 0 | H221: 0 | I221: 0 | J221: 0 | K221: 0 | L221: 0 | M221: 0 | N221: 3 | O221: 0 | P221: 3 | Q221: 1 | R221: 1 | S221: 0 | T221: 1 | U221: 2 | V221: 4 | W221: 2 | X221: 0 | Y221: 0 | Z221: 1 | AA221: 0 | AB221: 0 | AC221: 0 | AD221: 0 | AE221: 0 | AF221: 0 | AG221: 33 | AH221: 17 | AI221: 32 | AJ221: 0 | AK221: 0 | AL221: 0 | AM221: 0 | AN221: 8 | AO221: 0 | AP221: 0 | AQ221: 0 | AR221: 0 | AS221: 0 | AT221: 100 | AU221: 100 | AV221: 93 | AW221: 94 | AX221: 0
A222: 7 | B222: 22 | C222: 39 | D222: 13 | E222: 0 | F222: 0 | G222: 0 | H222: 0 | I222: 0 | J222: 0 | K222: 0 | L222: 0 | M222: 0 | N222: 8 | O222: 0 | P222: 6 | Q222: 0 | R222: 0 | S222: 5 | T222: 2 | U222: 3 | V222: 1 | W222: 3 | X222: 0 | Y222: 1 | Z222: 0 | AA222: 0 | AB222: 0 | AC222: 0 | AD222: 0 | AE222: 0 | AF222: 0 | AG222: 22 | AH222: 13 | AI222: 27 | AJ222: 0 | AK222: 0 | AL222: 0 | AM222: 0 | AN222: 11 | AO222: 0 | AP222: 0 | AQ222: 0 | AR222: 0 | AS222: 1 | AT222: 104 | AU222: 89 | AV222: 95 | AW222: 94 | AX222: 0
A223: 8 | B223: 32 | C223: 36 | D223: 12 | E223: 0 | F223: 0 | G223: 0 | H223: 0 | I223: 0 | J223: 0 | K223: 0 | L223: 0 | M223: 0 | N223: 4 | O223: 0 | P223: 5 | Q223: 1 | R223: 0 | S223: 3 | T223: 5 | U223: 2 | V223: 2 | W223: 4 | X223: 6 | Y223: 2 | Z223: 2 | AA223: 0 | AB223: 0 | AC223: 0 | AD223: 0 | AE223: 0 | AF223: 0 | AG223: 35 | AH223: 13 | AI223: 28 | AJ223: 0 | AK223: 0 | AL223: 0 | AM223: 0 | AN223: 9 | AO223: 0 | AP223: 0 | AQ223: 0 | AR223: 0 | AS223: 0 | AT223: 91 | AU223: 92 | AV223: 94 | AW223: 75 | AX223: 0
A224: 9 | B224: 31 | C224: 45 | D224: 2 | E224: 0 | F224: 0 | G224: 0 | H224: 0 | I224: 0 | J224: 0 | K224: 0 | L224: 0 | M224: 0 | N224: 7 | O224: 0 | P224: 5 | Q224: 1 | R224: 0 | S224: 2 | T224: 2 | U224: 1 | V224: 1 | W224: 2 | X224: 1 | Y224: 1 | Z224: 0 | AA224: 0 | AB224: 0 | AC224: 0 | AD224: 0 | AE224: 0 | AF224: 0 | AG224: 32 | AH224: 14 | AI224: 30 | AJ224: 0 | AK224: 0 | AL224: 0 | AM224: 0 | AN224: 12 | AO224: 0 | AP224: 0 | AQ224: 0 | AR224: 0 | AS224: 1 | AT224: 107 | AU224: 105 | AV224: 97 | AW224: 106 | AX224: 0
A225: 10 | B225: 42 | C225: 47 | D225: 5 | E225: 0 | F225: 0 | G225: 0 | H225: 0 | I225: 0 | J225: 0 | K225: 0 | L225: 0 | M225: 0 | N225: 10 | O225: 0 | P225: 9 | Q225: 2 | R225: 1 | S225: 3 | T225: 2 | U225: 3 | V225: 0 | W225: 3 | X225: 2 | Y225: 2 | Z225: 0 | AA225: 0 | AB225: 0 | AC225: 0 | AD225: 0 | AE225: 0 | AF225: 0 | AG225: 39 | AH225: 21 | AI225: 42 | AJ225: 0 | AK225: 0 | AL225: 0 | AM225: 0 | AN225: 8 | AO225: 0 | AP225: 0 | AQ225: 0 | AR225: 0 | AS225: 0 | AT225: 111 | AU225: 99 | AV225: 97 | AW225: 100 | AX225: 0
A226: 11 | B226: 29 | C226: 42 | D226: 2 | E226: 0 | F226: 0 | G226: 0 | H226: 0 | I226: 0 | J226: 0 | K226: 0 | L226: 0 | M226: 0 | N226: 13 | O226: 0 | P226: 9 | Q226: 1 | R226: 1 | S226: 3 | T226: 5 | U226: 3 | V226: 4 | W226: 1 | X226: 2 | Y226: 2 | Z226: 2 | AA226: 0 | AB226: 0 | AC226: 0 | AD226: 0 | AE226: 0 | AF226: 0 | AG226: 28 | AH226: 14 | AI226: 30 | AJ226: 0 | AK226: 0 | AL226: 0 | AM226: 0 | AN226: 10 | AO226: 0 | AP226: 0 | AQ226: 0 | AR226: 0 | AS226: 0 | AT226: 91 | AU226: 93 | AV226: 97 | AW226: 100 | AX226: 0
A227: Total general | B227: 348 | C227: 460 | D227: 113 | E227: 0 | F227: 0 | G227: 0 | H227: 0 | I227: 1 | J227: 0 | K227: 0 | L227: 0 | M227: 0 | N227: 74 | O227: 1 | P227: 57 | Q227: 15 | R227: 8 | S227: 29 | T227: 27 | U227: 23 | V227: 17 | W227: 26 | X227: 21 | Y227: 14 | Z227: 11 | AA227: 0 | AB227: 0 | AC227: 0 | AD227: 0 | AE227: 0 | AF227: 0 | AG227: 345 | AH227: 165 | AI227: 319 | AJ227: 0 | AK227: 0 | AL227: 0 | AM227: 0 | AN227: 131 | AO227: 0 | AP227: 0 | AQ227: 0 | AR227: 0 | AS227: 2 | AT227: 1125 | AU227: 1113 | AV227: 1084 | AW227: 1067 | AX227: 0
A232: ANO | B232: 2024
A233: DESC_RED | B233: LA CONVENCION
A234: DESC_MICRO | B234: (Todas)
A235: DESC_ESTAB | B235: (Todas)
A236: DESC_PROV | B236: (Todas)
A237: DESC_DIST | B237: (Todas)
A239: Etiquetas de fila | B239: VISITA DOMIC SEGUIMIENTO <1a | C239: VISITA DOMIC SEGUIMIENTO 1a | D239: VISITA DOMIC SEGUIMIENTO 2a | E239: VISITA DOMIC SEGUIMIENTO 3a | F239: VISITA DOMIC SEGUIMIENTO 4a | G239: VISITA DOMIC SEGUIMIENTO 5-11a | H239: VISITA DOMIC SEGUIMIENTO PROBLEM NUTRIC <1a | I239: VISITA DOMIC SEGUIMIENTO PROBLEM NUTRIC 1a | J239: VISITA DOMIC SEGUIMIENTO PROBLEM NUTRIC 2a | K239: VISITA DOMIC SEGUIMIENTO PROBLEM NUTRIC 3a | L239: VISITA DOMIC SEGUIMIENTO PROBLEM NUTRIC 4a | M239: VISITA DOMIC SEGUIMIENTO PROBLEM NUTRIC 5-11a | N239: Seguimiento a Problemas del Desarrollo <1a | O239: Seguimiento a Problemas del Desarrollo 1a | P239: Seguimiento a Problemas del Desarrollo 2a | Q239: Seguimiento a Problemas del Desarrollo 3a | R239: Seguimiento a Problemas del Desarrollo 4a | S239: visit domic Entrega de Suplementación <1a | T239: visit domic Entrega de Suplementación 1a | U239: visit domic Entrega de Suplementación 2a | V239: visit domic Entrega de Suplementación 5-11a | W239: visit domic verificacion consumo Suplementación <1a | X239: visit domic verificacion consumo Suplementación 1a | Y239: visit domic verificacion consumo Suplementación 2a | Z239: visit domic verificacion consumo Suplementación 3a | AA239: visit domic verificacion consumo Suplementación 4a | AB239: visit domic verificacion consumo Suplementación 5-11a | AC239: Consejeria Nutric por Suplementación <1A | AD239: Consejeria Nutric por Suplementación 1A | AE239: Consejeria Nutric por Suplementación 2A | AF239: Consejeria Nutric por Suplementación 3A | AG239: Consejeria Nutric por Suplementación 4A | AH239: Consejeria Nutric por Suplementación 5-11A | AI239: ORDEN DE PARASITOSIS 1a | AJ239: ORDEN DE PARASITOSIS 2a | AK239: ORDEN DE PARASITOSIS 3a | AL239: ORDEN DE PARASITOSIS 4a | AM239: ORDEN DE PARASITOSIS 5-11a | AN239: visit domic Entrega de Suplementación 3a | AO239: visit domic Entrega de Suplementación 4a | AP239: Seguimiento a Problemas del Desarrollo 5-11a
A240: 1 | B240: 2 | C240: 6 | D240: 4 | E240: 9 | F240: 9 | G240: 29 | H240: 0 | I240: 0 | J240: 0 | K240: 0 | L240: 0 | M240: 0 | N240: 0 | O240: 0 | P240: 0 | Q240: 0 | R240: 0 | S240: 0 | T240: 0 | U240: 0 | V240: 0 | W240: 1 | X240: 0 | Y240: 0 | Z240: 0 | AA240: 0 | AB240: 0 | AC240: 0 | AD240: 0 | AE240: 0 | AF240: 0 | AG240: 0 | AH240: 0 | AI240: 0 | AJ240: 0 | AK240: 0 | AL240: 0 | AM240: 0 | AN240: 0 | AO240: 0 | AP240: 0
A241: 2 | B241: 4 | C241: 6 | D241: 12 | E241: 7 | F241: 13 | G241: 21 | H241: 0 | I241: 0 | J241: 1 | K241: 0 | L241: 0 | M241: 0 | N241: 0 | O241: 0 | P241: 0 | Q241: 0 | R241: 0 | S241: 1 | T241: 0 | U241: 0 | V241: 0 | W241: 5 | X241: 1 | Y241: 0 | Z241: 0 | AA241: 0 | AB241: 0 | AC241: 0 | AD241: 0 | AE241: 0 | AF241: 0 | AG241: 0 | AH241: 0 | AI241: 0 | AJ241: 0 | AK241: 0 | AL241: 0 | AM241: 0 | AN241: 0 | AO241: 0 | AP241: 0
A242: 3 | B242: 1 | C242: 9 | D242: 7 | E242: 5 | F242: 8 | G242: 8 | H242: 0 | I242: 0 | J242: 0 | K242: 0 | L242: 0 | M242: 0 | N242: 0 | O242: 0 | P242: 0 | Q242: 0 | R242: 0 | S242: 0 | T242: 0 | U242: 0 | V242: 0 | W242: 1 | X242: 4 | Y242: 1 | Z242: 2 | AA242: 1 | AB242: 0 | AC242: 0 | AD242: 0 | AE242: 0 | AF242: 0 | AG242: 0 | AH242: 0 | AI242: 0 | AJ242: 0 | AK242: 0 | AL242: 0 | AM242: 0 | AN242: 0 | AO242: 0 | AP242: 0
A243: 4 | B243: 5 | C243: 6 | D243: 0 | E243: 4 | F243: 1 | G243: 17 | H243: 0 | I243: 0 | J243: 0 | K243: 0 | L243: 0 | M243: 0 | N243: 0 | O243: 0 | P243: 0 | Q243: 0 | R243: 0 | S243: 0 | T243: 0 | U243: 0 | V243: 0 | W243: 6 | X243: 0 | Y243: 0 | Z243: 0 | AA243: 0 | AB243: 0 | AC243: 0 | AD243: 0 | AE243: 0 | AF243: 0 | AG243: 0 | AH243: 0 | AI243: 0 | AJ243: 0 | AK243: 0 | AL243: 0 | AM243: 0 | AN243: 0 | AO243: 0 | AP243: 0
A244: 5 | B244: 3 | C244: 8 | D244: 1 | E244: 5 | F244: 4 | G244: 6 | H244: 0 | I244: 0 | J244: 0 | K244: 0 | L244: 0 | M244: 0 | N244: 0 | O244: 0 | P244: 0 | Q244: 0 | R244: 0 | S244: 2 | T244: 0 | U244: 0 | V244: 0 | W244: 7 | X244: 0 | Y244: 0 | Z244: 0 | AA244: 0 | AB244: 0 | AC244: 0 | AD244: 0 | AE244: 0 | AF244: 0 | AG244: 0 | AH244: 0 | AI244: 0 | AJ244: 0 | AK244: 0 | AL244: 0 | AM244: 0 | AN244: 0 | AO244: 0 | AP244: 0
A245: 6 | B245: 10 | C245: 3 | D245: 3 | E245: 6 | F245: 5 | G245: 8 | H245: 0 | I245: 0 | J245: 0 | K245: 0 | L245: 0 | M245: 0 | N245: 0 | O245: 0 | P245: 0 | Q245: 0 | R245: 0 | S245: 0 | T245: 0 | U245: 0 | V245: 0 | W245: 0 | X245: 0 | Y245: 0 | Z245: 0 | AA245: 0 | AB245: 0 | AC245: 0 | AD245: 0 | AE245: 0 | AF245: 0 | AG245: 0 | AH245: 0 | AI245: 0 | AJ245: 0 | AK245: 0 | AL245: 0 | AM245: 0 | AN245: 0 | AO245: 0 | AP245: 0
A246: 7 | B246: 1 | C246: 10 | D246: 2 | E246: 6 | F246: 3 | G246: 4 | H246: 0 | I246: 0 | J246: 0 | K246: 0 | L246: 0 | M246: 0 | N246: 0 | O246: 0 | P246: 0 | Q246: 0 | R246: 0 | S246: 1 | T246: 0 | U246: 0 | V246: 0 | W246: 1 | X246: 4 | Y246: 2 | Z246: 1 | AA246: 2 | AB246: 0 | AC246: 0 | AD246: 0 | AE246: 0 | AF246: 0 | AG246: 0 | AH246: 0 | AI246: 0 | AJ246: 0 | AK246: 0 | AL246: 0 | AM246: 0 | AN246: 0 | AO246: 0 | AP246: 0
A247: 8 | B247: 3 | C247: 6 | D247: 3 | E247: 3 | F247: 4 | G247: 6 | H247: 0 | I247: 0 | J247: 0 | K247: 0 | L247: 0 | M247: 0 | N247: 0 | O247: 0 | P247: 0 | Q247: 0 | R247: 0 | S247: 0 | T247: 0 | U247: 0 | V247: 0 | W247: 0 | X247: 0 | Y247: 0 | Z247: 0 | AA247: 1 | AB247: 0 | AC247: 0 | AD247: 0 | AE247: 0 | AF247: 0 | AG247: 0 | AH247: 0 | AI247: 0 | AJ247: 0 | AK247: 0 | AL247: 0 | AM247: 0 | AN247: 0 | AO247: 0 | AP247: 0
A248: 9 | B248: 4 | C248: 2 | D248: 4 | E248: 1 | F248: 3 | G248: 4 | H248: 0 | I248: 0 | J248: 0 | K248: 0 | L248: 0 | M248: 0 | N248: 0 | O248: 0 | P248: 0 | Q248: 0 | R248: 0 | S248: 0 | T248: 0 | U248: 0 | V248: 0 | W248: 1 | X248: 1 | Y248: 4 | Z248: 0 | AA248: 0 | AB248: 0 | AC248: 0 | AD248: 0 | AE248: 0 | AF248: 0 | AG248: 0 | AH248: 0 | AI248: 0 | AJ248: 0 | AK248: 0 | AL248: 0 | AM248: 0 | AN248: 0 | AO248: 0 | AP248: 0
A249: 10 | B249: 5 | C249: 5 | D249: 4 | E249: 3 | F249: 2 | G249: 6 | H249: 0 | I249: 0 | J249: 0 | K249: 0 | L249: 0 | M249: 0 | N249: 0 | O249: 0 | P249: 0 | Q249: 0 | R249: 0 | S249: 0 | T249: 0 | U249: 0 | V249: 0 | W249: 0 | X249: 0 | Y249: 0 | Z249: 0 | AA249: 0 | AB249: 0 | AC249: 0 | AD249: 0 | AE249: 0 | AF249: 0 | AG249: 0 | AH249: 0 | AI249: 0 | AJ249: 0 | AK249: 0 | AL249: 0 | AM249: 0 | AN249: 0 | AO249: 0 | AP249: 0
A250: 11 | B250: 8 | C250: 16 | D250: 10 | E250: 8 | F250: 13 | G250: 19 | H250: 0 | I250: 0 | J250: 0 | K250: 0 | L250: 0 | M250: 0 | N250: 0 | O250: 0 | P250: 0 | Q250: 0 | R250: 0 | S250: 0 | T250: 0 | U250: 0 | V250: 0 | W250: 1 | X250: 0 | Y250: 0 | Z250: 0 | AA250: 0 | AB250: 0 | AC250: 0 | AD250: 0 | AE250: 0 | AF250: 0 | AG250: 0 | AH250: 0 | AI250: 0 | AJ250: 0 | AK250: 0 | AL250: 0 | AM250: 0 | AN250: 0 | AO250: 0 | AP250: 0
A251: Total general | B251: 46 | C251: 77 | D251: 50 | E251: 57 | F251: 65 | G251: 128 | H251: 0 | I251: 0 | J251: 1 | K251: 0 | L251: 0 | M251: 0 | N251: 0 | O251: 0 | P251: 0 | Q251: 0 | R251: 0 | S251: 4 | T251: 0 | U251: 0 | V251: 0 | W251: 23 | X251: 10 | Y251: 7 | Z251: 3 | AA251: 4 | AB251: 0 | AC251: 0 | AD251: 0 | AE251: 0 | AF251: 0 | AG251: 0 | AH251: 0 | AI251: 0 | AJ251: 0 | AK251: 0 | AL251: 0 | AM251: 0 | AN251: 0 | AO251: 0 | AP251: 0
A257: ANO | B257: 2024
A258: DESC_RED | B258: LA CONVENCION
A259: DESC_MICRO | B259: (Todas)
A260: DESC_ESTAB | B260: (Todas)
A261: DESC_PROV | B261: (Todas)
A262: DESC_DIST | B262: (Todas)
A264: Etiquetas de fila | B264: RECUP AREA COGNITIVA <1a | C264: RECUP AREA COGNITIVA 1a | D264: RECUP AREA COGNITIVA 2a | E264: RECUP AREA COGNITIVA 3a | F264: RECUP AREA COGNITIVA 4a | G264: RECUP AREA COORD <1a | H264: RECUP AREA COORD 1a | I264: RECUP AREA COORD 2a | J264: RECUP AREA COORD 3a | K264: RECUP AREA COORD 4a | L264: RECUP AREA COORD 5-9a | M264: RECUP AREA LEN <1a | N264: RECUP AREA LEN 1a | O264: RECUP AREA LEN 2a | P264: RECUP AREA LEN 3a | Q264: RECUP AREA LEN 4a | R264: RECUP AREA LEN 5-9a | S264: RECUP AREA MOT <1a | T264: RECUP AREA MOT 1a | U264: RECUP AREA MOT 2a | V264: RECUP AREA MOT 3a | W264: RECUP AREA MOT 4a | X264: RECUP AREA MOT 5-9a | Y264: RECUP AREA SOCIAL <1a | Z264: RECUP AREA SOCIAL 1a | AA264: RECUP AREA SOCIAL 2a | AB264: RECUP AREA SOCIAL 3a | AC264: RECUP AREA SOCIAL 4a | AD264: REC DESNUTRICION AGUDA <1a | AE264: REC DESNUTRICION AGUDA 1a | AF264: REC DESNUTRICION AGUDA 2a | AG264: REC DESNUTRICION AGUDA 3a | AH264: REC DESNUTRICION AGUDA 4a | AI264: REC DESNUTRICION AGUDA PE 2a | AJ264: REC DESNUTRICION AGUDA PE 3a | AK264: REC DESNUTRICION AGUDA PE 4a | AL264: REC DESNUTRICION AGUDA PE<1a | AM264: REC DESNUTRICION AGUDA PE1a | AN264: REC DESNUTRICION CRONIC 2A | AO264: REC DESNUTRICION CRONIC 3A | AP264: REC DESNUTRICION CRONICA <1A | AQ264: REC DESNUTRICION CRONICA 1A | AR264: REC DESNUTRICION CRONICA 4A | AS264: REC DESNUTRICION SEVERA <1A | AT264: REC DESNUTRICION SEVERA 1A | AU264: REC DESNUTRICION SEVERA 2A | AV264: REC DESNUTRICION SEVERA 3A | AW264: REC DESNUTRICION SEVERA 4A | AX264: REC G INADEC/PESO <1a | AY264: REC G INADEC/PESO 1A | AZ264: REC G INADEC/PESO 2A | BA264: REC G INADEC/PESO 3A | BB264: REC G INADEC/PESO 4A | BC264: REC G INADEC/TALLA <1a | BD264: REC G INADEC/TALLA 1A | BE264: REC G INADEC/TALLA 2A | BF264: REC G INADEC/TALLA 3A | BG264: REC G INADEC/TALLA 4A | BH264: REC OBESO <1A | BI264: REC OBESO 1A | BJ264: REC OBESO 2A | BK264: REC OBESO 3A | BL264: REC OBESO 4A | BM264: REC OBESO IMC 5-11A | BN264: REC SOBRE PESO <1A | BO264: REC SOBRE PESO 1A | BP264: REC SOBRE PESO 2A | BQ264: REC SOBRE PESO 3A | BR264: REC SOBRE PESO 4A | BS264: REC SOBRE PESO IMC 5-11A
A265: 1 | B265: 0 | C265: 0 | D265: 0 | E265: 0 | F265: 0 | G265: 0 | H265: 0 | I265: 0 | J265: 0 | K265: 0 | L265: 0 | M265: 0 | N265: 0 | O265: 0 | P265: 0 | Q265: 0 | R265: 0 | S265: 0 | T265: 0 | U265: 0 | V265: 0 | W265: 0 | X265: 0 | Y265: 0 | Z265: 0 | AA265: 0 | AB265: 0 | AC265: 0 | AD265: 0 | AE265: 0 | AF265: 0 | AG265: 0 | AH265: 0 | AI265: 0 | AJ265: 0 | AK265: 0 | AL265: 0 | AM265: 0 | AN265: 0 | AO265: 0 | AP265: 0 | AQ265: 0 | AR265: 0 | AS265: 0 | AT265: 0 | AU265: 0 | AV265: 0 | AW265: 0 | AX265: 1 | AY265: 3 | AZ265: 5 | BA265: 5 | BB265: 5 | BC265: 1 | BD265: 3 | BE265: 5 | BF265: 5 | BG265: 2 | BH265: 0 | BI265: 0 | BJ265: 0 | BK265: 0 | BL265: 0 | BM265: 0 | BN265: 0 | BO265: 0 | BP265: 0 | BQ265: 0 | BR265: 1 | BS265: 0
A266: 2 | B266: 0 | C266: 0 | D266: 0 | E266: 0 | F266: 0 | G266: 0 | H266: 0 | I266: 0 | J266: 0 | K266: 0 | L266: 0 | M266: 0 | N266: 0 | O266: 0 | P266: 0 | Q266: 0 | R266: 0 | S266: 0 | T266: 0 | U266: 0 | V266: 0 | W266: 0 | X266: 0 | Y266: 0 | Z266: 0 | AA266: 0 | AB266: 0 | AC266: 0 | AD266: 0 | AE266: 0 | AF266: 0 | AG266: 0 | AH266: 0 | AI266: 0 | AJ266: 0 | AK266: 0 | AL266: 0 | AM266: 0 | AN266: 0 | AO266: 0 | AP266: 0 | AQ266: 0 | AR266: 0 | AS266: 0 | AT266: 0 | AU266: 0 | AV266: 0 | AW266: 0 | AX266: 12 | AY266: 5 | AZ266: 1 | BA266: 1 | BB266: 1 | BC266: 12 | BD266: 5 | BE266: 1 | BF266: 1 | BG266: 0 | BH266: 0 | BI266: 0 | BJ266: 0 | BK266: 0 | BL266: 0 | BM266: 0 | BN266: 0 | BO266: 0 | BP266: 0 | BQ266: 0 | BR266: 0 | BS266: 0
A267: 3 | B267: 0 | C267: 0 | D267: 0 | E267: 0 | F267: 0 | G267: 0 | H267: 0 | I267: 0 | J267: 0 | K267: 0 | L267: 0 | M267: 0 | N267: 0 | O267: 0 | P267: 0 | Q267: 0 | R267: 0 | S267: 0 | T267: 0 | U267: 0 | V267: 0 | W267: 0 | X267: 0 | Y267: 0 | Z267: 0 | AA267: 0 | AB267: 0 | AC267: 0 | AD267: 0 | AE267: 0 | AF267: 0 | AG267: 0 | AH267: 0 | AI267: 0 | AJ267: 0 | AK267: 0 | AL267: 0 | AM267: 0 | AN267: 0 | AO267: 0 | AP267: 0 | AQ267: 0 | AR267: 0 | AS267: 0 | AT267: 0 | AU267: 0 | AV267: 0 | AW267: 0 | AX267: 19 | AY267: 15 | AZ267: 4 | BA267: 2 | BB267: 2 | BC267: 19 | BD267: 15 | BE267: 4 | BF267: 2 | BG267: 0 | BH267: 0 | BI267: 0 | BJ267: 0 | BK267: 0 | BL267: 0 | BM267: 0 | BN267: 0 | BO267: 0 | BP267: 0 | BQ267: 0 | BR267: 0 | BS267: 0
A268: 4 | B268: 0 | C268: 0 | D268: 0 | E268: 0 | F268: 0 | G268: 0 | H268: 0 | I268: 0 | J268: 0 | K268: 0 | L268: 0 | M268: 0 | N268: 0 | O268: 1 | P268: 0 | Q268: 0 | R268: 0 | S268: 0 | T268: 0 | U268: 0 | V268: 0 | W268: 0 | X268: 0 | Y268: 0 | Z268: 0 | AA268: 0 | AB268: 0 | AC268: 0 | AD268: 0 | AE268: 0 | AF268: 0 | AG268: 0 | AH268: 0 | AI268: 0 | AJ268: 0 | AK268: 0 | AL268: 0 | AM268: 0 | AN268: 0 | AO268: 0 | AP268: 0 | AQ268: 0 | AR268: 0 | AS268: 0 | AT268: 0 | AU268: 0 | AV268: 0 | AW268: 0 | AX268: 5 | AY268: 7 | AZ268: 1 | BA268: 2 | BB268: 2 | BC268: 5 | BD268: 7 | BE268: 1 | BF268: 2 | BG268: 3 | BH268: 0 | BI268: 0 | BJ268: 0 | BK268: 0 | BL268: 0 | BM268: 0 | BN268: 0 | BO268: 0 | BP268: 0 | BQ268: 0 | BR268: 0 | BS268: 0
A269: 5 | B269: 0 | C269: 0 | D269: 0 | E269: 0 | F269: 0 | G269: 0 | H269: 0 | I269: 0 | J269: 0 | K269: 0 | L269: 0 | M269: 0 | N269: 0 | O269: 0 | P269: 0 | Q269: 0 | R269: 0 | S269: 0 | T269: 0 | U269: 0 | V269: 0 | W269: 0 | X269: 0 | Y269: 0 | Z269: 0 | AA269: 0 | AB269: 0 | AC269: 0 | AD269: 0 | AE269: 0 | AF269: 0 | AG269: 0 | AH269: 0 | AI269: 0 | AJ269: 0 | AK269: 0 | AL269: 0 | AM269: 0 | AN269: 0 | AO269: 0 | AP269: 0 | AQ269: 0 | AR269: 0 | AS269: 0 | AT269: 0 | AU269: 0 | AV269: 0 | AW269: 0 | AX269: 6 | AY269: 2 | AZ269: 1 | BA269: 1 | BB269: 1 | BC269: 6 | BD269: 2 | BE269: 1 | BF269: 1 | BG269: 0 | BH269: 0 | BI269: 0 | BJ269: 0 | BK269: 0 | BL269: 0 | BM269: 0 | BN269: 0 | BO269: 0 | BP269: 0 | BQ269: 0 | BR269: 0 | BS269: 0
A270: 6 | B270: 0 | C270: 0 | D270: 0 | E270: 0 | F270: 0 | G270: 0 | H270: 0 | I270: 0 | J270: 0 | K270: 0 | L270: 0 | M270: 0 | N270: 0 | O270: 1 | P270: 0 | Q270: 0 | R270: 0 | S270: 0 | T270: 0 | U270: 0 | V270: 0 | W270: 0 | X270: 0 | Y270: 0 | Z270: 0 | AA270: 0 | AB270: 0 | AC270: 0 | AD270: 0 | AE270: 0 | AF270: 1 | AG270: 0 | AH270: 0 | AI270: 1 | AJ270: 0 | AK270: 0 | AL270: 0 | AM270: 0 | AN270: 1 | AO270: 0 | AP270: 1 | AQ270: 0 | AR270: 0 | AS270: 0 | AT270: 0 | AU270: 0 | AV270: 0 | AW270: 0 | AX270: 7 | AY270: 7 | AZ270: 5 | BA270: 2 | BB270: 2 | BC270: 7 | BD270: 7 | BE270: 5 | BF270: 2 | BG270: 0 | BH270: 0 | BI270: 0 | BJ270: 0 | BK270: 0 | BL270: 0 | BM270: 0 | BN270: 0 | BO270: 0 | BP270: 0 | BQ270: 0 | BR270: 0 | BS270: 0
A271: 7 | B271: 0 | C271: 0 | D271: 0 | E271: 0 | F271: 0 | G271: 0 | H271: 0 | I271: 0 | J271: 0 | K271: 0 | L271: 0 | M271: 0 | N271: 0 | O271: 1 | P271: 0 | Q271: 0 | R271: 0 | S271: 1 | T271: 0 | U271: 0 | V271: 0 | W271: 0 | X271: 0 | Y271: 0 | Z271: 0 | AA271: 0 | AB271: 0 | AC271: 0 | AD271: 0 | AE271: 0 | AF271: 0 | AG271: 0 | AH271: 0 | AI271: 0 | AJ271: 0 | AK271: 0 | AL271: 0 | AM271: 0 | AN271: 0 | AO271: 0 | AP271: 0 | AQ271: 0 | AR271: 0 | AS271: 0 | AT271: 0 | AU271: 0 | AV271: 0 | AW271: 0 | AX271: 4 | AY271: 3 | AZ271: 1 | BA271: 0 | BB271: 0 | BC271: 4 | BD271: 3 | BE271: 1 | BF271: 0 | BG271: 0 | BH271: 0 | BI271: 0 | BJ271: 0 | BK271: 0 | BL271: 0 | BM271: 0 | BN271: 1 | BO271: 0 | BP271: 0 | BQ271: 0 | BR271: 0 | BS271: 0
A272: 8 | B272: 0 | C272: 0 | D272: 0 | E272: 0 | F272: 0 | G272: 0 | H272: 0 | I272: 0 | J272: 0 | K272: 0 | L272: 0 | M272: 0 | N272: 0 | O272: 0 | P272: 0 | Q272: 0 | R272: 0 | S272: 0 | T272: 0 | U272: 0 | V272: 0 | W272: 0 | X272: 0 | Y272: 0 | Z272: 0 | AA272: 0 | AB272: 0 | AC272: 0 | AD272: 0 | AE272: 0 | AF272: 0 | AG272: 0 | AH272: 0 | AI272: 0 | AJ272: 0 | AK272: 0 | AL272: 0 | AM272: 0 | AN272: 0 | AO272: 0 | AP272: 0 | AQ272: 0 | AR272: 0 | AS272: 0 | AT272: 0 | AU272: 0 | AV272: 0 | AW272: 0 | AX272: 7 | AY272: 1 | AZ272: 1 | BA272: 0 | BB272: 0 | BC272: 7 | BD272: 1 | BE272: 1 | BF272: 0 | BG272: 0 | BH272: 0 | BI272: 0 | BJ272: 0 | BK272: 0 | BL272: 0 | BM272: 0 | BN272: 0 | BO272: 0 | BP272: 0 | BQ272: 0 | BR272: 0 | BS272: 0
A273: 9 | B273: 0 | C273: 0 | D273: 0 | E273: 0 | F273: 0 | G273: 0 | H273: 0 | I273: 0 | J273: 0 | K273: 0 | L273: 0 | M273: 0 | N273: 0 | O273: 0 | P273: 0 | Q273: 0 | R273: 0 | S273: 1 | T273: 0 | U273: 0 | V273: 0 | W273: 0 | X273: 0 | Y273: 0 | Z273: 0 | AA273: 0 | AB273: 0 | AC273: 0 | AD273: 1 | AE273: 0 | AF273: 0 | AG273: 0 | AH273: 0 | AI273: 0 | AJ273: 0 | AK273: 0 | AL273: 1 | AM273: 0 | AN273: 0 | AO273: 0 | AP273: 0 | AQ273: 0 | AR273: 0 | AS273: 0 | AT273: 0 | AU273: 0 | AV273: 0 | AW273: 0 | AX273: 2 | AY273: 5 | AZ273: 1 | BA273: 0 | BB273: 0 | BC273: 2 | BD273: 5 | BE273: 1 | BF273: 0 | BG273: 0 | BH273: 0 | BI273: 0 | BJ273: 0 | BK273: 0 | BL273: 0 | BM273: 0 | BN273: 0 | BO273: 0 | BP273: 0 | BQ273: 0 | BR273: 0 | BS273: 0
A274: 10 | B274: 0 | C274: 0 | D274: 0 | E274: 0 | F274: 0 | G274: 0 | H274: 0 | I274: 0 | J274: 0 | K274: 0 | L274: 0 | M274: 0 | N274: 0 | O274: 0 | P274: 0 | Q274: 0 | R274: 0 | S274: 0 | T274: 0 | U274: 0 | V274: 0 | W274: 0 | X274: 0 | Y274: 0 | Z274: 0 | AA274: 0 | AB274: 0 | AC274: 0 | AD274: 0 | AE274: 0 | AF274: 1 | AG274: 1 | AH274: 0 | AI274: 1 | AJ274: 0 | AK274: 0 | AL274: 0 | AM274: 0 | AN274: 0 | AO274: 0 | AP274: 0 | AQ274: 0 | AR274: 0 | AS274: 0 | AT274: 0 | AU274: 0 | AV274: 0 | AW274: 0 | AX274: 10 | AY274: 4 | AZ274: 3 | BA274: 0 | BB274: 0 | BC274: 10 | BD274: 4 | BE274: 3 | BF274: 0 | BG274: 1 | BH274: 0 | BI274: 0 | BJ274: 0 | BK274: 0 | BL274: 0 | BM274: 0 | BN274: 0 | BO274: 0 | BP274: 0 | BQ274: 0 | BR274: 0 | BS274: 0
A275: 11 | B275: 0 | C275: 0 | D275: 0 | E275: 0 | F275: 0 | G275: 0 | H275: 0 | I275: 0 | J275: 0 | K275: 0 | L275: 0 | M275: 0 | N275: 0 | O275: 0 | P275: 0 | Q275: 0 | R275: 0 | S275: 0 | T275: 0 | U275: 0 | V275: 0 | W275: 0 | X275: 0 | Y275: 0 | Z275: 0 | AA275: 0 | AB275: 0 | AC275: 0 | AD275: 0 | AE275: 0 | AF275: 0 | AG275: 0 | AH275: 0 | AI275: 0 | AJ275: 0 | AK275: 0 | AL275: 0 | AM275: 0 | AN275: 0 | AO275: 0 | AP275: 0 | AQ275: 0 | AR275: 0 | AS275: 0 | AT275: 0 | AU275: 0 | AV275: 0 | AW275: 0 | AX275: 3 | AY275: 5 | AZ275: 1 | BA275: 0 | BB275: 0 | BC275: 3 | BD275: 5 | BE275: 1 | BF275: 0 | BG275: 3 | BH275: 0 | BI275: 0 | BJ275: 0 | BK275: 0 | BL275: 0 | BM275: 0 | BN275: 0 | BO275: 0 | BP275: 0 | BQ275: 0 | BR275: 0 | BS275: 0
A276: Total general | B276: 0 | C276: 0 | D276: 0 | E276: 0 | F276: 0 | G276: 0 | H276: 0 | I276: 0 | J276: 0 | K276: 0 | L276: 0 | M276: 0 | N276: 0 | O276: 3 | P276: 0 | Q276: 0 | R276: 0 | S276: 2 | T276: 0 | U276: 0 | V276: 0 | W276: 0 | X276: 0 | Y276: 0 | Z276: 0 | AA276: 0 | AB276: 0 | AC276: 0 | AD276: 1 | AE276: 0 | AF276: 2 | AG276: 1 | AH276: 0 | AI276: 2 | AJ276: 0 | AK276: 0 | AL276: 1 | AM276: 0 | AN276: 1 | AO276: 0 | AP276: 1 | AQ276: 0 | AR276: 0 | AS276: 0 | AT276: 0 | AU276: 0 | AV276: 0 | AW276: 0 | AX276: 76 | AY276: 57 | AZ276: 24 | BA276: 13 | BB276: 13 | BC276: 76 | BD276: 57 | BE276: 24 | BF276: 13 | BG276: 9 | BH276: 0 | BI276: 0 | BJ276: 0 | BK276: 0 | BL276: 0 | BM276: 0 | BN276: 1 | BO276: 0 | BP276: 0 | BQ276: 0 | BR276: 1 | BS276: 0
A281: ANO | B281: 2024
A282: DESC_RED | B282: LA CONVENCION
A283: DESC_MICRO | B283: (Todas)
A284: DESC_ESTAB | B284: (Todas)
A285: DESC_PROV | B285: (Todas)
A286: DESC_DIST | B286: (Todas)
A288: Etiquetas de fila | B288: T_GRAHAM1a (+) | C288: T_GRAHAM2a (+) | D288: T_GRAHAM3a (+) | E288: T_GRAHAM4a(+) | F288: T_GRAHAM 5-11a(+) | G288: EX SERIADO HECES 1a (+) | H288: EX SERIADO HECES 2a (+) | I288: EX SERIADO HECES 3a (+) | J288: EX SERIADO HECES 4a (+) | K288: EX SERIADO HECES 5-11a(+)
A289: 1 | B289: 0 | C289: 0 | D289: 0 | E289: 0 | F289: 0 | G289: 7 | H289: 2 | I289: 5 | J289: 0 | K289: 3
A290: 2 | B290: 0 | C290: 0 | D290: 0 | E290: 1 | F290: 0 | G290: 6 | H290: 12 | I290: 9 | J290: 2 | K290: 1
A291: 3 | B291: 0 | C291: 0 | D291: 1 | E291: 0 | F291: 0 | G291: 5 | H291: 5 | I291: 7 | J291: 4 | K291: 2
A292: 4 | B292: 2 | C292: 0 | D292: 1 | E292: 1 | F292: 0 | G292: 6 | H292: 12 | I292: 4 | J292: 1 | K292: 2
A293: 5 | B293: 1 | C293: 0 | D293: 0 | E293: 0 | F293: 0 | G293: 3 | H293: 6 | I293: 1 | J293: 2 | K293: 1
A294: 6 | B294: 0 | C294: 0 | D294: 0 | E294: 1 | F294: 0 | G294: 7 | H294: 7 | I294: 2 | J294: 1 | K294: 1
A295: 7 | B295: 0 | C295: 0 | D295: 0 | E295: 0 | F295: 0 | G295: 3 | H295: 6 | I295: 4 | J295: 1 | K295: 6
A296: 8 | B296: 0 | C296: 1 | D296: 0 | E296: 0 | F296: 0 | G296: 3 | H296: 5 | I296: 4 | J296: 5 | K296: 2
A297: 9 | B297: 0 | C297: 1 | D297: 0 | E297: 0 | F297: 0 | G297: 6 | H297: 6 | I297: 5 | J297: 6 | K297: 5
A298: 10 | B298: 0 | C298: 0 | D298: 1 | E298: 0 | F298: 0 | G298: 4 | H298: 11 | I298: 9 | J298: 8 | K298: 7
A299: 11 | B299: 0 | C299: 0 | D299: 0 | E299: 0 | F299: 0 | G299: 5 | H299: 5 | I299: 7 | J299: 7 | K299: 8
A300: Total general | B300: 3 | C300: 2 | D300: 3 | E300: 3 | F300: 0 | G300: 55 | H300: 77 | I300: 57 | J300: 37 | K300: 38

Sheet OPERACIONAL CRED
A1: DDD
A2: DIRECCION DE ESTADISTICA E INFORMATICA Y TELECOMUNICACION
A3: INFORME MENSUAL CONTROL DE CRECIMIENTO Y DESARROLLO
A7: RED DE SALUD | C7: MICRO RED | M7: PROVINCIA | W7: AÑO | X7: =MID(INICIO!C28,1,4) -> 2024
A8: =MID(INICIO!E31,1,50) -> LA CONVENCION | C8: =MID(INICIO!E32,1,50) -> (ALL) | M8: =MID(INICIO!E34,1,50) -> (ALL)
W9: INI | Y9: FIN
A10: ESTABLECIMIENTO | M10: DISTRITO | V10: MES | W10: =MIN(mesfin) -> 1 | X10: A | Y10: =MAX(mesfin) -> 11
A11: =MID(INICIO!E33,1,50) -> (ALL) | M11: =MID(INICIO!E35,1,50) -> (ALL)
A13: CONTROL DE CRECIMIENTO Y DESARROLLO
A15: Nro de Controles de Crecimiento y Desarrollo de 0 a 11 años | P15: Niños con Desarrollo Normal | S15: Niños con Crecimiento Adecuado o Normal | V15: Niños con Lactancia materna exclusiva | Y15: Niños con Lactancia materna prolongada | AB15: Niños con Alimentacion complementaria | AE15: Plan de Atencion Integral de Salud (*) (Z01.9)
A16: GRUPO ETAREO | B16: PROGRAMACION | C16: Atencion Inmediata de recien Nacido | D16: Recien Nacido de parto Domiciliario /Trayecto | E16: 1er Ctrol | F16: 2do Ctrol | G16: 3er Ctrol | H16: 4to Ctrol | I16: 5to Ctrol | J16: 6to Ctrol | K16: 7mo Ctrol | L16: 8vo Ctrol | M16: 9no Ctrol | N16: 10mo Ctrol | O16: 11vo Ctrol
P17: Mens | Q17: Acum | R17: % | S17: Mens | T17: Acum | U17: % | V17: Mens | W17: Acum | X17: % | Y17: Mens | Z17: Acum | AA17: % | AB17: Mens | AC17: Acum | AD17: % | AE17: ATD (Inicio del Plan AIS) | AF17: Niños controlados con plan de AIS completo
A18: Recien Nacido Sano | C18: =SUM(GETPIVOTDATA("totatcinm",INICIO!$A$215)) -> 348 | E18: =SUM(GETPIVOTDATA("1° CRED RN",INICIO!$A$215)) -> 1125 | F18: =SUM(GETPIVOTDATA("2° CRED RN",INICIO!$A$215)) -> 1113 | G18: =SUM(GETPIVOTDATA("3° CRED RN",INICIO!$A$215)) -> 1084 | H18: =SUM(GETPIVOTDATA("4° CRED RN",INICIO!$A$215)) -> 1067 | P18: =SUM(GETPIVOTDATA("Eval de Desarrollo",INICIO!$A$215)) -> 0 | S18: =SUM(GETPIVOTDATA("Eval Nutricional",INICIO!$A$215)) -> 0
A19: RN Bajo Peso | C19: =SUM(GETPIVOTDATA("atcinm BPN",INICIO!$A$215)+GETPIVOTDATA(" TOT RN BPN",INICIO!$A$215)) -> 15 | E19: =SUM(GETPIVOTDATA("1° CRED RN DE BPN",INICIO!$A$215)) -> 29 | F19: =SUM(GETPIVOTDATA("2° CRED RN DE BPN",INICIO!$A$215)) -> 27 | G19: =SUM(GETPIVOTDATA("3° CRED RN DE BPN",INICIO!$A$215)) -> 23 | H19: =SUM(GETPIVOTDATA("4° CRED RN DE BPN",INICIO!$A$215)) -> 17 | S19: =SUM(GETPIVOTDATA("EVAL NUTRICIONAL RN BPN",INICIO!$A$215)) -> 0
A20: RN Prematuro | C20: =SUM(GETPIVOTDATA("atcinm prematuro",INICIO!$A$215)+GETPIVOTDATA(" RN PREMATURO",INICIO!$A$215)) -> 8 | E20: =SUM(GETPIVOTDATA("1° CRED RN DE PREMATURO",INICIO!$A$215)) -> 26 | F20: =SUM(GETPIVOTDATA("2° CRED RN DE PREMATURO",INICIO!$A$215)) -> 21 | G20: =SUM(GETPIVOTDATA("3° CRED RN DE PREMATURO",INICIO!$A$215)) -> 14 | H20: =SUM(GETPIVOTDATA("4° CRED RN DE PREMATURO",INICIO!$A$215)) -> 11
A21: RN con complicaciones
A22: < 1a | E22: =SUM(GETPIVOTDATA(" 1° CRED <1a",INICIO!$A$48)) -> 1311 | F22: =SUM(GETPIVOTDATA(" 2° CRED <1a",INICIO!$A$48)) -> 1310 | G22: =SUM(GETPIVOTDATA(" 3° CRED <1a",INICIO!$A$48)) -> 1328 | H22: =SUM(GETPIVOTDATA(" 4° CRED <1a",INICIO!$A$48)) -> 1382 | I22: =SUM(GETPIVOTDATA(" 5° CRED <1a",INICIO!$A$48)) -> 1384 | J22: =SUM(GETPIVOTDATA(" 6° CRED <1a",INICIO!$A$48)) -> 1444 | K22: =SUM(GETPIVOTDATA(" 7° CRED <1a",INICIO!$A$48)) -> 1414 | L22: =SUM(GETPIVOTDATA(" 8° CRED <1a",INICIO!$A$48)) -> 1416 | M22: =SUM(GETPIVOTDATA(" 9° CRED <1a",INICIO!$A$48)) -> 1390 | N22: =SUM(GETPIVOTDATA(" 10° CRED <1a",INICIO!$A$48)) -> 1343 | O22: =SUM(GETPIVOTDATA(" 11° CRED <1a",INICIO!$A$48)) -> 1229 | P22: =SUM(GETPIVOTDATA(" NORMAL ED <1a",INICIO!$A$119)) -> 0 | S22: =SUM(GETPIVOTDATA(" EVAL NUTRIC NORMAL <1a",INICIO!$A$74)) -> 151 | V22: =SUM(J22) -> 1444 | AB22: =SUM(GETPIVOTDATA(" ALI_COMP_ADE 7-11m",INICIO!$A$74)) -> 9 | AE22: =SUM(GETPIVOTDATA(" PLAN AIS ELAB<1a",INICIO!$A$48)) -> 1300 | AF22: =SUM(GETPIVOTDATA(" PLAN TA <1a",INICIO!$A$48)) -> 1249
A23: 1 año | E23: =SUM(GETPIVOTDATA(" 1° CRED 1a",INICIO!$A$48)) -> 1506 | F23: =SUM(GETPIVOTDATA(" 2° CRED 1a",INICIO!$A$48)) -> 1423 | G23: =SUM(GETPIVOTDATA(" 3° CRED 1a",INICIO!$A$48)) -> 1235 | H23: =SUM(GETPIVOTDATA(" 4° CRED 1a",INICIO!$A$48)) -> 1226 | I23: =SUM(GETPIVOTDATA(" 5° CRED 1a",INICIO!$A$48)) -> 1115 | J23: =SUM(GETPIVOTDATA(" 6° CRED 1a",INICIO!$A$48)) -> 995 | P23: =SUM(GETPIVOTDATA(" NORMAL ED 1a",INICIO!$A$119)) -> 0 | S23: =SUM(GETPIVOTDATA(" EVAL NUTRIC NORMAL 1a",INICIO!$A$74)) -> 73 | AB23: =SUM(GETPIVOTDATA(" ALI_COMP_ADE 1a",INICIO!$A$74)) -> 0 | AE23: =SUM(GETPIVOTDATA(" PLAN AIS ELAB 1a",INICIO!$A$48)) -> 1499 | AF23: =SUM(GETPIVOTDATA(" PLAN AIS TERM 1a",INICIO!$A$48)) -> 1004
A24: 2 años | E24: =SUM(GETPIVOTDATA(" 1° CRED 2a",INICIO!$A$48)) -> 1380 | F24: =SUM(GETPIVOTDATA(" 2° CRED 2a",INICIO!$A$48)) -> 1275 | G24: =SUM(GETPIVOTDATA(" 3° CRED 2a",INICIO!$A$48)) -> 1106 | H24: =SUM(GETPIVOTDATA(" 4° CRED 2a",INICIO!$A$48)) -> 964 | P24: =SUM(GETPIVOTDATA(" NORMAL ED 2a",INICIO!$A$119)) -> 0 | S24: =SUM(GETPIVOTDATA(" EVAL NUTRIC NORMAL 2a",INICIO!$A$74)) -> 113 | Z24: =SUM(GETPIVOTDATA(" LME_PROL",INICIO!$A$74)) -> 18 | AE24: =SUM(GETPIVOTDATA(" PLAN AIS ELAB 2a",INICIO!$A$48)) -> 1363 | AF24: =SUM(GETPIVOTDATA(" PLAN AIS TERM 2a",INICIO!$A$48)) -> 950
A25: 3 años | E25: =SUM(GETPIVOTDATA(" 1° CRED 3a",INICIO!$A$48)) -> 1328 | F25: =SUM(GETPIVOTDATA(" 2° CRED 3a",INICIO!$A$48)) -> 1130 | G25: =SUM(GETPIVOTDATA(" 3° CRED 3a",INICIO!$A$48)) -> 960 | H25: =SUM(GETPIVOTDATA(" 4° CRED 3a",INICIO!$A$48)) -> 801 | P25: =SUM(GETPIVOTDATA(" NORMAL ED 3a",INICIO!$A$119)) -> 0 | S25: =SUM(GETPIVOTDATA(" EVAL NUTRIC NORMAL 3a",INICIO!$A$74)) -> 307 | AE25: =SUM(GETPIVOTDATA(" PLAN AIS ELAB 3a",INICIO!$A$48)) -> 1306 | AF25: =SUM(GETPIVOTDATA(" PLAN AIS TERM 3a",INICIO!$A$48)) -> 771
A26: 4 años | E26: =SUM(GETPIVOTDATA(" 1° CRED 4a",INICIO!$A$48)) -> 1320 | F26: =SUM(GETPIVOTDATA(" 2° CRED 4a",INICIO!$A$48)) -> 1039 | G26: =SUM(GETPIVOTDATA(" 3° CRED 4a",INICIO!$A$48)) -> 794 | H26: =SUM(GETPIVOTDATA(" 4° CRED 4a",INICIO!$A$48)) -> 674 | P26: =SUM(GETPIVOTDATA(" NORMAL ED 4a",INICIO!$A$119)) -> 0 | S26: =SUM(GETPIVOTDATA(" EVAL NUTRIC NORMAL 4a",INICIO!$A$74)) -> 48 | AE26: =SUM(GETPIVOTDATA(" PLAN AIS ELAB 4a",INICIO!$A$48)) -> 1329 | AF26: =SUM(GETPIVOTDATA(" PLAN TA 4a",INICIO!$A$48)) -> 675
A27: 5-9 años | E27: =SUM(GETPIVOTDATA(" 1° CRED 5a",INICIO!$A$48))+GETPIVOTDATA(" 1° CRED 6a",INICIO!$A$48)+GETPIVOTDATA(" 1° CRED 7a",INICIO!$A$48)+GETPIVOTDATA(" 1° CRED 8a",INICIO!$A$48)+GETPIVOTDATA(" 1° CRED 9a",INICIO!$A$48) -> 1375 | P27: =SUM(GETPIVOTDATA(" NORMAL ED 5_9a",INICIO!$A$119)) -> 0 | S27: =SUM(GETPIVOTDATA(" EVAL NUTRIC NORMAL 5-9a",INICIO!$A$74)) -> 118 | AE27: =SUM(GETPIVOTDATA(" PLAN AIS ELAB 5_9a",INICIO!$A$48)) -> 1224 | AF27: =SUM(GETPIVOTDATA(" PLAN AIS TERM 5-9a",INICIO!$A$48)) -> 83
A28: 10-11 años | E28: =SUM(GETPIVOTDATA(" 1° CRED 10-11a",INICIO!$A$48)) -> 407 | P28: =SUM(GETPIVOTDATA(" NORMAL ED 10_11a",INICIO!$A$119)) -> 0 | S28: =SUM(GETPIVOTDATA(" EVAL NUTRIC NORMAL 10-11a",INICIO!$A$74)) -> 29 | AE28: =SUM(GETPIVOTDATA(" PLAN AIS ELAB 10_11a",INICIO!$A$48)) -> 347 | AF28: =SUM(GETPIVOTDATA(" PLAN AIS TERM 10-11a",INICIO!$A$48)) -> 10
A29: TOTAL
A31: I. ATENCIÓN DEL RECIÉN NACIDO | N31: VIII. EVALUACION DEL ESTADO NUTRICIONAL
A32: A) Atención Inmediata | H32: B) Resultados del Tamizaje Neonatal | N32: A) En el Recién Nacido de 01 día a 28 días
A33: ACTIVIDADES | E33: Nº | H33: DIAGNÓSTICOS | L33: Nº | N33: Clasificación: Peso al Nacer | R33: Nº
A34: Atención Inmediata | E34: =SUM(GETPIVOTDATA("totatcinm",INICIO!$A$215)) -> 348 | H34: Hipotiroidismo Congénito | L34: =SUM(GETPIVOTDATA("HIIPOTIROIDISMO CONGENITO",INICIO!$A$215)) -> 0 | N34: Extremadamente bajo | R34: =SUM(GETPIVOTDATA("Extremadamente bajo",INICIO!$A$215)+GETPIVOTDATA(" Extremadamente bajo2",INICIO!$A$215)) -> 0
A35: Tamizaje Neonatal (Enfermed. Metabólicas) | E35: =SUM(GETPIVOTDATA("tamizaje neonatal",INICIO!$A$215)) -> 460 | H35: Fenilcetonuria | L35: =SUM(GETPIVOTDATA("Fenilcetonuria",INICIO!$A$215)) -> 0 | N35: Muy bajo peso al nacer | R35: =SUM(GETPIVOTDATA("Muy bajo peso al nacer",INICIO!$A$215)+GETPIVOTDATA(" Muy bajo peso al nacer2",INICIO!$A$215)) -> 0
A36: Tamizaje Visual y Auditivo | E36: =SUM(GETPIVOTDATA("tamizaje visual auditivoL",INICIO!$A$215)) -> 0 | H36: Galactosemia | L36: =SUM(GETPIVOTDATA("Galactosemia",INICIO!$A$215)) -> 0 | N36: Bajo peso al nacer | R36: =SUM(GETPIVOTDATA("Bajo peso al nacer",INICIO!$A$215)+GETPIVOTDATA(" RN BPN",INICIO!$A$215)) -> 74
A37: Contacto Piel a Piel con la madre | E37: =SUM(GETPIVOTDATA("CONTACTO PIEL A PIEL",INICIO!$A$215)) -> 345 | H37: Hiperplasia Suprarrenal Congénita | L37: =SUM(GETPIVOTDATA("Hiperplasia Suprarrenal Congénita",INICIO!$A$215)) -> 0 | N37: Prematuro | R37: =SUM(GETPIVOTDATA("PREMATURO perif",INICIO!$A$215))+GETPIVOTDATA(" RN PREMATURO",INICIO!$A$215) -> 57
A38: Alojamiento Conjunto | E38: =SUM(GETPIVOTDATA("ALOJAMIENTO CONJUNTO",INICIO!$A$215)) -> 165 | H38: Fibrosis Quística | L38: =SUM(GETPIVOTDATA("Fibrosis Quística",INICIO!$A$215)) -> 1 | N38: Normal | R38: =SUM(GETPIVOTDATA("Eval Nutricional",INICIO!$A$215)) -> 0
A39: Lactancia Materna en la 1º Hora | E39: =SUM(GETPIVOTDATA("LME 1RA HORA",INICIO!$A$215)) -> 319 | H39: Catarata Congénita | L39: =SUM(GETPIVOTDATA("Catarata Congénita",INICIO!$A$215)) -> 0 | N39: Macrosómico | R39: =SUM(GETPIVOTDATA("Macrosómico",INICIO!$A$215)+GETPIVOTDATA(" macrosomico",INICIO!$A$215)) -> 1
H40: Hipoacusia (todas las clasific) | L40: =SUM(GETPIVOTDATA("Hipoacusia",INICIO!$A$215)) -> 0
X41: º
A42: EVALUACION DEL DESARROLLO
A43: Grupo de Edad | B43: RETARDO DEL DESARROLLO | E43: TRANSTORNO / DEFICIT DEL DESARROLLO | V43: SESIONES DE ESTIMULACION TEMPRANA (99411)
E44: Diagnosticado | L44: Recuperado | V44: Edad | W44: 1º Sesion | X44: 2º Sesion | Y44: 3º Sesion | Z44: 4º Sesion | AA44: 5º Sesion | AB44: 6º Sesion | AC44: Niño con sesiones completas
B45: Mensual | C45: Acum | D45: % | E45: L | F45: M | G45: S | H45: C | I45: COG | J45: Mens | K45: % | L45: L | M45: M | N45: S | O45: C | P45: COG | Q45: Mens | R45: Acum | S45: % | AC45: Mensual | AE45: Acum
A46: < 1 año | B46: =SUM(GETPIVOTDATA(" RETARDO EN EL DESARROLLO PSICOMOTOR <1a",INICIO!$A$119)) -> 2 | E46: =SUM(GETPIVOTDATA(" RIESGO AREA DEL LENGUAJE <1a",INICIO!$A$100)) -> 0 | F46: =SUM(GETPIVOTDATA(" RIESGO AREA MOTORA<1a",INICIO!$A$100)) -> 1 | G46: =SUM(GETPIVOTDATA(" RIESGO AREA SOCIAL<1a",INICIO!$A$100)) -> 0 | H46: =SUM(GETPIVOTDATA(" RIESGO AREA COORDINACION <1a",INICIO!$A$100)) -> 0 | I46: =SUM(GETPIVOTDATA(" RIESGO AREA COGNITIVA <1a",INICIO!$A$100)) -> 0 | J46: =SUM(E46:H46) -> 1 | L46: =SUM(GETPIVOTDATA(" RECUP AREA LEN <1a",INICIO!$A$264)) -> 0 | M46: =SUM(GETPIVOTDATA(" RECUP AREA MOT <1a",INICIO!$A$264)) -> 2 | N46: =SUM(GETPIVOTDATA(" RECUP AREA SOCIAL <1a",INICIO!$A$264)) -> 0 | O46: =SUM(GETPIVOTDATA(" RECUP AREA COORD <1a",INICIO!$A$264)) -> 0 | P46: =SUM(GETPIVOTDATA(" RECUP AREA COGNITIVA <1a",INICIO!$A$264)) -> 0 | Q46: =SUM(L46:O46) -> 2 | V46: RN | W46: =SUM(GETPIVOTDATA(" 1° EST_TEMP RN",INICIO!$A$48)) -> 653 | AC46: =SUM(W46) -> 653
A47: 1 año | B47: =SUM(GETPIVOTDATA(" RETARDO EN EL DESARROLLO PSICOMOTOR 1a",INICIO!$A$119)) -> 2 | E47: =SUM(GETPIVOTDATA(" RIESGO AREA DEL LENGUAJE 1a",INICIO!$A$100)) -> 0 | F47: =SUM(GETPIVOTDATA(" RIESGO AREA MOTORA 1a",INICIO!$A$100)) -> 1 | G47: =SUM(GETPIVOTDATA(" RIESGO AREA SOCIAL 1a",INICIO!$A$100)) -> 0 | H47: =SUM(GETPIVOTDATA(" RIESGO AREA COORDINACION 1a",INICIO!$A$100)) -> 0 | I47: =SUM(GETPIVOTDATA(" RIESGO AREA COGNITIVA 1a",INICIO!$A$100)) -> 0 | J47: =SUM(E47:H47) -> 1 | L47: =SUM(GETPIVOTDATA(" RECUP AREA LEN 1a",INICIO!$A$264)) -> 0 | M47: =SUM(GETPIVOTDATA(" RECUP AREA MOT 1a",INICIO!$A$264)) -> 0 | N47: =SUM(GETPIVOTDATA(" RECUP AREA SOCIAL 1a",INICIO!$A$264)) -> 0 | O47: =SUM(GETPIVOTDATA(" RECUP AREA COORD 1a",INICIO!$A$264)) -> 0 | P47: =SUM(GETPIVOTDATA(" RECUP AREA COGNITIVA 1a",INICIO!$A$264)) -> 0 | Q47: =SUM(L47:O47) -> 0 | V47: <1a | W47: =SUM(GETPIVOTDATA(" 1° EST_TEMP<1a",INICIO!$A$48)) -> 1218 | X47: =SUM(GETPIVOTDATA(" 2° EST_TEMP<1a",INICIO!$A$48)) -> 1208 | Y47: =SUM(GETPIVOTDATA(" 3° EST_TEMP<1a",INICIO!$A$48)) -> 1299 | Z47: =SUM(GETPIVOTDATA(" 4° EST_TEMP<1a",INICIO!$A$48)) -> 1361 | AA47: =SUM(GETPIVOTDATA(" 5° EST_TEMP<1a",INICIO!$A$48)) -> 1345 | AB47: =SUM(GETPIVOTDATA(" 6° EST_TEMP<1a",INICIO!$A$48)) -> 1271 | AC47: =SUM(AB47) -> 1271
A48: 2 años | B48: =SUM(GETPIVOTDATA(" RETARDO EN EL DESARROLLO PSICOMOTOR 2a",INICIO!$A$119)) -> 4 | E48: =SUM(GETPIVOTDATA(" RIESGO AREA DEL LENGUAJE 2a",INICIO!$A$100)) -> 2 | F48: =SUM(GETPIVOTDATA(" RIESGO AREA MOTORA 2a",INICIO!$A$100)) -> 0 | G48: =SUM(GETPIVOTDATA(" RIESGO AREA SOCIAL 2a",INICIO!$A$100)) -> 0 | H48: =SUM(GETPIVOTDATA(" RIESGO AREA COORDINACION 2a",INICIO!$A$100)) -> 0 | I48: =SUM(GETPIVOTDATA(" RIESGO AREA COGNITIVA 2a",INICIO!$A$100)) -> 0 | J48: =SUM(E48:H48) -> 2 | L48: =SUM(GETPIVOTDATA(" RECUP AREA LEN 2a",INICIO!$A$264)) -> 3 | M48: =SUM(GETPIVOTDATA(" RECUP AREA MOT 2a",INICIO!$A$264)) -> 0 | N48: =SUM(GETPIVOTDATA(" RECUP AREA SOCIAL 2a",INICIO!$A$264)) -> 0 | O48: =SUM(GETPIVOTDATA(" RECUP AREA COORD 2a",INICIO!$A$264)) -> 0 | P48: =SUM(GETPIVOTDATA(" RECUP AREA COGNITIVA 2a",INICIO!$A$264)) -> 0 | Q48: =SUM(L48:O48) -> 3 | V48: 1a | W48: =SUM(GETPIVOTDATA(" 1° EST_TEMP1a",INICIO!$A$48)) -> 1060 | X48: =SUM(GETPIVOTDATA(" 2° EST_TEMP1a",INICIO!$A$48)) -> 783 | Y48: =SUM(GETPIVOTDATA(" 3° EST_TEMP1a",INICIO!$A$48)) -> 899 | Z48: =SUM(GETPIVOTDATA(" 4° EST_TEMP1a",INICIO!$A$48)) -> 421 | AC48: =SUM(Z48) -> 421
A49: 3 años | B49: =SUM(GETPIVOTDATA(" RETARDO EN EL DESARROLLO PSICOMOTOR 3a",INICIO!$A$119)) -> 3 | E49: =SUM(GETPIVOTDATA(" RIESGO AREA DEL LENGUAJE 3a",INICIO!$A$100)) -> 1 | F49: =SUM(GETPIVOTDATA(" RIESGO AREA MOTORA 3a",INICIO!$A$100)) -> 0 | G49: =SUM(GETPIVOTDATA(" RIESGO AREA SOCIAL 3a",INICIO!$A$100)) -> 0 | H49: =SUM(GETPIVOTDATA(" RIESGO AREA COORDINACION 3a",INICIO!$A$100)) -> 0 | I49: =SUM(GETPIVOTDATA(" RIESGO AREA COGNITIVA 3a",INICIO!$A$100)) -> 0 | J49: =SUM(E49:H49) -> 1 | L49: =SUM(GETPIVOTDATA(" RECUP AREA LEN 3a",INICIO!$A$264)) -> 0 | M49: =SUM(GETPIVOTDATA(" RECUP AREA MOT 3a",INICIO!$A$264)) -> 0 | N49: =SUM(GETPIVOTDATA(" RECUP AREA SOCIAL 3a",INICIO!$A$264)) -> 0 | O49: =SUM(GETPIVOTDATA(" RECUP AREA COORD 3a",INICIO!$A$264)) -> 0 | P49: =SUM(GETPIVOTDATA(" RECUP AREA COGNITIVA 3a",INICIO!$A$264)) -> 0 | Q49: =SUM(L49:O49) -> 0 | V49: 2a | W49: =SUM(GETPIVOTDATA(" 1° EST_TEMP2a",INICIO!$A$48)) -> 811 | X49: =SUM(GETPIVOTDATA(" 2° EST_TEMP2a",INICIO!$A$48)) -> 617 | Y49: =SUM(GETPIVOTDATA(" 3° EST_TEMP2a",INICIO!$A$48)) -> 7 | AC49: =SUM(X49) -> 617
A50: 4 años | B50: =SUM(GETPIVOTDATA(" RETARDO EN EL DESARROLLO PSICOMOTOR 4a",INICIO!$A$119)) -> 2 | E50: =SUM(GETPIVOTDATA(" RIESGO AREA DEL LENGUAJE 4a",INICIO!$A$100)) -> 1 | F50: =SUM(GETPIVOTDATA(" RIESGO AREA MOTORA 4a",INICIO!$A$100)) -> 0 | G50: =SUM(GETPIVOTDATA(" RIESGO AREA SOCIAL 4a",INICIO!$A$100)) -> 0 | H50: =SUM(GETPIVOTDATA(" RIESGO AREA COORDINACION 4a",INICIO!$A$100)) -> 0 | I50: =SUM(GETPIVOTDATA(" RIESGO AREA COGNITIVA 4a",INICIO!$A$100)) -> 0 | J50: =SUM(E50:H50) -> 1 | L50: =SUM(GETPIVOTDATA(" RECUP AREA LEN 4a",INICIO!$A$264)) -> 0 | M50: =SUM(GETPIVOTDATA(" RECUP AREA MOT 4a",INICIO!$A$264)) -> 0 | N50: =SUM(GETPIVOTDATA(" RECUP AREA SOCIAL 4a",INICIO!$A$264)) -> 0 | O50: =SUM(GETPIVOTDATA(" RECUP AREA COORD 4a",INICIO!$A$264)) -> 0 | P50: =SUM(GETPIVOTDATA(" RECUP AREA COGNITIVA 4a",INICIO!$A$264)) -> 0 | Q50: =SUM(L50:O50) -> 0 | V50: 3a | W50: =SUM(GETPIVOTDATA(" 1° EST_TEMP3a",INICIO!$A$48)) -> 196 | X50: =SUM(GETPIVOTDATA(" 2° EST_TEMP3a",INICIO!$A$48)) -> 194 | AC50: =SUM(W50) -> 196
A51: 5-11 años
A52: TOTAL | B52: =SUM(B46:B51) -> 13 | E52: =SUM(E46:E51) -> 4 | F52: 2 | G52: 0 | H52: 0 | I52: 0 | J52: 6 | L52: =SUM(L46:L51) -> 3 | M52: 2 | N52: 0 | O52: 0 | P52: 0 | Q52: 5
A55: XI. CONSEJERÍA
A56: Tipos / Edades | D56: Total | E56: RN | F56: <1 año | G56: 01 año | H56: 02 años | I56: 03 años | J56: 04 años | K56: 05 - 11 a
A57: Nutricional por Suplementación | D57: =SUM(E57:J57) -> 0 | E57: =SUM(GETPIVOTDATA("Consejeria Nutric por Suplementación RN",INICIO!$A$215)) -> 0 | F57: =SUM(GETPIVOTDATA(" Consejeria Nutric por Suplementación <1A",INICIO!$A$239)) -> 0 | G57: =SUM(GETPIVOTDATA(" Consejeria Nutric por Suplementación 1A",INICIO!$A$239)) -> 0 | H57: =SUM(GETPIVOTDATA(" Consejeria Nutric por Suplementación 2A",INICIO!$A$239)) -> 0 | I57: =SUM(GETPIVOTDATA(" Consejeria Nutric por Suplementación 3A",INICIO!$A$239)) -> 0 | J57: =SUM(GETPIVOTDATA(" Consejeria Nutric por Suplementación 4A",INICIO!$A$239)) -> 0
A58: Nutricional por Eval. PE, TP, TE, IMC | D58: =SUM(E58:J58) -> 28545 | E58: =SUM(GETPIVOTDATA("Consejeria Nutric RN",INICIO!$A$215)) -> 131 | F58: =SUM(GETPIVOTDATA(" CONSEJERIA NUTRICIONAL <1a",INICIO!$A$75)) -> 10837 | G58: =SUM(GETPIVOTDATA(" CONSEJERIA NUTRICIONAL 1a",INICIO!$A$75)) -> 7330 | H58: =SUM(GETPIVOTDATA(" CONSEJERIA NUTRICIONAL 3a",INICIO!$A$75)) -> 4099 | I58: =SUM(GETPIVOTDATA(" CONSEJERIA NUTRICIONAL 4a",INICIO!$A$75)) -> 3074 | J58: =SUM(GETPIVOTDATA(" CONSEJERIA NUTRICIONAL 4a",INICIO!$A$75)) -> 3074
A59: Integral por Eval. del Desarrollo | D59: =SUM(E59:J59) -> 0
A60: Integral por Aliment. Complement. | D60: =SUM(E60:J60) -> 0
A62: XII. VISITA DOMICILIARIA
A63: TIPOS DE VISITA / EDADES | E63: Total | F63: RN | G63: <1 año | H63: 01 año | I63: 02 años | J63: 03 años | K63: 04 años | L63: 05 - 11 a
A64: Seguimiento al Control CRED | E64: =SUM(F64:L64) -> 425 | F64: =SUM(GETPIVOTDATA("VISITA DOMIC SEGUIMIENTO RN",INICIO!$A$215)) -> 2 | G64: =SUM(GETPIVOTDATA(" VISITA DOMIC SEGUIMIENTO <1a",INICIO!$A$239)) -> 46 | H64: =SUM(GETPIVOTDATA(" VISITA DOMIC SEGUIMIENTO 1a",INICIO!$A$239)) -> 77 | I64: =SUM(GETPIVOTDATA(" VISITA DOMIC SEGUIMIENTO 2a",INICIO!$A$239)) -> 50 | J64: =SUM(GETPIVOTDATA(" VISITA DOMIC SEGUIMIENTO 3a",INICIO!$A$239)) -> 57 | K64: =SUM(GETPIVOTDATA(" VISITA DOMIC SEGUIMIENTO 4a",INICIO!$A$239)) -> 65 | L64: =SUM(GETPIVOTDATA(" VISITA DOMIC SEGUIMIENTO 5-11a",INICIO!$A$239)) -> 128
A65: Seguimiento a Problemas Nutricionales | E65: =SUM(F65:L65) -> 1 | F65: =SUM(GETPIVOTDATA("VISITA DOMIC SEGUIMIENTO PROBLEM NUTRIC RN",INICIO!$A$215)) -> 0 | G65: =SUM(GETPIVOTDATA(" VISITA DOMIC SEGUIMIENTO PROBLEM NUTRIC <1a",INICIO!$A$239)) -> 0 | H65: =SUM(GETPIVOTDATA(" VISITA DOMIC SEGUIMIENTO PROBLEM NUTRIC 1a",INICIO!$A$239)) -> 0 | I65: =SUM(GETPIVOTDATA(" VISITA DOMIC SEGUIMIENTO PROBLEM NUTRIC 2a",INICIO!$A$239)) -> 1 | J65: =SUM(GETPIVOTDATA(" VISITA DOMIC SEGUIMIENTO PROBLEM NUTRIC 3a",INICIO!$A$239)) -> 0 | K65: =SUM(GETPIVOTDATA(" VISITA DOMIC SEGUIMIENTO PROBLEM NUTRIC 4a",INICIO!$A$239)) -> 0 | L65: =SUM(GETPIVOTDATA(" VISITA DOMIC SEGUIMIENTO PROBLEM NUTRIC 5-11a",INICIO!$A$239)) -> 0
A66: Seguimiento a Problemas del Desarrollo | E66: =SUM(F66:L66) -> 0 | F66: =SUM(GETPIVOTDATA("Seguimiento a Problemas del Desarrollo RN",INICIO!$A$215)) -> 0 | G66: =SUM(GETPIVOTDATA(" Seguimiento a Problemas del Desarrollo <1a",INICIO!$A$239)) -> 0 | H66: =SUM(GETPIVOTDATA(" Seguimiento a Problemas del Desarrollo 1a",INICIO!$A$239)) -> 0 | I66: =SUM(GETPIVOTDATA(" Seguimiento a Problemas del Desarrollo 2a",INICIO!$A$239)) -> 0 | J66: =SUM(GETPIVOTDATA(" Seguimiento a Problemas del Desarrollo 3a",INICIO!$A$239)) -> 0 | K66: =SUM(GETPIVOTDATA(" Seguimiento a Problemas del Desarrollo 4a",INICIO!$A$239)) -> 0 | L66: =SUM(GETPIVOTDATA(" Seguimiento a Problemas del Desarrollo 5-11a",INICIO!$A$239)) -> 0
A67: Entrega de Suplementación | E67: =SUM(F67:L67) -> 4 | F67: =SUM(GETPIVOTDATA("visit domic Entrega de Suplementación RN",INICIO!$A$215)) -> 0 | G67: =SUM(GETPIVOTDATA(" visit domic Entrega de Suplementación <1a",INICIO!$A$239)) -> 4 | H67: =SUM(GETPIVOTDATA(" visit domic Entrega de Suplementación 1a",INICIO!$A$239)) -> 0 | I67: =SUM(GETPIVOTDATA(" visit domic Entrega de Suplementación 2a",INICIO!$A$239)) -> 0 | J67: =SUM(GETPIVOTDATA(" visit domic Entrega de Suplementación 3a",INICIO!$A$239)) -> 0 | K67: =SUM(GETPIVOTDATA(" visit domic Entrega de Suplementación 4a",INICIO!$A$239)) -> 0 | L67: =SUM(GETPIVOTDATA(" visit domic Entrega de Suplementación 5-11a",INICIO!$A$239)) -> 0
A68: Verificación de Consumo de Micronutrientes | E68: =SUM(F68:L68) -> 47 | F68: =SUM(GETPIVOTDATA("visit domic verificacion consumo Suplementación RN",INICIO!$A$215)) -> 0 | G68: =SUM(GETPIVOTDATA(" visit domic verificacion consumo Suplementación <1a",INICIO!$A$239)) -> 23 | H68: =SUM(GETPIVOTDATA(" visit domic verificacion consumo Suplementación 1a",INICIO!$A$239)) -> 10 | I68: =SUM(GETPIVOTDATA(" visit domic verificacion consumo Suplementación 2a",INICIO!$A$239)) -> 7 | J68: =SUM(GETPIVOTDATA(" visit domic verificacion consumo Suplementación 3a",INICIO!$A$239)) -> 3 | K68: =SUM(GETPIVOTDATA(" visit domic verificacion consumo Suplementación 4a",INICIO!$A$239)) -> 4 | L68: =SUM(GETPIVOTDATA(" visit domic verificacion consumo Suplementación 5-11a",INICIO!$A$239)) -> 0
A72: EVALUACION DEL ESTADO NUTRICIONAL
A74: GRUPO DE EDAD | B74: Riesgo Nutricional | J74: Desnutrición Aguda E44.0 | L74: Desnutrición Crónica E45 | N74: Desnutrición Severa | P74: Exceso
B75: Ganancia Inadecuada de Peso(Z72.4) | F75: Ganancia Inadecuada de Talla(Z72.4) | P75: Sobre Peso P/T (E66.0) | R75: Obeso (E66.9)
B76: Diagnosticado | D76: Recuperado | F76: Diagnosticado | H76: Recuperado | J76: DX | K76: Rec. | L76: DX | M76: Rec. | N76: DX | O76: Rec. | P76: DX | Q76: Rec. | R76: DX | S76: Rec.
B77: P/E | D77: P/E | F77: T/E | H77: T/E | J77: P/T | K77: P/T | L77: T/E | M77: T/E | N77: P/E | O77: P/E
A78: Recien Nacido>2500gr | B78: =SUM(GETPIVOTDATA(" G INADEC/PESO RN",INICIO!$A$100)) ->  | D78: =SUM(GETPIVOTDATA(" REC G INADEC/PESO <1a",INICIO!$A$100)) -> 
A79: Recien Nacido de Bajo peso
A80: < 1 año | B80: =SUM(GETPIVOTDATA(" G INADEC/PESO <1a",INICIO!$A$119)) -> 116 | D80: =SUM(GETPIVOTDATA(" REC G INADEC/PESO <1a",INICIO!$A$264)) -> 76 | F80: =SUM(GETPIVOTDATA(" G INADEC/TALLA <1",INICIO!$A$126)) -> 88 | H80: =SUM(GETPIVOTDATA(" REC G INADEC/TALLA <1a",INICIO!$A$264)) -> 76 | J80: =SUM(GETPIVOTDATA(" DESNUTRICION AGUDA <1a",INICIO!$A$119)) -> 3 | K80: =SUM(GETPIVOTDATA(" REC DESNUTRICION AGUDA <1a",INICIO!$A$264)) -> 1 | L80: =SUM(GETPIVOTDATA(" DESNUTRICION CRONICA <1a",INICIO!$A$119)) -> 90 | M80: =SUM(GETPIVOTDATA(" REC DESNUTRICION AGUDA <1a",INICIO!$A$264)) -> 1 | N80: =SUM(GETPIVOTDATA(" DESNUTRICION SEVERA <1a",INICIO!$A$119)) -> 0 | O80: =SUM(GETPIVOTDATA(" REC DESNUTRICION SEVERA <1A",INICIO!$A$264)) -> 0 | P80: =SUM(GETPIVOTDATA(" SOBRE PESO <1a",INICIO!$A$119)) -> 86 | Q80: =SUM(GETPIVOTDATA(" REC SOBRE PESO <1A",INICIO!$A$264)) -> 1 | R80: =SUM(GETPIVOTDATA(" OBESO <1a",INICIO!$A$119)) -> 2 | S80: =SUM(GETPIVOTDATA(" REC OBESO <1A",INICIO!$A$264)) -> 0
A81: 1 año | B81: =SUM(GETPIVOTDATA(" PESO INADEC 1a",INICIO!$A$126)) -> 106 | D81: =SUM(GETPIVOTDATA(" REC G INADEC/PESO 1A",INICIO!$A$264)) -> 57 | F81: =SUM(GETPIVOTDATA(" G INADEC/TALLA 1a",INICIO!$A$119)) -> 97 | H81: =SUM(GETPIVOTDATA(" REC G INADEC/TALLA 1A",INICIO!$A$264)) -> 57 | J81: =SUM(GETPIVOTDATA(" DESNUTRICION AGUDA 1a",INICIO!$A$119)) -> 3 | K81: =SUM(GETPIVOTDATA(" REC DESNUTRICION AGUDA 1a",INICIO!$A$264)) -> 0 | L81: =SUM(GETPIVOTDATA(" DESNUTRICION CRONICA 1A",INICIO!$A$119)) -> 46 | M81: =SUM(GETPIVOTDATA(" REC DESNUTRICION AGUDA 1a",INICIO!$A$264)) -> 0 | N81: =SUM(GETPIVOTDATA(" DESNUTRICION SEVERA 1A",INICIO!$A$119)) -> 0 | O81: =SUM(GETPIVOTDATA(" REC DESNUTRICION SEVERA 1A",INICIO!$A$264)) -> 0 | P81: =SUM(GETPIVOTDATA(" SOBRE PESO 1a",INICIO!$A$119)) -> 25 | Q81: =SUM(GETPIVOTDATA(" REC SOBRE PESO 1A",INICIO!$A$264)) -> 0 | R81: =SUM(GETPIVOTDATA(" OBESO 1a",INICIO!$A$119)) -> 3 | S81: =SUM(GETPIVOTDATA(" REC OBESO 1A",INICIO!$A$264)) -> 0
A82: 2 años | B82: =SUM(GETPIVOTDATA(" PESO INADEC 2a",INICIO!$A$126)) -> 55 | D82: =SUM(GETPIVOTDATA(" REC G INADEC/PESO 2A",INICIO!$A$264)) -> 24 | F82: =SUM(GETPIVOTDATA(" G INADEC/TALLA 2a",INICIO!$A$119)) -> 70 | H82: =SUM(GETPIVOTDATA(" REC G INADEC/TALLA 2A",INICIO!$A$264)) -> 24 | J82: =SUM(GETPIVOTDATA(" DESNUTRICION AGUDA 2a",INICIO!$A$119)) -> 0 | K82: =SUM(GETPIVOTDATA(" REC DESNUTRICION AGUDA 2a",INICIO!$A$264)) -> 2 | L82: =SUM(GETPIVOTDATA(" DESNUTRICION CRONIC 2A",INICIO!$A$119)) -> 29 | M82: =SUM(GETPIVOTDATA(" REC DESNUTRICION AGUDA 2a",INICIO!$A$264)) -> 2 | N82: =SUM(GETPIVOTDATA(" DESNUTRICION SEVERA 2A",INICIO!$A$119)) -> 0 | O82: =SUM(GETPIVOTDATA(" REC DESNUTRICION SEVERA 2A",INICIO!$A$264)) -> 0 | P82: =SUM(GETPIVOTDATA(" SOBRE PESO 2a",INICIO!$A$119)) -> 13 | Q82: =SUM(GETPIVOTDATA(" REC SOBRE PESO 2A",INICIO!$A$264)) -> 0 | R82: =SUM(GETPIVOTDATA(" OBESO 2a",INICIO!$A$119)) -> 4 | S82: =SUM(GETPIVOTDATA(" REC OBESO 2A",INICIO!$A$264)) -> 0
A83: 3 años | B83: =SUM(GETPIVOTDATA(" PESO INADEC 3a",INICIO!$A$126)) -> 33 | D83: =SUM(GETPIVOTDATA(" REC G INADEC/PESO 3A",INICIO!$A$264)) -> 13 | F83: =SUM(GETPIVOTDATA(" G INADEC/TALLA 3a",INICIO!$A$119)) -> 60 | H83: =SUM(GETPIVOTDATA(" REC G INADEC/TALLA 3A",INICIO!$A$264)) -> 13 | J83: =SUM(GETPIVOTDATA(" DESNUTRICION AGUDA 3a",INICIO!$A$119)) -> 0 | K83: =SUM(GETPIVOTDATA(" REC DESNUTRICION AGUDA 3a",INICIO!$A$264)) -> 1 | L83: =SUM(GETPIVOTDATA(" DESNUTRICION CRONIC 3A",INICIO!$A$119)) -> 17 | M83: =SUM(GETPIVOTDATA(" REC DESNUTRICION AGUDA 3a",INICIO!$A$264)) -> 1 | N83: =SUM(GETPIVOTDATA(" REC DESNUTRICION SEVERA 3A",INICIO!$A$264)) -> 0 | O83: =SUM(GETPIVOTDATA(" REC DESNUTRICION SEVERA 3A",INICIO!$A$264)) -> 0 | P83: =SUM(GETPIVOTDATA(" SOBRE PESO 3a",INICIO!$A$119)) -> 6 | Q83: =SUM(GETPIVOTDATA(" REC SOBRE PESO 3A",INICIO!$A$264)) -> 0 | R83: =SUM(GETPIVOTDATA(" OBESO 3a",INICIO!$A$119)) -> 0 | S83: =SUM(GETPIVOTDATA(" REC OBESO 3A",INICIO!$A$264)) -> 0
A84: 4 años | B84: =SUM(GETPIVOTDATA(" PESO INADEC 4a",INICIO!$A$126)) -> 43 | D84: =SUM(GETPIVOTDATA(" REC G INADEC/PESO 4A",INICIO!$A$264)) -> 13 | F84: =SUM(GETPIVOTDATA(" G INADEC/TALLA 4a",INICIO!$A$119)) -> 78 | H84: =SUM(GETPIVOTDATA(" REC G INADEC/TALLA 4A",INICIO!$A$264)) -> 9 | J84: =SUM(GETPIVOTDATA(" DESNUTRICION AGUDA 4a",INICIO!$A$119)) -> 0 | K84: =SUM(GETPIVOTDATA(" REC DESNUTRICION AGUDA 4a",INICIO!$A$264)) -> 0 | L84: =SUM(GETPIVOTDATA(" DESNUTRICION CRONICA 4A",INICIO!$A$119)) -> 20 | M84: =SUM(GETPIVOTDATA(" REC DESNUTRICION AGUDA 4a",INICIO!$A$264)) -> 0 | N84: =SUM(GETPIVOTDATA(" REC DESNUTRICION SEVERA 4A",INICIO!$A$264)) -> 0 | O84: =SUM(GETPIVOTDATA(" REC DESNUTRICION SEVERA 4A",INICIO!$A$264)) -> 0 | P84: =SUM(GETPIVOTDATA(" SOBRE PESO 4a",INICIO!$A$119)) -> 4 | Q84: =SUM(GETPIVOTDATA(" REC SOBRE PESO 4A",INICIO!$A$264)) -> 1 | R84: =SUM(GETPIVOTDATA(" OBESO 4a",INICIO!$A$119)) -> 3 | S84: =SUM(GETPIVOTDATA(" REC OBESO 4A",INICIO!$A$264)) -> 0
A86: Ervaluacion por IMC de 5 a 11 años | B86: Dx | C86: Recup
A87: Deldadez | B87: =SUM(GETPIVOTDATA(" DELGADEZ IMC 5-11a",INICIO!$A$100)) -> 
A88: Normal | B88: =SUM(GETPIVOTDATA(" NORMAL IMC 5-11a",INICIO!$A$100)) -> 
A89: Sobrepeso | B89: =SUM(GETPIVOTDATA(" SOBRE PESO IMC 5-11a",INICIO!$A$100)) ->  | C89: =SUM(GETPIVOTDATA(" REC SOBRE PESO IMC 5-11A",INICIO!$A$100)) -> 
A90: Obeso | B90: =SUM(GETPIVOTDATA(" OBESO IMC 5-11a",INICIO!$A$100)) ->  | C90: =SUM(GETPIVOTDATA(" REC OBESO IMC 5-11A",INICIO!$A$100)) -> 
A93: EXAMENES DE LABORATORIO / TAMIZAJES
A94: ACTIVIDAD | C94: 1 año | F94: 2 años | I94: 3 años | L94: 4 años | O94: 5 a 11 años
C95: Prog | D95: Mensual | E95: % | F95: % | G95: Prog | H95: Mensual | I95: % | J95: Prog | K95: Mensual | L95: % | M95: Prog | N95: Mensual | O95: % | P95: Prog | Q95: Mensual
A96: Total de tamizaje de anemia (Dosaje de Hemoglobina) Z001.7 | D96: =SUM(GETPIVOTDATA(" DOSAJE HB/HTO 1a",INICIO!$A$74)) ->  | H96: =SUM(GETPIVOTDATA(" DOSAJE HB/HTO 2a",INICIO!$A$74)) ->  | K96: =SUM(GETPIVOTDATA(" DOSAJE HB/HTO 3a",INICIO!$A$74)) ->  | N96: =SUM(GETPIVOTDATA(" DOSAJE HB/HTO 4a",INICIO!$A$74)) -> 
A97: Nro Total de Test de Graham) 87172 | D97: =SUM(GETPIVOTDATA(" T_GRAHAM1a",INICIO!$A$48)) -> 733 | H97: =SUM(GETPIVOTDATA(" T_GRAHAM2a",INICIO!$A$48)) -> 652 | K97: =SUM(GETPIVOTDATA(" T_GRAHAM3a",INICIO!$A$48)) -> 594 | N97: =SUM(GETPIVOTDATA(" T_GRAHAM4a",INICIO!$A$48)) -> 547 | Q97: =SUM(GETPIVOTDATA(" T_GRAHAM 5-11a",INICIO!$A$48)) -> 288
A98: Nro de Test de Graham Positivos | D98: =SUM(GETPIVOTDATA(" T_GRAHAM1a (+)",INICIO!$A$288)) -> 3 | H98: =SUM(GETPIVOTDATA(" T_GRAHAM2a (+)",INICIO!$A$288)) -> 2 | K98: =SUM(GETPIVOTDATA(" T_GRAHAM3a (+)",INICIO!$A$288)) -> 3 | N98: =SUM(GETPIVOTDATA(" T_GRAHAM4a(+)",INICIO!$A$288)) -> 3 | Q98: =SUM(GETPIVOTDATA(" T_GRAHAM 5-11a(+)",INICIO!$A$288)) -> 0
A99: Nro Total de Examen Seriado de Heces 87177 | D99: =SUM(GETPIVOTDATA(" EX SERIADO HECES 1a",INICIO!$A$48)) -> 761 | H99: =SUM(GETPIVOTDATA(" EX SERIADO HECES 2a",INICIO!$A$48)) -> 685 | K99: =SUM(GETPIVOTDATA(" EX SERIADO HECES 3a",INICIO!$A$48)) -> 606 | N99: =SUM(GETPIVOTDATA(" EX SERIADO HECES 4a",INICIO!$A$48)) -> 564 | Q99: =SUM(GETPIVOTDATA(" EX SERIADO HECES 5-11a",INICIO!$A$48)) -> 316
A100: Nro de Examen Seriado de Heces Positivos | D100: =SUM(GETPIVOTDATA(" EX SERIADO HECES 1a (+)",INICIO!$A$288)) -> 55 | H100: =SUM(GETPIVOTDATA(" EX SERIADO HECES 2a (+)",INICIO!$A$288)) -> 77 | K100: =SUM(GETPIVOTDATA(" EX SERIADO HECES 3a (+)",INICIO!$A$288)) -> 57 | N100: =SUM(GETPIVOTDATA(" EX SERIADO HECES 4a (+)",INICIO!$A$288)) -> 37 | Q100: =SUM(GETPIVOTDATA(" EX SERIADO HECES 5-11a(+)",INICIO!$A$288)) -> 38
A101: PARASITOSIS TEST GRAHAN O EXAMEN HECES TRATADOS
A103: IV. ADMINISTRACIÓN DE PROFILAXIS ANTIPARASITARIA
A104: ACTIVIDADES | E104: 01 año | G104: 02 años | I104: 03 años | K104: 04 años | M104: 05 - 11 años
E105: 1º | F105: 2º | G105: 1º | H105: 2º | I105: 1º | J105: 2º | K105: 1º | L105: 2º | M105: 1º | N105: 2º
A106: Administración de Profilaxis Antiparasitaria | G106: =SUM(GETPIVOTDATA(" ANTIPARASITARIO PREV 1RA 2a",INICIO!$A$48)) -> 1354 | H106: =SUM(GETPIVOTDATA(" ANTIPARASITARIO PREV 2DA 2a",INICIO!$A$48)) -> 1048 | I106: =SUM(GETPIVOTDATA(" ANTIPARASITARIO PREV 1RA 3a",INICIO!$A$48)) -> 1418 | J106: =SUM(GETPIVOTDATA(" ANTIPARASITARIO PREV 2DA 3a",INICIO!$A$48)) -> 930 | K106: =SUM(GETPIVOTDATA(" ANTIPARASITARIO PREV 1RA 4a",INICIO!$A$48)) -> 1574 | L106: =SUM(GETPIVOTDATA(" ANTIPARASITARIO PREV 2DA 4a",INICIO!$A$48)) -> 844 | M106: =SUM(GETPIVOTDATA(" ANTIPARASITARIO PREV 1RA 5-11a",INICIO!$A$48)) -> 8608 | N106: =SUM(GETPIVOTDATA(" ANTIPARASITARIO PREV 2DA 5-11a",INICIO!$A$48)) -> 3021
A110: 2.1- Total de Evaluación del desarrollo psicosocial con test de habilidades | D110: 2.2.- Total de Evaluación de Agudeza visual | J110: 2.5.- Total de Evaluacion Fisico Postural
A111: Muy Bajo | D111: Normal | J111: Normal
A112: Bajo | D112: Disminución de Agudeza visual | J112: Hiperlordosis
A113: Promedio Bajo | D113: 2.3.- Total de Evaluación agudeza auditiva | J113: Hipersifosis
A114: Promedio | D114: Normal | J114: Escoliosis
A115: Promedio Alto | D115: Disminución de agudeza auditiva
A116: Alto | D116: 2.4 .- Total de Evaluacion del Desarrollo sexual según Tanner
A117: Muy Alto | D117: Adecuado
D118: Retardo
D119: Precoz
A122: VISITAS DOMICILIARIA DE SEGUIMIENTO
A123: VISITA FAMILIAR INTEGRAL | D123: Prog | E123: MENS | F123: ACUM | G123: %
A124: Nº de visitas domiciliarias a RN | E124: =SUM(GETPIVOTDATA("visit domic verificacion consumo Suplementación RN",INICIO!$A$215)+GETPIVOTDATA("VISITA DOMIC SEGUIMIENTO RN",INICIO!$A$215)+GETPIVOTDATA("visit domic Entrega de Suplementación RN",INICIO!$A$215)+GETPIVOTDATA("Seguimiento a Problemas del Desarrollo RN",INICIO!$A$215)+GETPIVOTDATA("VISITA DOMIC SEGUIMIENTO PROBLEM NUTRIC RN",INICIO!$A$215)) -> 2
A125: Nº de visitas domiciliarias a niños < 1 año | E125: =SUM(GETPIVOTDATA(" VISITA DOMIC SEGUIMIENTO <1a",INICIO!$A$239)+GETPIVOTDATA(" VISITA DOMIC SEGUIMIENTO PROBLEM NUTRIC <1a",INICIO!$A$239)+GETPIVOTDATA(" Seguimiento a Problemas del Desarrollo <1a",INICIO!$A$239)+GETPIVOTDATA(" visit domic Entrega de Suplementación <1a",INICIO!$A$239)+GETPIVOTDATA(" visit domic verificacion consumo Suplementación <1a",INICIO!$A$239)) -> 73
A126: Nº de visitas domiciliarias a niños 1 año | E126: =SUM(GETPIVOTDATA(" VISITA DOMIC SEGUIMIENTO 1a",INICIO!$A$239)+GETPIVOTDATA(" VISITA DOMIC SEGUIMIENTO PROBLEM NUTRIC 1a",INICIO!$A$239)+GETPIVOTDATA(" Seguimiento a Problemas del Desarrollo 1a",INICIO!$A$239)+GETPIVOTDATA(" visit domic Entrega de Suplementación 1a",INICIO!$A$239)+GETPIVOTDATA(" visit domic verificacion consumo Suplementación 1a",INICIO!$A$239)) -> 87
A127: Nº de visitas domiciliarias a niños 2 años | E127: =SUM(GETPIVOTDATA(" VISITA DOMIC SEGUIMIENTO 2a",INICIO!$A$239)+GETPIVOTDATA(" VISITA DOMIC SEGUIMIENTO PROBLEM NUTRIC 2a",INICIO!$A$239)+GETPIVOTDATA(" Seguimiento a Problemas del Desarrollo 2a",INICIO!$A$239)+GETPIVOTDATA(" visit domic Entrega de Suplementación 2a",INICIO!$A$239)+GETPIVOTDATA(" visit domic verificacion consumo Suplementación 2a",INICIO!$A$239)) -> 58
A128: Nº de visitas domiciliarias a niños 3 años | E128: =SUM(GETPIVOTDATA(" VISITA DOMIC SEGUIMIENTO 3a",INICIO!$A$239)+GETPIVOTDATA(" VISITA DOMIC SEGUIMIENTO PROBLEM NUTRIC 3a",INICIO!$A$239)+GETPIVOTDATA(" Seguimiento a Problemas del Desarrollo 3a",INICIO!$A$239)+GETPIVOTDATA(" visit domic Entrega de Suplementación 3a",INICIO!$A$239)+GETPIVOTDATA(" visit domic verificacion consumo Suplementación 3a",INICIO!$A$239)) -> 60
A129: Nº de visitas domiciliarias a niños 4 años | E129: =SUM(GETPIVOTDATA(" VISITA DOMIC SEGUIMIENTO 4a",INICIO!$A$239)+GETPIVOTDATA(" VISITA DOMIC SEGUIMIENTO PROBLEM NUTRIC 4a",INICIO!$A$239)+GETPIVOTDATA(" Seguimiento a Problemas del Desarrollo 4a",INICIO!$A$239)+GETPIVOTDATA(" visit domic Entrega de Suplementación 4a",INICIO!$A$239)+GETPIVOTDATA(" visit domic verificacion consumo Suplementación 4a",INICIO!$A$239)) -> 69
A130: Nº de visitas domiciliarias a niños 5 a 11 años | E130: =SUM(GETPIVOTDATA(" VISITA DOMIC SEGUIMIENTO 5-11a",INICIO!$A$239)+GETPIVOTDATA(" VISITA DOMIC SEGUIMIENTO PROBLEM NUTRIC 5-11a",INICIO!$A$239)+GETPIVOTDATA(" Seguimiento a Problemas del Desarrollo 5-11a",INICIO!$A$239)+GETPIVOTDATA(" visit domic Entrega de Suplementación 5-11a",INICIO!$A$239)+GETPIVOTDATA("visit domic verificacion consumo Suplementación 5-11a",INICIO!$A$239)) -> 128
A131: Sesiones Demostrativas
A132: Sesiones Educativas

Sheet Reporte2015 (hidden)
B2: REPORTE MENSUAL DE ACTIVIDADES
B3: ATENCIÓN INTEGRAL DE SALUD DEL NIÑO
B6: RED DE SALUD | F6: MICRO RED | K6: PROVINCIA
B7: =MID(INICIO!E31,1,50) -> LA CONVENCION | F7: =MID(INICIO!E32,1,50) -> (ALL) | K7: =MID(INICIO!E34,1,50) -> (ALL) | Q7: AÑO | R7: =MID(INICIO!C28,1,4) -> 2024
B9: ESTABLECIMIENTO | K9: DISTRITO | Q9: INI | S9: FIN
B10: =MID(INICIO!E33,1,50) -> (ALL) | K10: =MID(INICIO!E35,1,50) -> (ALL) | P10: MES | Q10: =MIN(mesfin) -> 1 | R10: A | S10: =MAX(mesfin) -> 11
B12: I. ATENCIÓN DEL RECIÉN NACIDO
B13: A) Atención Inmediata | J13: D) Morbilidad Neonatal
B14: ACTIVIDADES | F14: Nº | J14: CAUSAS DE MORBILIDAD | N14: Nº
B15: Atención Inmediata | F15: =SUM(((GETPIVOTDATA(" TOT RN DE PARTO INST",INICIO!#REF!)-GETPIVOTDATA(" TOT RN MUERTO INST",INICIO!#REF!))))+(GETPIVOTDATA(" TOT PARTOS MEDICO",INICIO!#REF!)+GETPIVOTDATA(" TOT PARTOS OBSTETRA",INICIO!#REF!)+GETPIVOTDATA(" RN GEMELAR ATD MEDICO",INICIO!#REF!)+GETPIVOTDATA(" RN GEMELAR ATD OBSTETRA",INICIO!#REF!))-(C19+C20) ->  | J15: Síndrome de Dristres Respiratorio | N15: TD= D + DX= P22
B16: Tamizaje Neonatal (Enfermed. Metabólicas) | F16: Sumar LAB2 DE APP140 + DX2= 80099 | J16: Síndromes de Aspiración Neonatal | N16: TD= D + DX= P24
B17: Tamizaje Visual y Auditivo | F17: =SUM(GETPIVOTDATA(" tamizaje visual auditivoL",INICIO!$A$48)) ->  | J17: Asfixia Neonatal | N17: TD= D + DX= P21
B18: Contacto Piel a Piel con la madre | F18: =SUM(GETPIVOTDATA(" CONTACTO PIEL A PIEL",INICIO!$A$48)) ->  | J18: Sepsis Neonatal | N18: TD= D + DX= P36
B19: Alojamiento Conjunto | F19: =SUM(GETPIVOTDATA(" ALOJAMIENTO CONJUNTO",INICIO!$A$48)) ->  | J19: Ictericia | N19: TD= D + DX= P58, P59
B20: Lactancia Materna en la 1º Hora | F20: =SUM(GETPIVOTDATA(" LME 1RA HORA",INICIO!$A$48)) ->  | J20: Hipoglucemia | N20: TD= D + DX= P704
J21: Sífilis Congénita | N21: TD= D + DX= A50
B22: B) Resultados del Tamizaje Neonatal | J22: VIH Expuesto | N22: TD= D + DX= Z206
B23: DIAGNÓSTICOS | F23: Nº | J23: Retinopatía de la Prematuridad | N23: TD= D + DX= H351
B24: Hipotiroidismo Congénito | F24: EDAD< 3M + TD=D + DX= E00
B25: Fenilcetonuria | F25: EDAD< 3M + TD=D + DX= E700 | J25: E) Mortalidad Neonatal
B26: Galactosemia | F26: EDAD< 3M + TD=D + DX= E742 | J26: PESO AL NACER | M26: Nº | N26: Causas Defunción | Q26: Nº
B27: Hiperplasia Suprarrenal Congénita | F27: EDAD< 3M + TD=D + DX= E250, E278 | J27: < 1,000 gr. | N27: Asfixia | Q27: DX= P21
B28: Fibrosis Quística | F28: EDAD< 3M + TD=D + DX= E84 | J28: 1,000 a 1,499 gr. | N28: SDR | Q28: DX= P22
B29: Catarata Congénita | F29: EDAD< 3M + TD=D + DX= Q120, H269 | J29: 1,500 a 2,499 gr. | N29: Sepsis | Q29: DX= P36
B30: Hipoacusia (todas las clasificaciones) | F30: EDAD< 3M + TD=D + DX= H90, H91 | J30: 2,500 a 4,000 gr. | N30: Malformaciones Congénitas | Q30: DX= Q00… Q99
J31: > 4,000 y más gr. | N31: Otras
B32: C) Condición al Nacimiento | J32: No especificado
B33: CONDICIÓN | D33: Lugar de Nacimiento | J33: TIEMPO DE VIDA | M33: Nº
D34: EESS | E34: Domicilio | F34: Total | J34: Óbito fetal
B35: RN Normal | F35: =SUM(D35:E35) -> 0 | J35: < 24 horas
B36: RN Deprimido | F36: =SUM(D36:E36) -> 0 | J36: 01 a 07 días
B37: Prematuro | F37: =SUM(D37:E37) -> 0 | J37: 08 a 28 días
L39: Fuentes Externas
B40: La información del presente reporte debe ser complementada con fuentes externas (Libro de Atenciones, Reporte de Egresos, Certificado de Defunción, etc.) | M40: Libro de Atenciones y Reporte de Egresos
M41: Certificado de Defunción
B45: II. CONTROL DE CRECIMIENTO Y DESARROLLO | R45: Página 02
B46: Grupo de Edad | D46: Número de Controles | P46: Registros Errados
D47: 1º | E47: 2º | F47: 3º | G47: 4º | H47: 5º | I47: 6º | J47: 7º | K47: 8º | L47: 9º | M47: 10º | N47: 11º | O47: Total
B48: 01 a 28 días | D48: =SUM(GETPIVOTDATA(" 1° CRED RN",INICIO!$A$48)) ->  | E48: =SUM(GETPIVOTDATA(" 2° CRED RN",INICIO!$A$48)) ->  | F48: =SUM(GETPIVOTDATA(" 3° CRED RN",INICIO!$A$48)) ->  | G48: =SUM(GETPIVOTDATA(" 4° CRED RN",INICIO!$A$48)) ->  | O48: =SUM(D48:G48) -> 
B49: 29 días - 11 meses | D49: =SUM(GETPIVOTDATA(" 1° CRED <1a",INICIO!$A$48)) -> 1311 | E49: =SUM(GETPIVOTDATA(" 2° CRED <1a",INICIO!$A$48)) -> 1310 | F49: =SUM(GETPIVOTDATA(" 3° CRED <1a",INICIO!$A$48)) -> 1328 | G49: =SUM(GETPIVOTDATA(" 4° CRED <1a",INICIO!$A$48)) -> 1382 | H49: =SUM(GETPIVOTDATA(" 5° CRED <1a",INICIO!$A$48)) -> 1384 | I49: =SUM(GETPIVOTDATA(" 6° CRED <1a",INICIO!$A$48)) -> 1444 | J49: =SUM(GETPIVOTDATA(" 7° CRED <1a",INICIO!$A$48)) -> 1414 | K49: =SUM(GETPIVOTDATA(" 8° CRED <1a",INICIO!$A$48)) -> 1416 | L49: =SUM(GETPIVOTDATA(" 9° CRED <1a",INICIO!$A$48)) -> 1390 | M49: =SUM(GETPIVOTDATA(" 10° CRED <1a",INICIO!$A$48)) -> 1343 | N49: =SUM(GETPIVOTDATA(" 11° CRED <1a",INICIO!$A$48)) -> 1229 | O49: =SUM(D49:N49) -> 14951
B50: 01 año | D50: =SUM(GETPIVOTDATA(" 1° CRED 1a",INICIO!$A$48)) -> 1506 | E50: =SUM(GETPIVOTDATA(" 2° CRED 1a",INICIO!$A$48)) -> 1423 | F50: =SUM(GETPIVOTDATA(" 3° CRED 1a",INICIO!$A$48)) -> 1235 | G50: =SUM(GETPIVOTDATA(" 4° CRED 1a",INICIO!$A$48)) -> 1226 | H50: =SUM(GETPIVOTDATA(" 5° CRED 1a",INICIO!$A$48)) -> 1115 | I50: =SUM(GETPIVOTDATA(" 6° CRED 1a",INICIO!$A$48)) -> 995 | O50: =SUM(D50:I50) -> 7500
B51: 02 años | D51: =SUM(GETPIVOTDATA(" 1° CRED 2a",INICIO!$A$48)) -> 1380 | E51: =SUM(GETPIVOTDATA(" 2° CRED 2a",INICIO!$A$48)) -> 1275 | F51: =SUM(GETPIVOTDATA(" 3° CRED 2a",INICIO!$A$48)) -> 1106 | G51: =SUM(GETPIVOTDATA(" 4° CRED 2a",INICIO!$A$48)) -> 964 | O51: =SUM(D51:G51) -> 4725
B52: 03 años | D52: =SUM(GETPIVOTDATA(" 1° CRED 3a",INICIO!$A$48)) -> 1328 | E52: =SUM(GETPIVOTDATA(" 2° CRED 3a",INICIO!$A$48)) -> 1130 | F52: =SUM(GETPIVOTDATA(" 3° CRED 3a",INICIO!$A$48)) -> 960 | G52: =SUM(GETPIVOTDATA(" 4° CRED 3a",INICIO!$A$48)) -> 801 | O52: =SUM(D52:G52) -> 4219
B53: 04 años | D53: =SUM(GETPIVOTDATA(" 1° CRED 4a",INICIO!$A$48)) -> 1320 | E53: =SUM(GETPIVOTDATA(" 2° CRED 4a",INICIO!$A$48)) -> 1039 | F53: =SUM(GETPIVOTDATA(" 3° CRED 4a",INICIO!$A$48)) -> 794 | G53: =SUM(GETPIVOTDATA(" 4° CRED 4a",INICIO!$A$48)) -> 674 | O53: =SUM(D53:G53) -> 3827
B54: 05 a 11 años | D54: =SUM(GETPIVOTDATA(" 1° CRED 5a",INICIO!$A$48))+GETPIVOTDATA(" 1° CRED 6a",INICIO!$A$48)+GETPIVOTDATA(" 1° CRED 7a",INICIO!$A$48)+GETPIVOTDATA(" 1° CRED 8a",INICIO!$A$48)+GETPIVOTDATA(" 1° CRED 9a",INICIO!$A$48)+SUM(GETPIVOTDATA(" 1° CRED 10-11a",INICIO!$A$48)) -> 1782 | O54: =SUM(D54) -> 1782
B55: =IF(P55>0,"Si en la columna P aparecen valores es porque hay registros con valores INCORRECTOS en el campo LAB perdiendo niños con controles CRED, REVISE.","") ->  | P55: =SUM(P48:P54) -> 0
B57: III. TAMIZAJE | I57: 6-11M
B58: ACTIVIDADES | H58: 01m* | I58: 06m | J58: 01 a | K58: 02 a | L58: 03 a | M58: 04 a | N58: 05 -11 a | O58: Total
B59: 1. Detección de Anemia | E59: Solicitud de Dosaje de Hb | H59: TD= P + DX= Z017 | I59: TD= P + DX= Z017 | J59: TD= P + DX= Z017 | K59: TD= P + DX= Z017 | L59: TD= P + DX= Z017 | M59: TD= P + DX= Z017 | N59: TD= P + DX= Z017 | O59: =SUM(I59:N59) -> 0
E60: Resultados Evaluados | H60: TD= D + DX= Z017 | I60: TD= D + DX= Z017 | J60: TD= D + DX= Z017 | K60: TD= D + DX= Z017 | L60: TD= D + DX= Z017 | M60: TD= D + DX= Z017 | N60: TD= D + DX= Z017 | O60: =SUM(I60:N60) -> 0
B61: 2. Descarte de Parasitosis | E61: Solicitud de Examen | H61: TD= P + DX= Z119 | I61: TD= P + DX= Z119 | J61: TD= P + DX= Z119 | K61: TD= P + DX= Z119 | L61: TD= P + DX= Z119 | M61: TD= P + DX= Z119 | N61: TD= P + DX= Z119 | O61: =SUM(J61:N61) -> 0
E62: Resultados Evaluados | H62: TD= D + DX= Z119 | I62: TD= D + DX= Z119 | J62: TD= D + DX= Z119 | K62: TD= D + DX= Z119 | L62: TD= D + DX= Z119 | M62: TD= D + DX= Z119 | N62: TD= D + DX= Z119 | O62: =SUM(J62:N62) -> 0
B63: * Prematuros y Bajo Peso al Nacer.
B65: IV. ADMINISTRACIÓN DE PROFILAXIS ANTIPARASITARIA
B66: ACTIVIDADES | F66: 01 año | H66: 02 años | J66: 03 años | L66: 04 años | N66: 05 - 11 años
F67: 1º | G67: 2º | H67: 1º | I67: 2º | J67: 1º | K67: 2º | L67: 1º | M67: 2º | N67: 1º | O67: 2º
B68: Administración de Profilaxis Antiparasitaria | F68: TD= D + DX= Z292 + LAB=1 | G68: TD= D + DX= Z292 + LAB=2 | H68: =SUM(GETPIVOTDATA(" ANTIPARASITARIO PREV 2a",INICIO!$A$74)) ->  | I68: TD= D + DX= Z292 + LAB=2 | J68: =SUM(GETPIVOTDATA(" ANTIPARASITARIO PREV 3a",INICIO!$A$74)) ->  | K68: TD= D + DX= Z292 + LAB=2 | L68: TD= D + DX= Z292 + LAB=1 | M68: TD= D + DX= Z292 + LAB=2 | N68: TD= D + DX= Z292 + LAB=1 | O68: TD= D + DX= Z292 + LAB=2
B70: V. ADMINISTRACION DE MICRONUTRIENTES
B71: A) Sulfato Ferroso y Multimicronutriente (en polvo)
B72: ACTIVIDADES | E72: DOSIS | R72: Registros Errados
E73: 1º | F73: 2º | G73: 3º | H73: 4º | I73: 5º | J73: 6º | K73: 7º | L73: 8º | M73: 9º | N73: 10º | O73: 11º | P73: 12º | Q73: TA
B74: < 06 meses (BPN y Prematuros (SF)) | E74: EDAD < 6M + DX= Z298 + LAB=SF1 | F74: EDAD < 6M + DX= Z298 + LAB=SF2 | G74: EDAD < 6M + DX= Z298 + LAB=SF3 | H74: EDAD < 6M + DX= Z298 + LAB=SF4 | I74: EDAD < 6M + DX= Z298 + LAB=SF5 | J74: EDAD <= 6M + DX= Z298 + LAB= SF1, SF6, 6 | K74: EDAD <= 6M + DX= Z298 + LAB= SF2, SF7, 7 | L74: EDAD <= 6M + DX= Z298 + LAB= SF3, 8 | M74: EDAD <= 6M + DX= Z298 + LAB= SF4, 9 | N74: EDAD <= 6M + DX= Z298 + LAB= SF5, 10 | O74: EDAD <= 6M + DX= Z298 + LAB= SF6, 11 | P74: EDAD <= 6M + DX= Z298 + LAB= SF7, 12 | Q74: EDAD < 6M + DX= Z298 + LAB=TA | R74: Z001 + LAB <> [1...11]
B75: De 6 a 11 meses | E75: (EDAD >= 6M y <= 11M) + (DX= Z298 + LAB=1) | F75: (EDAD >= 6M y <= 11M) + (DX= Z298 + LAB=2) | G75: (EDAD >= 6M y <= 11M) + (DX= Z298 + LAB=3) | H75: (EDAD >= 6M y <= 11M) + (DX= Z298 + LAB=4) | I75: (EDAD >= 6M y <= 11M) + (DX= Z298 + LAB=5) | J75: (EDAD >= 6M y <= 11M) + (DX= Z298 + LAB=6) | K75: EDAD <= 11M + DX= Z298 + LAB= SF2, SF7, 7 | L75: EDAD <= 11M + DX= Z298 + LAB= SF3, 8 | M75: EDAD <= 11M + DX= Z298 + LAB= SF4, 9 | N75: EDAD <= 11M + DX= Z298 + LAB= SF5, 10 | O75: EDAD <= 11M + DX= Z298 + LAB= SF6, 11 | P75: EDAD <= 11M + DX= Z298 + LAB= SF7, 12 | Q75: EDAD < 6M + DX= Z298 + LAB=TA | R75: Z001 + LAB <> [1...11]
B76: De 1 año | E76: (EDAD = 1A + (DX= Z298 + LAB=1) | F76: (EDAD = 1A + (DX= Z298 + LAB=2) | G76: (EDAD = 1A + (DX= Z298 + LAB=3) | H76: (EDAD = 1A + (DX= Z298 + LAB=4) | I76: (EDAD = 1A + (DX= Z298 + LAB=5) | J76: (EDAD = 1A + (DX= Z298 + LAB=6) | K76: (EDAD = 1A + (DX= Z298 + LAB=7) | L76: (EDAD = 1A + (DX= Z298 + LAB=8) | M76: (EDAD = 1A + (DX= Z298 + LAB=9) | N76: (EDAD = 1A + (DX= Z298 + LAB=10) | O76: (EDAD = 1A + (DX= Z298 + LAB=11) | P76: (EDAD = 1A + (DX= Z298 + LAB=12) | Q76: (EDAD = 1A + (DX= Z298 + LAB=TA) | R76: Z001 + LAB <> [1...11]
B77: De 2 año | E77: (EDAD = 2A + (DX= Z298 + LAB=1) | F77: (EDAD = 2A + (DX= Z298 + LAB=2) | G77: (EDAD = 2A + (DX= Z298 + LAB=3) | H77: (EDAD = 2A + (DX= Z298 + LAB=4) | I77: (EDAD = 2A + (DX= Z298 + LAB=5) | J77: (EDAD = 2A + (DX= Z298 + LAB=6) | K77: (EDAD = 2A + (DX= Z298 + LAB=7) | L77: (EDAD = 2A + (DX= Z298 + LAB=8) | M77: (EDAD = 2A + (DX= Z298 + LAB=9) | N77: (EDAD = 2A + (DX= Z298 + LAB=10) | O77: (EDAD = 2A + (DX= Z298 + LAB=11) | P77: (EDAD = 2A + (DX= Z298 + LAB=12) | Q77: (EDAD = 2A + (DX= Z298 + LAB=TA) | R77: Z001 + LAB <> [1...11]
B78: De 3 año | E78: (EDAD = 3A + (DX= Z298 + LAB=1) | F78: (EDAD = 3A + (DX= Z298 + LAB=2) | G78: (EDAD = 3A + (DX= Z298 + LAB=3) | H78: (EDAD = 3A + (DX= Z298 + LAB=4) | I78: (EDAD = 3A + (DX= Z298 + LAB=5) | J78: (EDAD = 3A + (DX= Z298 + LAB=6) | K78: (EDAD = 3A + (DX= Z298 + LAB=7) | L78: (EDAD = 3A + (DX= Z298 + LAB=8) | M78: (EDAD = 3A + (DX= Z298 + LAB=9) | N78: (EDAD = 3A + (DX= Z298 + LAB=10) | O78: (EDAD = 3A + (DX= Z298 + LAB=11) | P78: (EDAD = 3A + (DX= Z298 + LAB=12) | Q78: (EDAD = 3A + (DX= Z298 + LAB=TA) | R78: Z001 + LAB <> [1...11]
B79: De 4 año | E79: (EDAD = 4A + (DX= Z298 + LAB=1) | F79: (EDAD = 4A + (DX= Z298 + LAB=2) | G79: (EDAD = 4A + (DX= Z298 + LAB=3) | H79: (EDAD = 4A + (DX= Z298 + LAB=4) | I79: (EDAD = 4A + (DX= Z298 + LAB=5) | J79: (EDAD = 4A + (DX= Z298 + LAB=6) | K79: (EDAD = 4A + (DX= Z298 + LAB=7) | L79: (EDAD = 4A + (DX= Z298 + LAB=8) | M79: (EDAD = 4A + (DX= Z298 + LAB=9) | N79: (EDAD = 4A + (DX= Z298 + LAB=10) | O79: (EDAD = 4A + (DX= Z298 + LAB=11) | P79: (EDAD = 4A + (DX= Z298 + LAB=12) | Q79: (EDAD = 4A + (DX= Z298 + LAB=TA) | R79: Z001 + LAB <> [1...11]
B80: Los Suplementados son los que CONSUMEN 360 sobres de MMN (a partir de los 18 meses, no antes) para indicar que se ha consumido el último sobre de MMN se registra TA | R80: =SUM(R74:R79) -> 0
B82: B) Vitamina "A" | D82: 06 meses | F82: 01 año | H82: 02 años | J82: 03 años | L82: 04 años | R82: Página 03
B83: Dosis | D83: 1º Dosis | E83: 2º Dosis | F83: 1º Dosis | G83: 2º Dosis | H83: 1º Dosis | I83: 2º Dosis | J83: 1º Dosis | K83: 2º Dosis | L83: 1º Dosis | M83: 2º Dosis
B84: Suplementados | D84: (EDAD >=6M y EDAD <= 11M) + DX= Z298 + LAB= VA1 | E84: (EDAD >=6M y EDAD <= 11M) + DX= Z298 + LAB= VA2 | F84: EDAD =1A + DX= Z298 + LAB= VA1 | G84: EDAD =1A + DX= Z298 + LAB= VA2 | H84: EDAD =2A + DX= Z298 + LAB= VA1 | I84: EDAD =2A + DX= Z298 + LAB= VA2 | J84: EDAD =3A + DX= Z298 + LAB= VA1 | K84: EDAD =3A + DX= Z298 + LAB= VA2 | L84: EDAD =4A + DX= Z298 + LAB= VA1 | M84: EDAD =4A + DX= Z298 + LAB= VA2
B86: VI. LACTANCIA MATERNA EXCLUSIVA | H86: VII. ALIMENTACIÓN COMPLEMENTARIA
B87: CONDICIÓN | E87: Nº | H87: CONDICIÓN | P87: Nº
B88: Niños con LME a los 06 meses | E88: EDAD= 6M + DX= Z391 | H88: Niños con Inicio de Alimentación Complementaria antes de los 06 meses | P88: EDAD<= 6M + (DX= Z0017 + LAB= IA)
B89: Solo se evalua el registro a los 06 meses | H89: Niños con Inicio de Alimentación Complementaria después de los 06 meses | P89: EDAD > 6M + (DX= Z0017 + LAB= IA)
H90: Niños con Inicio de Alimentación Complementaria Adecuada | P90: EDAD<= 6M + (DX= Z0017 + LAB= AA)
B91: VIII. EVALUACION DEL ESTADO NUTRICIONAL | H91: Niños con Inicio de Alimentación Complementaria Inadecuada | P91: EDAD > 6M + (DX= Z0017 + LAB= AI)
B92: A) En el Recién Nacido de 01 día a 28 días
B93: Clasificación: Peso al Nacer | E93: Nº | H93: Clasificación: Ganancia de Peso / Talla | L93: Dx. | M93: Recup.
B94: Extremadamente bajo | E94: EDAD> 1M + (TD=D + DX= P070) | H94: Ganancia Inadecuada de Peso | L94: EDAD> 1M + (TD=D + DX= Z724 + LAB= PE) | M94: EDAD> 1M + (TD=R + DX= Z724 + LAB= PE) + CUALQUIER OTRO LAB= PR
B95: Muy bajo peso al nacer | E95: EDAD> 1M + (TD=D + DX= P0711) | H95: Ganancia Inadecuada de Talla | L95: EDAD> 1M + (TD=D + DX= Z724 + LAB= TE) | M95: EDAD> 1M + (TD=R + DX= Z724 + LAB= TE) + CUALQUIER OTRO LAB= PR
B96: Bajo peso al nacer | E96: EDAD> 1M + (TD=D + DX= P0712) | H96: Dx: Diagnosticado | J96: Recup: Recuperado
B97: Normal | E97: EDAD> 1M + (TD=D + DX= Z006 + LAB EN BLANCO)
B98: Macrosómico | E98: EDAD> 1M + (TD=D + DX= P080)
B100: B) En los Niños y Niñas de 29 días a < 05 años
B101: GRUPO DE EDAD | D101: Ganancia Inadecuada de Peso o Talla | H101: Normal
D102: Peso | F102: Talla | M102: RN Bajo Peso Recuperados
D103: Dx. | E103: Recup. | F103: Dx. | G103: Recup. | M103: (P070 / P071 / P072 / P073 / P050 / P051); Dx=R + siguiente Lab= PR / PC
B104: < 1 año | D104: =SUM(GETPIVOTDATA(" G INADEC/PESO <1a",INICIO!$A$100)) ->  | E104: =SUM(GETPIVOTDATA(" REC G INADEC/PESO <1a",INICIO!$A$100)) ->  | F104: =SUM(GETPIVOTDATA(" G INADEC/TALLA <1a",INICIO!$A$100)) ->  | G104: =SUM(GETPIVOTDATA(" REC G INADEC/TALLA <1a",INICIO!$A$100)) ->  | H104: =SUM(GETPIVOTDATA(" EVAL NUTRIC NORMAL <1a",INICIO!$A$74)) -> 151
B105: 1 año | D105: =SUM(GETPIVOTDATA(" G INADEC/PESO 1a",INICIO!$A$100)) ->  | E105: =SUM(GETPIVOTDATA(" REC G INADEC/PESO 1A",INICIO!$A$100)) ->  | F105: =SUM(GETPIVOTDATA(" G INADEC/TALLA 1a",INICIO!$A$100)) ->  | G105: =SUM(GETPIVOTDATA(" REC G INADEC/TALLA 1A",INICIO!$A$100)) ->  | H105: =SUM(GETPIVOTDATA(" EVAL NUTRIC NORMAL 1a",INICIO!$A$74)) -> 73
B106: 2 años | D106: =SUM(GETPIVOTDATA(" G INADEC/PESO 2a",INICIO!$A$100)) ->  | E106: =SUM(GETPIVOTDATA(" REC G INADEC/PESO 2A",INICIO!$A$100)) ->  | F106: =SUM(GETPIVOTDATA(" G INADEC/TALLA 2a",INICIO!$A$100)) ->  | G106: =SUM(GETPIVOTDATA(" REC G INADEC/TALLA 2A",INICIO!$A$100)) ->  | H106: =SUM(GETPIVOTDATA(" EVAL NUTRIC NORMAL 2a",INICIO!$A$74)) -> 113
B107: 3 años | D107: =SUM(GETPIVOTDATA(" G INADEC/PESO 3a",INICIO!$A$100)) ->  | E107: =SUM(GETPIVOTDATA(" REC G INADEC/PESO 3A",INICIO!$A$100)) ->  | F107: =SUM(GETPIVOTDATA(" G INADEC/TALLA 3a",INICIO!$A$100)) ->  | G107: =SUM(GETPIVOTDATA(" REC G INADEC/TALLA 3A",INICIO!$A$100)) ->  | H107: =SUM(GETPIVOTDATA(" EVAL NUTRIC NORMAL 3a",INICIO!$A$74)) -> 307
B108: 4 años | D108: =SUM(GETPIVOTDATA(" G INADEC/PESO 4a",INICIO!$A$100)) ->  | E108: =SUM(GETPIVOTDATA(" REC G INADEC/PESO 4A",INICIO!$A$100)) ->  | F108: =SUM(GETPIVOTDATA(" G INADEC/TALLA 4a",INICIO!$A$100)) ->  | G108: =SUM(GETPIVOTDATA(" REC G INADEC/TALLA 4A",INICIO!$A$100)) ->  | H108: =SUM(GETPIVOTDATA(" EVAL NUTRIC NORMAL 4a",INICIO!$A$74)) -> 48
B109: Dx: Diagnosticado | C109: Recup: Recuperado
B111: GRUPO DE EDAD | C111: Peso para la Edad (PE) | G111: Peso para la Edad (TP) | O111: Talla para la Edad (TE)
C112: Sobrepeso | E112: Desnutrición Aguda | G112: Obesidad | I112: Sobrepeso | K112: Desnutrición Aguda | M112: Desnutrición Severa | O112: Alto | Q112: Talla Baja | Z112: Normal
C113: Dx. | D113: Recup. | E113: Dx. | F113: Recup. | G113: Dx. | H113: Recup. | I113: Dx. | J113: Recup. | K113: Dx. | L113: Recup. | M113: Dx. | N113: Recup. | O113: Dx. | P113: Recup. | Q113: Dx. | R113: Recup. | Z113: Dx. | AA113: Recup.
B114: < 1 año | C114: =SUM(GETPIVOTDATA(" SOBRE PESO <1a",INICIO!$A$100)) ->  | D114: =SUM(GETPIVOTDATA(" REC SOBRE PESO <1A",INICIO!$A$100)) ->  | E114: (TD=D + DX= E440 + LAB= PE) | F114: (TD=D + DX= E440 + LAB= PE) + CUALQUIER OTRO LAB= PR | G114: (TD=D + DX= E669 + LAB= TP) | H114: (TD=D + DX= E669 + LAB= TP) + CUALQUIER OTRO LAB= PR | I114: (TD=D + DX= E660 + LAB= TP) | J114: (TD=D + DX= E660 + LAB= TP) + CUALQUIER OTRO LAB= PR | K114: (TD=D + DX= E440 + LAB= TP) | L114: (TD=D + DX= E440 + LAB= TP) + CUALQUIER OTRO LAB= PR | M114: (TD=D + DX= E43X + LAB= TP) | N114: (TD=D + DX= E43X + LAB= TP) + CUALQUIER OTRO LAB= PR | O114: (TD=D + DX= E344 + LAB= TE) | P114: (TD=D + DX= E344 + LAB= TE) + CUALQUIER OTRO LAB= PR | Q114: (TD=D + DX= E45X + LAB= TE) | R114: (TD=D + DX= E45X + LAB= TE) + CUALQUIER OTRO LAB= PR | Z114: (TD=D + DX= Z006 + LAB EN BLANCO) | AA114: (TD=D + DX= E660 + LAB= PE) + CUALQUIER OTRO LAB= PR
B115: 1 año | C115: =SUM(GETPIVOTDATA(" SOBRE PESO 1a",INICIO!$A$100)) ->  | D115: =SUM(GETPIVOTDATA(" REC SOBRE PESO 1A",INICIO!$A$100)) ->  | E115: (TD=D + DX= E440 + LAB= PE) | F115: (TD=D + DX= E440 + LAB= PE) + CUALQUIER OTRO LAB= PR | G115: (TD=D + DX= E669 + LAB= TP) | H115: (TD=D + DX= E669 + LAB= TP) + CUALQUIER OTRO LAB= PR | I115: (TD=D + DX= E660 + LAB= TP) | J115: (TD=D + DX= E660 + LAB= TP) + CUALQUIER OTRO LAB= PR | K115: (TD=D + DX= E440 + LAB= TP) | L115: (TD=D + DX= E440 + LAB= TP) + CUALQUIER OTRO LAB= PR | M115: (TD=D + DX= E43X + LAB= TP) | N115: (TD=D + DX= E43X + LAB= TP) + CUALQUIER OTRO LAB= PR | O115: (TD=D + DX= E344 + LAB= TE) | P115: (TD=D + DX= E344 + LAB= TE) + CUALQUIER OTRO LAB= PR | Q115: (TD=D + DX= E45X + LAB= TE) | R115: (TD=D + DX= E45X + LAB= TE) + CUALQUIER OTRO LAB= PR
B116: 2 años | C116: =SUM(GETPIVOTDATA(" SOBRE PESO 2a",INICIO!$A$100)) ->  | D116: =SUM(GETPIVOTDATA(" REC SOBRE PESO 2A",INICIO!$A$100)) ->  | E116: (TD=D + DX= E440 + LAB= PE) | F116: (TD=D + DX= E440 + LAB= PE) + CUALQUIER OTRO LAB= PR | G116: (TD=D + DX= E669 + LAB= TP) | H116: (TD=D + DX= E669 + LAB= TP) + CUALQUIER OTRO LAB= PR | I116: (TD=D + DX= E660 + LAB= TP) | J116: (TD=D + DX= E660 + LAB= TP) + CUALQUIER OTRO LAB= PR | K116: (TD=D + DX= E440 + LAB= TP) | L116: (TD=D + DX= E440 + LAB= TP) + CUALQUIER OTRO LAB= PR | M116: (TD=D + DX= E43X + LAB= TP) | N116: (TD=D + DX= E43X + LAB= TP) + CUALQUIER OTRO LAB= PR | O116: (TD=D + DX= E344 + LAB= TE) | P116: (TD=D + DX= E344 + LAB= TE) + CUALQUIER OTRO LAB= PR | Q116: (TD=D + DX= E45X + LAB= TE) | R116: (TD=D + DX= E45X + LAB= TE) + CUALQUIER OTRO LAB= PR
B117: 3 años | C117: =SUM(GETPIVOTDATA(" SOBRE PESO 3a",INICIO!$A$100)) ->  | D117: =SUM(GETPIVOTDATA(" REC SOBRE PESO 3A",INICIO!$A$100)) ->  | E117: (TD=D + DX= E440 + LAB= PE) | F117: (TD=D + DX= E440 + LAB= PE) + CUALQUIER OTRO LAB= PR | G117: (TD=D + DX= E669 + LAB= TP) | H117: (TD=D + DX= E669 + LAB= TP) + CUALQUIER OTRO LAB= PR | I117: (TD=D + DX= E660 + LAB= TP) | J117: (TD=D + DX= E660 + LAB= TP) + CUALQUIER OTRO LAB= PR | K117: (TD=D + DX= E440 + LAB= TP) | L117: (TD=D + DX= E440 + LAB= TP) + CUALQUIER OTRO LAB= PR | M117: (TD=D + DX= E43X + LAB= TP) | N117: (TD=D + DX= E43X + LAB= TP) + CUALQUIER OTRO LAB= PR | O117: (TD=D + DX= E344 + LAB= TE) | P117: (TD=D + DX= E344 + LAB= TE) + CUALQUIER OTRO LAB= PR | Q117: (TD=D + DX= E45X + LAB= TE) | R117: (TD=D + DX= E45X + LAB= TE) + CUALQUIER OTRO LAB= PR
B118: 4 años | C118: =SUM(GETPIVOTDATA(" SOBRE PESO 4a",INICIO!$A$100)) ->  | D118: =SUM(GETPIVOTDATA(" REC SOBRE PESO 4A",INICIO!$A$100)) ->  | E118: (TD=D + DX= E440 + LAB= PE) | F118: (TD=D + DX= E440 + LAB= PE) + CUALQUIER OTRO LAB= PR | G118: (TD=D + DX= E669 + LAB= TP) | H118: (TD=D + DX= E669 + LAB= TP) + CUALQUIER OTRO LAB= PR | I118: (TD=D + DX= E660 + LAB= TP) | J118: (TD=D + DX= E660 + LAB= TP) + CUALQUIER OTRO LAB= PR | K118: (TD=D + DX= E440 + LAB= TP) | L118: (TD=D + DX= E440 + LAB= TP) + CUALQUIER OTRO LAB= PR | M118: (TD=D + DX= E43X + LAB= TP) | N118: (TD=D + DX= E43X + LAB= TP) + CUALQUIER OTRO LAB= PR | O118: (TD=D + DX= E344 + LAB= TE) | P118: (TD=D + DX= E344 + LAB= TE) + CUALQUIER OTRO LAB= PR | Q118: (TD=D + DX= E45X + LAB= TE) | R118: (TD=D + DX= E45X + LAB= TE) + CUALQUIER OTRO LAB= PR
B119: Dx: Diagnosticado | C119: Recup: Recuperado
B120: C) En los Niños y Niñas de 05 a 11 años | S120: Página 04
B121: GRUPO DE EDAD | C121: Índice de Masa Cororal (IMC) | K121: Talla para la Edad (TE) | Q121: Normal
C122: Obesidad | E122: Sobrepeso | G122: Delgadez | I122: Delgadez | K122: Alto | M122: Talla Baja | O122: Talla Baja Severa
C123: Dx. | D123: Recup. | E123: Dx. | F123: Recup. | G123: Dx. | H123: Recup. | I123: Dx. | J123: Recup. | K123: Dx. | L123: Recup. | M123: Dx. | N123: Recup. | O123: Dx. | P123: Recup.
B124: 05 a 11 años | C124: (TD=D + DX= E669 + LAB= IMC) | D124: (TD=D + DX= E669 + LAB= IMC) + CUALQUIER OTRO LAB= PR | E124: (TD=D + DX= E660 + LAB= IMC) | F124: (TD=D + DX= E660 + LAB= IMC) + CUALQUIER OTRO LAB= PR | G124: (TD=D + DX= E440 + LAB= IMC) | H124: (TD=D + DX= E440 + LAB= IMC) + CUALQUIER OTRO LAB= PR | I124: (TD=D + DX= E43X + LAB= IMC) | J124: (TD=D + DX= E43X + LAB= IMC) + CUALQUIER OTRO LAB= PR | K124: (TD=D + DX= E344 + LAB= TE) | L124: (TD=D + DX= E344 + LAB= TE) + CUALQUIER OTRO LAB= PR | M124: (TD=D + DX= E45X + LAB= TE) | N124: (TD=D + DX= E45X + LAB= TE) + CUALQUIER OTRO LAB= PR | O124: (TD=D + DX= E45X + LAB= TE + SIGUIENTE LAB=SEV) | P124: (TD=D + DX= E45X + LAB= TE + SIGUIENTE LAB=SEV) + CUALQUIER OTRO LAB= PR | Q124: TD=D + DX= Z006 + LAB EN BLANCO
B125: Dx: Diagnosticado | C125: Recup: Recuperado
B127: IX. EVALUACION DEL DESARROLLO
B128: Edades | C128: Trastorno del Desarrollo | O128: Evaluac. Normal
C129: Lenguaje | E129: Motora | G129: Social | I129: Coordinación | K129: Cognitiva | M129: Con + de 1 Trastorno
C130: Dx. | D130: Recup. | E130: Dx. | F130: Recup. | G130: Dx. | H130: Recup. | I130: Dx. | J130: Recup. | K130: Dx. | L130: Recup. | M130: Dx. | N130: Recup.
B131: < 1 año | C131: TD= D + DX= F82X + LAB= LEN | D131: (TD= R + DX= F82X + LAB= LEN) + EN CUALQUIER OTRO LAB= PR | E131: TD= D + DX= F82X + LAB= MOT | F131: (TD= R + DX= F82X + LAB= MOT) + EN CUALQUIER OTRO LAB= PR | G131: TD= D + DX= F82X + LAB= SOC | H131: (TD= R + DX= F82X + LAB= SOC) + EN CUALQUIER OTRO LAB= PR | I131: TD= D + DX= F82X + LAB= COO | J131: (TD= R + DX= F82X + LAB= COO) + EN CUALQUIER OTRO LAB= PR | K131: TD= D + DX= F82X + LAB= COG | L131: (TD= R + DX= F82X + LAB= COG) + EN CUALQUIER OTRO LAB= PR | M131: TD= D + DX= F82X + LAB EN BLANCO | N131: (TD= R + DX= F82X + LAB EN BLANCO) + EN CUALQUIER OTRO LAB= PR | O131: TD= D + DX= Z006 + LAB= ED
B132: 01 año | C132: TD= D + DX= F82X + LAB= LEN | D132: (TD= R + DX= F82X + LAB= LEN) + EN CUALQUIER OTRO LAB= PR | E132: TD= D + DX= F82X + LAB= MOT | F132: (TD= R + DX= F82X + LAB= MOT) + EN CUALQUIER OTRO LAB= PR | G132: TD= D + DX= F82X + LAB= SOC | H132: (TD= R + DX= F82X + LAB= SOC) + EN CUALQUIER OTRO LAB= PR | I132: TD= D + DX= F82X + LAB= COO | J132: (TD= R + DX= F82X + LAB= COO) + EN CUALQUIER OTRO LAB= PR | K132: TD= D + DX= F82X + LAB= COG | L132: (TD= R + DX= F82X + LAB= COG) + EN CUALQUIER OTRO LAB= PR | M132: TD= D + DX= F82X + LAB EN BLANCO | N132: (TD= R + DX= F82X + LAB EN BLANCO) + EN CUALQUIER OTRO LAB= PR | O132: TD= D + DX= Z006 + LAB= ED
B133: 02 años | C133: TD= D + DX= F82X + LAB= LEN | D133: (TD= R + DX= F82X + LAB= LEN) + EN CUALQUIER OTRO LAB= PR | E133: TD= D + DX= F82X + LAB= MOT | F133: (TD= R + DX= F82X + LAB= MOT) + EN CUALQUIER OTRO LAB= PR | G133: TD= D + DX= F82X + LAB= SOC | H133: (TD= R + DX= F82X + LAB= SOC) + EN CUALQUIER OTRO LAB= PR | I133: TD= D + DX= F82X + LAB= COO | J133: (TD= R + DX= F82X + LAB= COO) + EN CUALQUIER OTRO LAB= PR | K133: TD= D + DX= F82X + LAB= COG | L133: (TD= R + DX= F82X + LAB= COG) + EN CUALQUIER OTRO LAB= PR | M133: TD= D + DX= F82X + LAB EN BLANCO | N133: (TD= R + DX= F82X + LAB EN BLANCO) + EN CUALQUIER OTRO LAB= PR | O133: TD= D + DX= Z006 + LAB= ED
B134: Dx: Diagnosticado | D134: Recup: Recuperado
B136: Edades | C136: Déficit del Desarrollo | O136: Evaluac. Normal
C137: Lenguaje | E137: Motora | G137: Social | I137: Coordinación | K137: Cognitiva | M137: Más de 1 Déficit
C138: Dx. | D138: Recup. | E138: Dx. | F138: Recup. | G138: Dx. | H138: Recup. | I138: Dx. | J138: Recup. | K138: Dx. | L138: Recup. | M138: Dx. | N138: Recup.
B139: 03 años | C139: TD= D + DX= F82X + LAB= LEN | D139: (TD= R + DX= F82X + LAB= LEN) + EN CUALQUIER OTRO LAB= PR | E139: TD= D + DX= F82X + LAB= MOT | F139: (TD= R + DX= F82X + LAB= MOT) + EN CUALQUIER OTRO LAB= PR | G139: TD= D + DX= F82X + LAB= SOC | H139: (TD= R + DX= F82X + LAB= SOC) + EN CUALQUIER OTRO LAB= PR | I139: TD= D + DX= F82X + LAB= COO | J139: (TD= R + DX= F82X + LAB= COO) + EN CUALQUIER OTRO LAB= PR | K139: TD= D + DX= F82X + LAB= COG | L139: (TD= R + DX= F82X + LAB= COG) + EN CUALQUIER OTRO LAB= PR | M139: TD= D + DX= F82X + LAB EN BLANCO | N139: (TD= R + DX= F82X + LAB EN BLANCO) + EN CUALQUIER OTRO LAB= PR | O139: TD= D + DX= Z006 + LAB= ED
B140: 04 años | C140: TD= D + DX= F82X + LAB= LEN | D140: (TD= R + DX= F82X + LAB= LEN) + EN CUALQUIER OTRO LAB= PR | E140: TD= D + DX= F82X + LAB= MOT | F140: (TD= R + DX= F82X + LAB= MOT) + EN CUALQUIER OTRO LAB= PR | G140: TD= D + DX= F82X + LAB= SOC | H140: (TD= R + DX= F82X + LAB= SOC) + EN CUALQUIER OTRO LAB= PR | I140: TD= D + DX= F82X + LAB= COO | J140: (TD= R + DX= F82X + LAB= COO) + EN CUALQUIER OTRO LAB= PR | K140: TD= D + DX= F82X + LAB= COG | L140: (TD= R + DX= F82X + LAB= COG) + EN CUALQUIER OTRO LAB= PR | M140: TD= D + DX= F82X + LAB EN BLANCO | N140: (TD= R + DX= F82X + LAB EN BLANCO) + EN CUALQUIER OTRO LAB= PR | O140: TD= D + DX= Z006 + LAB= ED
B141: Dx: Diagnosticado | D141: Recup: Recuperado
B143: X. PLAN DE ATENCION INTEGRAL
B144: Edades | C144: RN | D144: <1 año | E144: 01 año | F144: 02 años | G144: 03 años | H144: 04 años | I144: 05 años | J144: 06 años | K144: 07 años | L144: 08 años | M144: 09 años | N144: 10 años | O144: 11 años
B145: Elaborado | C145: TD= D + DX= C8002 + LAB= 1 | D145: TD= D + DX= C8002 + LAB= 1 | E145: TD= D + DX= C8002 + LAB= 1 | F145: TD= D + DX= C8002 + LAB= 1 | G145: TD= D + DX= C8002 + LAB= 1 | H145: TD= D + DX= C8002 + LAB= 1 | I145: TD= D + DX= C8002 + LAB= 1 | J145: TD= D + DX= C8002 + LAB= 1 | K145: TD= D + DX= C8002 + LAB= 1 | L145: TD= D + DX= C8002 + LAB= 1 | M145: TD= D + DX= C8002 + LAB= 1 | N145: TD= D + DX= C8002 + LAB= 1 | O145: TD= D + DX= C8002 + LAB= 1
B146: Ejecutado | C146: TD= D + DX= C8002 + LAB= TA | D146: TD= D + DX= C8002 + LAB= TA | E146: TD= D + DX= C8002 + LAB= TA | F146: TD= D + DX= C8002 + LAB= TA | G146: TD= D + DX= C8002 + LAB= TA | H146: TD= D + DX= C8002 + LAB= TA | I146: TD= D + DX= C8002 + LAB= TA | J146: TD= D + DX= C8002 + LAB= TA | K146: TD= D + DX= C8002 + LAB= TA | L146: TD= D + DX= C8002 + LAB= TA | M146: TD= D + DX= C8002 + LAB= TA | N146: TD= D + DX= C8002 + LAB= TA | O146: TD= D + DX= C8002 + LAB= TA
B148: XI. CONSEJERÍA
B149: Tipos / Edades | E149: Total | F149: RN | G149: <1 año | H149: 01 año | I149: 02 años | J149: 03 años | K149: 04 años | L149: 05 - 11 a
B150: Nutricional por Suplementación | E150: SUMA | F150: (TD= D + DX= 99403 + LAB= MN) | G150: (TD= D + DX= 99403 + LAB= MN) | H150: (TD= D + DX= 99403 + LAB= MN) | I150: (TD= D + DX= 99403 + LAB= MN) | J150: (TD= D + DX= 99403 + LAB= MN) | K150: (TD= D + DX= 99403 + LAB= MN)
B151: Nutricional por Eval. PE, TP, TE, IMC | E151: SUMA | F151: (TD= D + DX= 99403 + LAB= 1, 2… 11) + LAB= PE, TP, TE, IMC | G151: (TD= D + DX= 99403 + LAB= 1, 2… 11) + LAB= PE, TP, TE, IMC | H151: (TD= D + DX= 99403 + LAB= 1, 2… 11) + LAB= PE, TP, TE, IMC | I151: (TD= D + DX= 99403 + LAB= 1, 2… 11) + LAB= PE, TP, TE, IMC | J151: (TD= D + DX= 99403 + LAB= 1, 2… 11) + LAB= PE, TP, TE, IMC | K151: (TD= D + DX= 99403 + LAB= 1, 2… 11) + LAB= PE, TP, TE, IMC | L151: (TD= D + DX= 99403 + LAB= 1, 2… 11) + LAB= PE, TP, TE, IMC
B152: Integral por Eval. del Desarrollo | E152: SUMA | G152: (TD= D + DX= 99403) + DX= F82X, F83X | H152: (TD= D + DX= 99403) + DX= F82X, F83X | I152: (TD= D + DX= 99403) + DX= F82X, F83X | J152: (TD= D + DX= 99403) + DX= F82X, F83X | K152: (TD= D + DX= 99403) + DX= F82X, F83X | L152: (TD= D + DX= 99403) + DX= F82X, F83X
B153: Integral por Aliment. Complement. | E153: SUMA | G153: (TD= D + DX= 99403) + DX= Z0017
B157: XII. VISITA DOMICILIARIA | R157: Página 05
B158: TIPOS DE VISITA / EDADES | F158: Total | G158: RN | H158: <1 año | I158: 01 año | J158: 02 años | K158: 03 años | L158: 04 años | M158: 05 - 11 a
B159: Seguimiento al Control CRED | F159: SUMA | G159: (TD= D + DX= Z762) + DX= 99344 | H159: (TD= D + DX= Z762) + DX= 99345 | I159: (TD= D + DX= Z762) + DX= 99346 | J159: (TD= D + DX= Z762) + DX= 99347 | K159: (TD= D + DX= Z762) + DX= 99348 | L159: (TD= D + DX= Z762) + DX= 99349 | M159: (TD= D + DX= Z762) + DX= 99350
B160: Seguimiento a Problemas Nutricionales | F160: SUMA | G160: (DX= E660, E440, E669, E43X, E344, E45X) + DX= 99344 | H160: (DX= E660, E440, E669, E43X, E344, E45X) + DX= 99345 | I160: (DX= E660, E440, E669, E43X, E344, E45X) + DX= 99346 | J160: (DX= E660, E440, E669, E43X, E344, E45X) + DX= 99347 | K160: (DX= E660, E440, E669, E43X, E344, E45X) + DX= 99348 | L160: (DX= E660, E440, E669, E43X, E344, E45X) + DX= 99349 | M160: (DX= E660, E440, E669, E43X, E344, E45X) + DX= 99350
B161: Seguimiento a Problemas del Desarrollo | F161: SUMA | G161: (DX= F82X, F83X) + DX= 99344 | H161: (DX= F82X, F83X) + DX= 99345 | I161: (DX= F82X, F83X) + DX= 99346 | J161: (DX= F82X, F83X) + DX= 99347 | K161: (DX= F82X, F83X) + DX= 99348 | L161: (DX= F82X, F83X) + DX= 99349 | M161: (DX= F82X, F83X) + DX= 99350
B162: Entrega de Suplementación | F162: SUMA | G162: (DX= Z298 + LAB= 1…11, TA) + DX= 99344 | H162: (DX= Z298 + LAB= 1…11, TA) + DX= 99345 | I162: (DX= Z298 + LAB= 1…11, TA) + DX= 99346 | J162: (DX= Z298 + LAB= 1…11, TA) + DX= 99347 | K162: (DX= Z298 + LAB= 1…11, TA) + DX= 99348 | L162: (DX= Z298 + LAB= 1…11, TA) + DX= 99349
B163: Verificación de Consumo de Micronutrientes | F163: SUMA | G163: (DX= Z298 + LAB EN BLANCO) + DX= 99344 | H163: (DX= Z298 + LAB EN BLANCO) + DX= 99345 | I163: (DX= Z298 + LAB EN BLANCO) + DX= 99346 | J163: (DX= Z298 + LAB EN BLANCO) + DX= 99347 | K163: (DX= Z298 + LAB EN BLANCO) + DX= 99348 | L163: (DX= Z298 + LAB EN BLANCO) + DX= 99349
B164: Seguimiento de IRA | F164: SUMA | G164: (TD= R + DX= J00… J99) + DX= 99344 | H164: (TD= R + DX= J00… J99) + DX= 99344 | I164: (TD= R + DX= J00… J99) + DX= 99344 | J164: (TD= R + DX= J00… J99) + DX= 99344 | K164: (TD= R + DX= J00… J99) + DX= 99344 | L164: (TD= R + DX= J00… J99) + DX= 99344 | M164: (TD= R + DX= J00… J99) + DX= 99344
B165: Seguimiento de EDA | F165: SUMA | G165: (TD= R + DX= A00… A09) + DX= 99344 | H165: (TD= R + DX= A00… A09) + DX= 99344 | I165: (TD= R + DX= A00… A09) + DX= 99344 | J165: (TD= R + DX= A00… A09) + DX= 99344 | K165: (TD= R + DX= A00… A09) + DX= 99344 | L165: (TD= R + DX= A00… A09) + DX= 99344 | M165: (TD= R + DX= A00… A09) + DX= 99344
B166: Seguimiento de Anemia | F166: SUMA | G166: (TD= R + DX= D508, D509) + DX= 99344 | H166: (TD= R + DX= D508, D509) + DX= 99344 | I166: (TD= R + DX= D508, D509) + DX= 99344 | J166: (TD= R + DX= D508, D509) + DX= 99344 | K166: (TD= R + DX= D508, D509) + DX= 99344 | L166: (TD= R + DX= D508, D509) + DX= 99344 | M166: (TD= R + DX= D508, D509) + DX= 99344
B168: XIII. ESTIMULACION TEMPRANA | K168: XIV. ACTIVIDADES EXTRAMURALES, MASIVAS Y DE GESTIÓN
B169: EDADES / SESIONES | D169: 1º | E169: 2º | F169: 3º | G169: 4º | H169: 5º | I169: 6º | K169: Unidad Medida | M169: Actividades Extramurales y Masivas | Q169: Actividades de Gestión
B170: Recién Nacido | D170: (TD= D + DX= 99411 + LAB= 1) | E170: (TD= D + DX= 99411 + LAB= 2) | F170: (TD= D + DX= 99411 + LAB= 3) | G170: (TD= D + DX= 99411 + LAB= 4) | H170: (TD= D + DX= 99411 + LAB= 5) | I170: (TD= D + DX= 99411 + LAB= 6) | M170: Sesiones Demostrativas | O170: Sesiones Educativas | Q170: Evaluación | R170: Supervisión | S170: Asitencia Técnica | T170: Reu.Téc: Personal de Salud | U170: Reu.Téc: Agente Com. de Salud
B171: < 01 año | D171: (TD= D + DX= 99411 + LAB= 1) | E171: (TD= D + DX= 99411 + LAB= 2) | F171: (TD= D + DX= 99411 + LAB= 3) | G171: (TD= D + DX= 99411 + LAB= 4) | H171: (TD= D + DX= 99411 + LAB= 5) | I171: (TD= D + DX= 99411 + LAB= 6)
B172: 01 año | D172: (TD= D + DX= 99411 + LAB= 1) | E172: (TD= D + DX= 99411 + LAB= 2) | F172: (TD= D + DX= 99411 + LAB= 3) | G172: (TD= D + DX= 99411 + LAB= 4) | H172: (TD= D + DX= 99411 + LAB= 5) | I172: (TD= D + DX= 99411 + LAB= 6) | K172: Actividades | M172: (C0010 + U0040)+APP140 | O172: (C0009 + U0040)+APP140 | Q172: (C7003 + U0040)+APP100 | R172: (C7002 + U0040)+APP100 | S172: (C7004 + U0040)+APP100 | T172: (C0008 + U0040)+APP100 | U172: (C0006 + U0040)+APP138
B173: 02 años | D173: (TD= D + DX= 99411 + LAB= 1) | E173: (TD= D + DX= 99411 + LAB= 2) | F173: (TD= D + DX= 99411 + LAB= 3) | G173: (TD= D + DX= 99411 + LAB= 4) | H173: (TD= D + DX= 99411 + LAB= 5) | I173: (TD= D + DX= 99411 + LAB= 6) | K173: Participantes | M173: ((Sumar Lab1 de C0010) + U0040) +APP140 | O173: ((Sumar Lab1 de C0009) + U0040)+APP140 | Q173: ((Sumar Lab1 de C7003) + U0040)+APP100 | R173: ((Sumar Lab1 de C7002) + U0040)+APP100 | S173: ((Sumar Lab1 de C7004) + U0040)+APP100 | T173: ((Sumar Lab1 de C0008) + U0040)+APP100 | U173: (Sumar Lab1 de C0006) + U0040)+APP138
B174: 03 años | D174: (TD= D + DX= 99411 + LAB= 1) | E174: (TD= D + DX= 99411 + LAB= 2) | F174: (TD= D + DX= 99411 + LAB= 3) | G174: (TD= D + DX= 99411 + LAB= 4) | H174: (TD= D + DX= 99411 + LAB= 5) | I174: (TD= D + DX= 99411 + LAB= 6)
B176: XV. ATENCION DE LAS ENFERMEDADES PREVALENTES DE LA INFANCIA
B177: A. INFECCIÓN RESPIRATORIA AGUDA
B178: DIAGNÓSTICOS | G178: Grupo de Edad
G179: < 29 Días | I179: 29 d a 59 Días | K179: 02 - 11 Meses | M179: 01 - 04 Años | O179: 05 - 11 Años | Q179: Total
B180: 1. Total de Casos de IRA ( 1 + 2 ) | G180: =G181+I185 -> 0 | I180: =I181+K185 -> 0 | K180: =K181+G185 -> 0 | M180: =M181+I185 -> 0 | O180: =O181+K185 -> 0 | Q180: =SUM(G180:P180) -> 0
B181: 1.1. Nº casos de IRA complicada ( a + b + c ) | G181: =SUM(G182:G183) -> 0 | I181: =SUM(I182:I183) -> 0 | K181: =SUM(K182:K183) -> 0 | M181: =SUM(M182:M183) -> 0 | O181: =SUM(O182:O183) -> 0 | Q181: 0
B182: a. Neumonía complicada | G182: TD= D + DX= A37, J180, J050, J051, J90, J851, J86, J10, J11, J939, J188 | I182: TD= D + DX= A37, J180, J050, J051, J90, J851, J86, J10, J11, J939, J188 | K182: TD= D + DX= A37, J180, J050, J051, J90, J851, J86, J10, J11, J939, J188 | M182: TD= D + DX= A37, J180, J050, J051, J90, J851, J86, J10, J11, J939, J188 | O182: TD= D + DX= A37, J180, J050, J051, J90, J851, J86, J10, J11, J939, J188 | Q182: 0
B183: b. Neumonía no complicada | G183: TD= D + DX= J189, J181, J12, J13, J14, J15, J16, J219 | I183: TD= D + DX= J189, J181, J12, J13, J14, J15, J16, J219 | K183: TD= D + DX= J189, J181, J12, J13, J14, J15, J16, J219 | M183: TD= D + DX= J189, J181, J12, J13, J14, J15, J16, J219 | O183: TD= D + DX= J189, J181, J12, J13, J14, J15, J16, J219 | Q183: 0
B184: c. SOBA o ASMA | G184: TD= D + DX= J450, J459, J46, J448, J449 | I184: TD= D + DX= J450, J459, J46, J448, J449 | K184: TD= D + DX= J450, J459, J46, J448, J449 | M184: TD= D + DX= J450, J459, J46, J448, J449 | O184: TD= D + DX= J450, J459, J46, J448, J449 | Q184: 0
B185: 1.2. Nº casos de IRA no complicada ( a + b + c ) | G185: =SUM(K187:K188) -> 0 | I185: =SUM(M187:M188) -> 0 | K185: =SUM(I186:I188) -> 0 | M185: =SUM(M186:M188) -> 0 | O185: =SUM(O186:O188) -> 0 | Q185: 0
B186: a. Faringo amigdalitis purulenta aguda | M186: TD= D + DX= J020, J030 | O186: TD= D + DX= J020, J030 | Q186: 0
B187: b. Otitis media aguda | G187: TD= D + DX= H660, H669 | I187: TD= D + DX= H660, H669 | K187: TD= D + DX= H660, H669 | M187: TD= D + DX= H660, H669 | O187: TD= D + DX= H660, H669 | Q187: 0
B188: c. Resfrió, faringitis viral, bronquitis,etc | G188: TD= D + DX= J00, J01, J028, J029, J040, J041, J042, J069, J209 | I188: TD= D + DX= J00, J01, J028, J029, J040, J041, J042, J069, J209 | K188: TD= D + DX= J00, J01, J028, J029, J040, J041, J042, J069, J209 | M188: TD= D + DX= J00, J01, J028, J029, J040, J041, J042, J069, J209 | O188: TD= D + DX= J00, J01, J028, J029, J040, J041, J042, J069, J209 | Q188: 0
B189: 2. Total de casos IRA complicadas hospitalizadas | Q189: 0
B190: 3. Nº de casos de IRA complicada referidos | Q190: 0
B191: 4. Control de seguimiento de neumonia a las 48 horas | G191: TD=R + DX= (J100, J110, J120, J121, J122, J128, J129, J13X, J14X, J150, J151, J152, J153, J154, J155, J156, J157, J158, J159, J160, J168, J170, J171, J172, J173, J178, J180, J181, J182, J188, J189, J1891, J200, J851, J852, P230, P231, P232, P233, P234, P235, P236, P238, P239, J123) + (DX= 99344 + LAB= 1) | I191: TD=R + DX= (J100, J110, J120, J121, J122, J128, J129, J13X, J14X, J150, J151, J152, J153, J154, J155, J156, J157, J158, J159, J160, J168, J170, J171, J172, J173, J178, J180, J181, J182, J188, J189, J1891, J200, J851, J852, P230, P231, P232, P233, P234, P235, P236, P238, P239, J123) + (DX= 99344 + LAB= 1) | K191: TD=R + DX= (J100, J110, J120, J121, J122, J128, J129, J13X, J14X, J150, J151, J152, J153, J154, J155, J156, J157, J158, J159, J160, J168, J170, J171, J172, J173, J178, J180, J181, J182, J188, J189, J1891, J200, J851, J852, P230, P231, P232, P233, P234, P235, P236, P238, P239, J123) + (DX= 99344 + LAB= 1) | M191: TD=R + DX= (J100, J110, J120, J121, J122, J128, J129, J13X, J14X, J150, J151, J152, J153, J154, J155, J156, J157, J158, J159, J160, J168, J170, J171, J172, J173, J178, J180, J181, J182, J188, J189, J1891, J200, J851, J852, P230, P231, P232, P233, P234, P235, P236, P238, P239, J123) + (DX= 99344 + LAB= 1) | O191: TD=R + DX= (J100, J110, J120, J121, J122, J128, J129, J13X, J14X, J150, J151, J152, J153, J154, J155, J156, J157, J158, J159, J160, J168, J170, J171, J172, J173, J178, J180, J181, J182, J188, J189, J1891, J200, J851, J852, P230, P231, P232, P233, P234, P235, P236, P238, P239, J123) + (DX= 99344 + LAB= 1) | Q191: 0
O192: Fuentes Externas
P193: Reporte de Egresos
B194: B. ENFERMEDAD DIARREICA AGUDA | R194: Página 06
G195: Grupo de Edad
G196: < 01 Año | I196: 01 - 04 Años | K196: 05 - 11 Años | M196: Total
B197: 1. EDA Sin Complicación ( a + b + c + d ) | G197: =SUM(G198:H201) -> 0 | I197: =SUM(I198:J201) -> 0 | K197: =SUM(K198:L201) -> 0 | M197: =SUM(G197:L197) -> 0
B198: a. Acuosa Aguda s/deshidratación | G198: TD= D+ (DX= A010, A011, A012, A013, A014, A020, A05, A07, A080, A082, A083, A084, A090) | I198: TD= D+ (DX= A010, A011, A012, A013, A014, A020, A05, A07, A080, A082, A083, A084, A090) | K198: TD= D+ (DX= A010, A011, A012, A013, A014, A020, A05, A07, A080, A082, A083, A084, A090) | M198: =SUM(G198:L198) -> 0
B199: b. Sospechoso de cólera s/deshidratación | G199: TD= P + DX= A00, A009 | I199: TD= P + DX= A00, A009 | K199: TD= P + DX= A00, A009 | M199: =SUM(G199:L199) -> 0
B200: c. Disenteria s/deshidratación | G200: TD= D + (DX= A049, A030, A039, A045, A060, A062) | I200: TD= D + (DX= A049, A030, A039, A045, A060, A062) | K200: TD= D + (DX= A049, A030, A039, A045, A060, A062) | M200: 0
B201: d. Diarrea persistente | G201: TD= D + DX= A099 | I201: TD= D + DX= A099 | K201: TD= D + DX= A099 | M201: 0
B202: 2. EDA Complicada ( a + b + c + d + e + f ) | G202: =SUM(G203:H208) -> 0 | I202: =SUM(I203:J208) -> 0 | K202: =SUM(K203:L208) -> 0 | M202: =SUM(G202:L202) -> 0
B203: a. Acuosa Aguda c/deshidratación | G203: TD= D + (DX= A010 + E86X), (A011 + E86X), (A012 + E86X), (A013 + E86X), (A014 + E86X), (A020 + E86X), (A05 + E86X), (A07 + E86X), (A080 + E86X), (A082 + E86X), (A083 + E86X), (A084 + E86X), (A090 + E86X) | I203: TD= D + (DX= A010 + E86X), (A011 + E86X), (A012 + E86X), (A013 + E86X), (A014 + E86X), (A020 + E86X), (A05 + E86X), (A07 + E86X), (A080 + E86X), (A082 + E86X), (A083 + E86X), (A084 + E86X), (A090 + E86X) | K203: TD= D + (DX= A010 + E86X), (A011 + E86X), (A012 + E86X), (A013 + E86X), (A014 + E86X), (A020 + E86X), (A05 + E86X), (A07 + E86X), (A080 + E86X), (A082 + E86X), (A083 + E86X), (A084 + E86X), (A090 + E86X) | M203: 0
B204: b. Sospechoso de cólera c/deshidratación | G204: TD= P + (DX= A00 + E86X) | I204: TD= P + (DX= A00 + E86X) | K204: TD= P + (DX= A00 + E86X) | M204: 0
B205: c. Disenteria c/deshidratación | G205: TD= D + (DX= A049 + E86X), (A030 + E86X) / (A039 + E86X), (A045 + E86X), (A060 + E86X), (A062 + E86X) | I205: TD= D + (DX= A049 + E86X), (A030 + E86X) / (A039 + E86X), (A045 + E86X), (A060 + E86X), (A062 + E86X) | K205: TD= D + (DX= A049 + E86X), (A030 + E86X) / (A039 + E86X), (A045 + E86X), (A060 + E86X), (A062 + E86X) | M205: 0
B206: d. Acuosa Aguda c/deshidratación c/shock | G206: TD= D + (DX= A010 + R571), (A011 + R571), (A012 + R571), (A013 + R571, (A014 + R571), (A020 + R571), (A05 + R571), (A07 + R571), (A080 + R571), (A082 + R571), (A083 + R571), (A084 + R571) | I206: TD= D + (DX= A010 + R571), (A011 + R571), (A012 + R571), (A013 + R571, (A014 + R571), (A020 + R571), (A05 + R571), (A07 + R571), (A080 + R571), (A082 + R571), (A083 + R571), (A084 + R571) | K206: TD= D + (DX= A010 + R571), (A011 + R571), (A012 + R571), (A013 + R571, (A014 + R571), (A020 + R571), (A05 + R571), (A07 + R571), (A080 + R571), (A082 + R571), (A083 + R571), (A084 + R571) | M206: 0
B207: e. Sospechoso de cólera c/deshidratación c/shock | G207: TD= P + (DX= A00 + R571) | I207: TD= P + (DX= A00 + R571) | K207: TD= P + (DX= A00 + R571) | M207: 0
B208: f. Disenteria c/deshidratación c/shock | G208: TD= D + (DX= A099 + R571) | I208: TD= D + (DX= A099 + R571) | K208: TD= D + (DX= A099 + R571) | M208: 0
B209: 3. Hospitalizados por EDA (Egresos) | M209: =SUM(G209:L209) -> 0
B211: C. ANEMIA Y PARASITOSIS
B212: CAUSAS DE MORBILIDAD | E212: Diagnósticado
E213: Total | G213: RN | I213: < 01 año | K213: 01 año | M213: 02 años | O213: 03 años | Q213: 04 años | S213: 05 - 11 años
E214: Dx. | F214: Recup. | G214: Dx. | H214: Recup. | I214: Dx. | J214: Recup. | K214: Dx. | L214: Recup. | M214: Dx. | N214: Recup. | O214: Dx. | P214: Recup. | Q214: Dx. | R214: Recup. | S214: Dx. | T214: Recup.
B215: Anemia por Deficiencia de Hierro | E215: =G215+I215+K215+M215+O215+Q215+S215 ->  | F215: =H215+J215+L215+N215+P215+R215+T215 ->  | G215: (TD= D + DX= D509, D508) | H215: (TD= R + DX= D509, D508) + LAB= PR | I215: (TD= D + DX= D509, D508) | J215: (TD= R + DX= D509, D508) + LAB= PR | K215: (TD= D + DX= D509, D508) | L215: (TD= R + DX= D509, D508) + LAB= PR | M215: (TD= D + DX= D509, D508) | N215: (TD= R + DX= D509, D508) + LAB= PR | O215: (TD= D + DX= D509, D508) | P215: (TD= R + DX= D509, D508) + LAB= PR | Q215: (TD= D + DX= D509, D508) | R215: (TD= R + DX= D509, D508) + LAB= PR | S215: (TD= D + DX= D509, D508) | T215: (TD= R + DX= D509, D508) + LAB= PR
B216: Parasitosis Intestinal | E216: =G216+I216+K216+M216+O216+Q216+S216 ->  | F216: =H216+J216+L216+N216+P216+R216+T216 ->  | G216: (TD= D + DX= B829, B680, B681, B689, B70, B710, B719, B760, B761, B769, B779, B780, B79, B779, B780, B79, B80, B820, B829, A071, A070, A06) | H216: (TD= R + DX= B829, B680, B681, B689, B70, B710, B719, B760, B761, B769, B779, B780, B79, B779, B780, B79, B80, B820, B829, A071, A070, A06) + LAB= PR | I216: (TD= D + DX= B829, B680, B681, B689, B70, B710, B719, B760, B761, B769, B779, B780, B79, B779, B780, B79, B80, B820, B829, A071, A070, A06) | J216: (TD= R + DX= B829, B680, B681, B689, B70, B710, B719, B760, B761, B769, B779, B780, B79, B779, B780, B79, B80, B820, B829, A071, A070, A06) + LAB= PR | K216: (TD= D + DX= B829, B680, B681, B689, B70, B710, B719, B760, B761, B769, B779, B780, B79, B779, B780, B79, B80, B820, B829, A071, A070, A06) | L216: (TD= R + DX= B829, B680, B681, B689, B70, B710, B719, B760, B761, B769, B779, B780, B79, B779, B780, B79, B80, B820, B829, A071, A070, A06) + LAB= PR | M216: (TD= D + DX= B829, B680, B681, B689, B70, B710, B719, B760, B761, B769, B779, B780, B79, B779, B780, B79, B80, B820, B829, A071, A070, A06) | N216: (TD= R + DX= B829, B680, B681, B689, B70, B710, B719, B760, B761, B769, B779, B780, B79, B779, B780, B79, B80, B820, B829, A071, A070, A06) + LAB= PR | O216: (TD= D + DX= B829, B680, B681, B689, B70, B710, B719, B760, B761, B769, B779, B780, B79, B779, B780, B79, B80, B820, B829, A071, A070, A06) | P216: (TD= R + DX= B829, B680, B681, B689, B70, B710, B719, B760, B761, B769, B779, B780, B79, B779, B780, B79, B80, B820, B829, A071, A070, A06) + LAB= PR | Q216: (TD= D + DX= B829, B680, B681, B689, B70, B710, B719, B760, B761, B769, B779, B780, B79, B779, B780, B79, B80, B820, B829, A071, A070, A06) | R216: (TD= R + DX= B829, B680, B681, B689, B70, B710, B719, B760, B761, B769, B779, B780, B79, B779, B780, B79, B80, B820, B829, A071, A070, A06) + LAB= PR | S216: (TD= D + DX= B829, B680, B681, B689, B70, B710, B719, B760, B761, B769, B779, B780, B79, B779, B780, B79, B80, B820, B829, A071, A070, A06) | T216: (TD= R + DX= B829, B680, B681, B689, B70, B710, B719, B760, B761, B769, B779, B780, B79, B779, B780, B79, B80, B820, B829, A071, A070, A06) + LAB= PR
B218: XVI. DEFUNCIONES
B219: GRUPOS DE EDAD | D219: Intrahospitalario | J219: Extrahospitalario | P219: TOTAL
D220: IRA | F220: EDA | H220: Todas las Causas | J220: IRA | L220: EDA | N220: Todas las Causas
B221: < 29 días | P221: =SUM(D221:O221) -> 0
B222: 29 días a 59 días | P222: 0
B223: 02 meses a 11 meses | P223: 0
B224: 01 año | P224: 0
B225: 02 años a 04 años | P225: 0
B226: 05 años a 11 años | P226: 0
B227: TOTAL | D227: =SUM(D222:E226) -> 0 | F227: =SUM(F222:G226) -> 0 | H227: =SUM(H222:I226) -> 0 | J227: =SUM(J222:K226) -> 0 | L227: =SUM(L222:M226) -> 0 | N227: =SUM(N222:O226) -> 0 | P227: 0
... 19 more rows
